{"text_format":"1","workbook":"xlsx","n_sheets":16,"sheets":["Academia","Biofuels","Battery Technologies","Energy Efficiency Consulting","Energy Efficiency Technologies","Energy Simulation","Energy Transmission","Green Building","Government | NonProfit","Grant Writer","Hydroelectric Technologies","Other Renewable Technologies","Solar Technologies","Media | Marketing","Aggregated Email List","Army Corps"],"not_rendered":{"charts":0,"images":0,"macros":0,"external_links":0,"defined_names":18,"comments":0,"pivot_tables":0},"unopened":[],"bounds":{"document_bytes":16777216,"sheet_cells":100000,"rows_first":2000,"rows_last":500,"rows_between":2000,"halvings":0,"cell_chars":16384,"cell_head_chars":4096},"cells_cut":0,"cells_raw":0,"read":"whole","date_system":"1900"}

{"sheet":"Academia","index":0,"n_rows":331,"n_cols":3,"rows_kept":331,"cut":false,"hidden":false,"merged":[]}
[null,"Email from Macro","Corrected Email"]
["Nisheeth Agrawal ","INTERNETnka@calhoun.edu",{"$f":"RIGHT(B2, LEN(B2)-8)","v":"nka@calhoun.edu"}]
["Calhoun Community College","INTERNETglennbarnes@sog.unc.edu",{"$f":"RIGHT(B3, LEN(B3)-8)","v":"glennbarnes@sog.unc.edu"}]
["Work Phone: work256-603-0089","INTERNETberkowd@uah.edu","berkowd@uah.edu"]
["Work Email:","INTERNETernst.cebert@aamu.edu","ernst.cebert@aamu.edu"]
["INTERNETnka@calhoun.edu","INTERNETsundar@nsstc.uah.edu","sundar@nsstc.uah.edu"]
[null,"INTERNETvanessa.ennis@uah.edu","vanessa.ennis@uah.edu"]
["Website: http://www.calhoun.edu/","INTERNETdfarmer@tmtgroupinc.com","dfarmer@tmtgroupinc.com"]
["Calhoun Community College exemplifies the two-year college mission of commitment to excellence in teaching and service and is the region's leader in education and workforce development.","INTERNETcgapasin@aces.edu","cgapasin@aces.edu"]
["Add to Address Book Updated 203 days agoReturn to top.","INTERNETkfg0003@aces.edu","kfg0003@aces.edu"]
["Glenn Barnes ","INTERNETjguo@ece.uah.edu","jguo@ece.uah.edu"]
["Senior Project Director","INTERNETgpahauck@gmail.com","gpahauck@gmail.com"]
["UNC Environmental Finance Center","INTERNETanthony.holden@uah.edu","anthony.holden@uah.edu"]
["Environmental Finance Center","INTERNETjholley@calhoun.edu","jholley@calhoun.edu"]
["School of Government, CB#3330 University of North Carolina","INTERNETjohn.horack@uah.edu","john.horack@uah.edu"]
["Chapel Hill  NC  27599-3330","INTERNETtom.koshut@uah.edu","tom.koshut@uah.edu"]
["United States home","INTERNETmll0002@aces.edu","mll0002@aces.edu"]
["Work Phone: work919-962-27889","INTERNETdannah.mccauley@uah.edu","dannah.mccauley@uah.edu"]
["Work Email:","INTERNETsusan.phelan@aamu.edu","susan.phelan@aamu.edu"]
["INTERNETglennbarnes@sog.unc.edu","INTERNETrobert.recker@uah.edu","robert.recker@uah.edu"]
[null,"INTERNETJohn.Reutter@drakestate.edu","John.Reutter@drakestate.edu"]
["Website: http://www.efc.unc.edu","INTERNETjreutter@hotmail.com","jreutter@hotmail.com"]
["Add to Address Book Updated 27 days agoReturn to top.","INTERNETspaink@uah.edu","spaink@uah.edu"]
["David Berkowitz ","INTERNETdstone@atn.org","dstone@atn.org"]
["Professor of Marketing","INTERNETthompsg@uah.edu","thompsg@uah.edu"]
["UAH - Department of Manageent and Marketing","INTERNETjoe.vallely@uah.edu","joe.vallely@uah.edu"]
["368 Business Administration Building"]
["Huntsville  AL  35899"]
["United States home"]
["Work Phone: work256-824-6952"]
["Work Email:"]
["INTERNETberkowd@uah.edu"]
[]
["Website: http://www.uah.edu/"]
["Add to Address Book Updated 27 days agoReturn to top."]
["Ernie Cebert "]
["Alabama A&M"]
["Work"]
["4900 Meridian Street"]
["Normal  AL  35762"]
["work"]
["Work Phone: work256-372-4243"]
["Work Email:"]
["INTERNETernst.cebert@aamu.edu"]
[]
["Website: http://www.aamu.edu"]
["Alabama Agricultural and Mechanical University reflects the uniqueness of the traditional land-grant institution which combines professional, vocational and liberal arts pursuits. The University provides baccalaureate and graduate studies that are compatible with the times to all qualified, capable individuals who are interested in further developing their technical, professional, and scholastic skills and competencies. It operates in the three-fold function of teaching, research, and public service, including extension."]
["Add to Address Book Updated 174 days agoReturn to top."]
["Sundar Christopher "]
["UAHuntsville"]
["Earth and Atmospheric Science"]
["320 Sparkman Drive, NSSTC"]
["Huntsville  AL  35805"]
["United States home"]
["Work Phone: work256-961-7872"]
["Work Email:"]
["INTERNETsundar@nsstc.uah.edu"]
[]
["Website: http://www.atmos.uah.edu/~sundar"]
["Professor, Department of Atmospheric Sciences Associate Director, Earth System Science Center University of Alabama In Huntsville"]
["Add to Address Book Updated 26 days agoReturn to top."]
["Vanessa Ennis, CEM, CEA "]
["Energy Manager"]
["UAH - Energy Management"]
["301 Sparkman Drive PPB Room 110E"]
["Huntsville  AL  35899"]
["home"]
["Work Phone: work256-824-6242"]
["Work Email:"]
["INTERNETvanessa.ennis@uah.edu"]
[]
["Website: http://energy.uah.edu"]
["The Facilities and Operations division has University-wide responsibility for leading the effort to minimize energy use and for implementing the energy management program. The program seeks to both achieve energy savings and minimize the environmental impact of UAHuntsville's current and future operations."]
["Add to Address Book Updated 26 days agoReturn to top."]
["Daniel Farmer "]
["Executive Vice President, COO"]
["Technology Management Training Group, Inc."]
["P.O. Box 18274 204 Lowry Street"]
["Huntsville  AL  35804"]
["United States home"]
["Work Phone: work256-536-9717"]
["Work Fax: workfax256-536-9718"]
["Work Phone: work256-417-2317"]
["Work Email:"]
["INTERNETdfarmer@tmtgroupinc.com"]
[]
["Website: http://www.tmtgroupinc.com"]
["Technology Management Training Group, Incorporated (TMT Group)"]
["is a highly proficient management team of successful and innovative business"]
["professionals who are customer-focused and outcome-driven. TMT Group Inc. was"]
["founded in 2004 as a minority, woman owned, small disadvantaged business."]
[]
[]
["Headquartered in Huntsville, Alabama, it is our commitment to provide technical excellence in information technology, management support and training.   TMT Group Inc. believes that the success of our customers is hinged upon us working together in a close, trust-based relationship that allows us to thoroughly understand their needs. In addition, we provide reliable, high-quality personnel and services at a reasonable price.   Equally, we have extensive experience and expertise providing services encompassing technology, management and training solutions."]
["Add to Address Book Updated 26 days agoReturn to top."]
["Dony Gapasin "]
["Community Resource Development Specialist"]
["Alabama Cooperative Extension"]
["P.O. Box 967"]
["Normal  AL  35762"]
["United States home"]
["Work Phone: work256-858-4965"]
["Work Email:"]
["INTERNETcgapasin@aces.edu"]
[]
["Website: http://www.aces.edu"]
["As Alabma's population becomes more urban, outreach services must shift to meet changing needs. This unit provides educational programs to help the state's urban and nontraditional audiences adapt to changing environments and needs."]
["Add to Address Book Updated 26 days agoReturn to top."]
["Karnita Golson-Garner, Ph,D. "]
["Extension Specialist"]
["Alabama Cooperative Extension"]
["P.O. Box 967"]
["Normal  AL  35762"]
["United States home"]
["Work Phone: work256-372-8331"]
["Work Fax: workfax256-372-5840"]
["Work Phone: work256-612-4169"]
["Work Email:"]
["INTERNETkfg0003@aces.edu"]
[]
["Website: http://www.aces.edu"]
["As Alabma's population becomes more urban, outreach services must shift to meet changing needs. This unit provides educational programs to help the state's urban and nontraditional audiences adapt to changing environments and needs."]
["Add to Address Book Updated 14 days agoReturn to top."]
["Junpeng Guo "]
["Professor- Dept of Electrical and Computer Engineering"]
["UAHuntsville - Electrical and Computer Engineering"]
["406 Optics Building"]
["Huntsville  AL  35899"]
["United States home"]
["Home Phone: home256-824-2421"]
["Work Fax: workfax256-824-2856"]
["Work Email:"]
["INTERNETjguo@ece.uah.edu"]
[]
["Website: http://www.ece.uah.edu/Individual_Staff_Pages/GuoJ.html"]
["Dr. Guo's research area is surface plasmon-polariton, nanophotonics and nanofluidics. He is interested in exploring new phenomena and physics related to nanostructures and constructing new devices. His group is currently working on ultra-long range surface plasmon-polariton waveguide, plasmonic crystal, surface plasmon resonance biosensors, nanofluidics, and super-resolution measurement and imaging."]
["Add to Address Book Updated 14 days agoReturn to top."]
["Lee Hauck "]
["Engineer"]
["Alabama A&M"]
["4900 Meridian St."]
["Normal  AL  35762"]
["United States home"]
["Work Phone: work256-658-7213"]
["Work Email:"]
["INTERNETgpahauck@gmail.com"]
[]
["Website: http://www.aamu.edu"]
["Alabama Agricultural and Mechanical University reflects the uniqueness of the traditional land-grant institution which combines professional, vocational and liberal arts pursuits. The University provides baccalaureate and graduate studies that are compatible with the times to all qualified, capable individuals who are interested in further developing their technical, professional, and scholastic skills and competencies. It operates in the three-fold function of teaching, research, and public service, including extension."]
["Add to Address Book Updated 14 days agoReturn to top."]
["Anthony Holden "]
["Lean Enterprise Specialist"]
["Alabama Technology Network - UAH"]
["301 Sparkman Drive Shelby Center, CMER"]
["Huntsville  AL  35899"]
["United States home"]
["Work Phone: work256-824-6289"]
["Work Fax: workfax256-824-6970"]
["Work Email:"]
["INTERNETanthony.holden@uah.edu"]
[]
["Website: http://www.atnlean.com/"]
["ATN-UAH links you, the industry, with technological resources from our network of universities, colleges, businesses, and government to deliver the help you need to be more efficient, more productive, more competitive. We meet with you and your team and assess the needs of your business using proven methods that have helped hundreds of companies, provide you with a proposed customized solution, implement the training/service, then follow up to ensure financial impacts were created as a result of the assistance. ATN can provide the experts to make it happen. ATN provides these services at a reasonable cost to your business."]
["Add to Address Book Updated 14 days agoReturn to top."]
["John Holley "]
["ACR Instructor"]
["Calhoun Community College"]
["PO Box 2216"]
["Decatur  AL  35609"]
["United States home"]
["Work Phone: work256-306-2865"]
["Work Email:"]
["INTERNETjholley@calhoun.edu"]
[]
["Website: http://www.calhoun.edu"]
["Calhoun Community College exemplifies the two-year college mission of commitment to excellence in teaching and service and is the region's leader in education and workforce development."]
["Add to Address Book Updated 14 days agoReturn to top."]
["John Horack "]
["Vice President of Research at UAH"]
["UAHuntsville"]
["301 Sparkman Drive"]
["Huntsville  AL  35889"]
["United States home"]
["Work Phone: work256-824-6100"]
["Work Email:"]
["INTERNETjohn.horack@uah.edu"]
[]
["Website: http://resadmin.uah.edu/researchweb/welcome.html"]
["Research at The University of Alabama in Huntsville is more than the pursuit of basic knowledge - it is the application of that knowledge as we strive to enhance competitiveness by developing, applying and transferring research into the marketplace to enhance the economic development of our state and nation."]
["Add to Address Book Updated 14 days agoReturn to top."]
["Jim Hudson "]
["HudsonAlpha Institute for Biotechnology"]
["601 Genome Way"]
["Huntsville  AL  35806"]
["United States home"]
["Work Phone: work256-327-0400"]
["Website: http://www.hudsonalpha.org/"]
["At HudsonAlpha we engage the power of biotechnology to improve life. Implementing a three-fold mission of genomic research, economic development and educational outreach, HudsonAlpha creates the environment and conditions to nurture life-affirming 'Eureka!' moments in the lab, marketplace and classroom."]
["Add to Address Book Updated 14 days agoReturn to top."]
["Tom Koshut "]
["Associate VP for Research"]
["UAHuntsville"]
["M-17 Von Braun Research Hall"]
["Huntsville  AL  35899"]
["United States home"]
["Work Phone: work256-824-6100"]
["Work Email:"]
["INTERNETtom.koshut@uah.edu"]
[]
["Website: http://www.uah.edu/admin.php"]
["Dr. Tom Koshut has joined The University of Alabama in Huntsville as associate vice president for research."]
["Dr. Koshut served as legislative director and senior policy advisor for Congressman Bud Cramer before joining the university. His responsibilities will be to manage UAH's research activities for non-Department of Defense agencies."]
["Dr. Koshut received his undergraduate degree in physics from Carnegie-Mellon University in Pittsburgh, and earned a master's and doctorate in physics from UAH."]
["Add to Address Book Updated 13 days agoReturn to top."]
["Maria Lenira Leite-Browning, D.V.M., M.S. "]
["Extension Animal Scientist"]
["Alabama Cooperative Extension"]
["P.O. Box 967"]
["Normal  AL  35762"]
["United States home"]
["Work Phone: work256-372-4954"]
["Work Fax: workfax256-372-5840"]
["Work Email:"]
["INTERNETmll0002@aces.edu"]
[]
["Website: http://www.aces.edu"]
["As Alabma's population becomes more urban, outreach services must shift to meet changing needs. This unit provides educational programs to help the state's urban and nontraditional audiences adapt to changing environments and needs."]
["Add to Address Book Updated 13 days agoReturn to top."]
["Dannah McCauley "]
["Rotorcraft Systems Engineering and Simulation Center (RSESC)"]
["UAHuntsville"]
["301 Sparkman Drive"]
["Huntsville  AL  35899"]
["United States home"]
["Work Phone: work256-824-5614"]
["Work Email:"]
["INTERNETdannah.mccauley@uah.edu"]
[]
["Website: http://rsesc.uah.edu/"]
["The Rotorcraft Systems Engineering and Simulation Center (RSESC) is a multifaceted research center focused on applied engineering and the Systems Engineering techniques to enhance project success. RSESC brings proven, unparalleled capabilities in systems engineering, rapid prototyping, system analysis, integration and fabrication. RSESC skills include: system design and development, analytical analysis in CFD and mechanical fields, reverse engineering, data analysis, trade studies, systems engineering, systems integration, non-destructive testing and independent verification, analysis and review."]
["Add to Address Book Updated 13 days agoReturn to top."]
["Susan Phelan "]
["Proposal Development Coordinator / IRP and Sponsored Programs"]
["Research Compliance Coordinator at AAMU"]
["P.O. Box 411"]
["Normal  AL  35762"]
["United States home"]
["Work Phone: work256-372-5827"]
["Work Email:"]
["INTERNETsusan.phelan@aamu.edu"]
[]
["Website: http://www.oup.org/grantee/orgDetail.asp?orgid=226&myHeadID=HBCU&yr=2006"]
["Alabama Agricultural and Mechanical University reflects the uniqueness of the traditional land-grant institution which combines professional, vocational and liberal arts pursuits. The University provides baccalaureate and graduate studies that are compatible with the times to all qualified, capable individuals who are interested in further developing their technical, professional, and scholastic skills and competencies. It operates in the three-fold function of teaching, research, and public service, including extension."]
["Add to Address Book Updated 13 days agoReturn to top."]
["Robert Recker "]
["Director of Development"]
["UAHuntsville"]
["Shelbie King Hall, Room 314"]
["Huntsville  AL  35889"]
["United States home"]
["Work Phone: work256-824-2139"]
["Work Fax: workfax256-824-6462"]
["Work Email:"]
["INTERNETrobert.recker@uah.edu"]
[]
["Website: http://www.uah.edu"]
["Add to Address Book Updated 26 days agoReturn to top."]
["John Reutter "]
["Grant Management"]
["Drake State Technical College"]
["3421 Meridian St N, Room 219"]
["Huntsville  AL  35810"]
["United States home"]
["Work Phone: work256-427-5701"]
["Work Email:"]
["INTERNETJohn.Reutter@drakestate.edu"]
[]
["Personal Email:"]
["INTERNETjreutter@hotmail.com"]
[]
["Website: http://www.dstc.cc.al.us/"]
["Established in 1961 as the Huntsville State Vocational Technical School, the college today is an affordable, technical college that trains students for current and future employment in technical, industrial and vocational careers.  In recognition of the demand for highly skilled professionals and technicians in the workforce, J.F. Drake State Technical College also links with the business/industry communities by providing training for their current employees interested in upward career mobility.  Our college’s motto “Our Graduates Work” signifies our outstanding record relative to noteworthy employment of our students."]
["Add to Address Book Updated 13 days agoReturn to top."]
["T. Kenneth SPAIN, P.E., C.E.M., C.L.E.P., G.B.E., LEED-AP "]
["On-call Research Scientist III"]
["UAHuntsville"]
["320 Sparkman Drive, NSSTC"]
["Huntsville  AL  35805"]
["United States home"]
["Work Phone: work256-961-7849"]
["Work Email:"]
["INTERNETspaink@uah.edu"]
[]
["Website: http://essl.uah.edu/faculty_staff.html"]
["Kenny Spain is an internationally recognized energy engineer, manager and trainer.  He is an on-call Research Scientist with the Earth System Science Center of The University of Alabama in Huntsville (UAH) after 25 years of service as a Senior Research Associate through sponsored programs.  He has provided energy analysis and technical support to help Alabama public institutions, schools, businesses and industries reduce their energy costs and to train government and business energy managers throughout the world."]
[]
["Mr. Spain is a Registered Professional Engineer (PE) in the State of Alabama and a Certified Energy Manager (CEM), Green Building Engineer (GBE) and Certified Lighting Efficiency Professional (CLEP) with the Association of Energy Engineers (AEE).   He was AEE’s International Energy Engineer of the Year in 1995 and was inducted into the Energy Managers Hall of Fame in 2002.  He serves on the CLEP Board for the Association of Energy Engineers and served for many years on the Editorial Advisory Board for Energy User News, writing and speaking frequently on energy-related topics.  He is author of the “DOD Energy Managers Handbook (1996)” and was lead instructor for the U.S. Army PROSPECT course on \"Energy Management in Existing Federal Facilities,\" training over six hundred Department of Defense energy managers throughout the world in compliance with the Energy Policy Act of 1992.  Since 1998 he has helped over 1500 government, utility and private sector energy managers prepare for the Certified Energy Manager (CEM) examination.  He is a FEMP-qualified Life Cycle Cost (LCC) Instructor with the distinction of having achieved the only perfect score on the qualification examination and was recognized by DOE as an Energy Codes and Standards trainer.  Kenny has taught over 270 seminars to over 6800 students and participated in more than 200 energy audits during his energy career."]
["Add to Address Book Updated 12 days agoReturn to top."]
["Dana Stone "]
["E3 coordinator"]
["Alabama Technology Network - UAH"]
["500 Beacon Parkway West"]
["Birmingham  AL  35209"]
["United States home"]
["Work Phone: work205-943-4806"]
["Work Phone: work205-568-5026"]
["Work Email:"]
["INTERNETdstone@atn.org"]
[]
["Website: http://www.atn.org"]
["The Alabama Technology Network of the Alabama Community College System links two-year colleges, The University of Alabama System, Auburn University and the Economic Development Partnership of Alabama together to solve the needs of the state's existing manufacturing industry."]
["Add to Address Book Updated 12 days agoReturn to top."]
["Wayne Thompson "]
["Rotorcraft Systems Engineering and Simulation Center (RSESC)"]
["UAHuntsville"]
["Von Braun Research Hall 301 Sparkman Drive"]
["Huntsville  AL  35899"]
["United States home"]
["Work Phone: work256-824- 6281"]
["Work Email:"]
["INTERNETthompsg@uah.edu"]
[]
["Website: http://rsesc.uah.edu/"]
["The Rotorcraft Systems Engineering and Simulation Center (RSESC) is a multifaceted research center focused on applied engineering and the Systems Engineering techniques to enhance project success. RSESC brings proven, unparalleled capabilities in systems engineering, rapid prototyping, system analysis, integration and fabrication. RSESC skills include: system design and development, analytical analysis in CFD and mechanical fields, reverse engineering, data analysis, trade studies, systems engineering, systems integration, non-destructive testing and independent verification, analysis and review."]
["Add to Address Book Updated 12 days agoReturn to top."]
["Joe Vallely "]
["UAH"]
["Work Email:"]
["INTERNETjoe.vallely@uah.edu"]
[]
["Add to Address Book Updated 12 days agoReturn to top."]

{"sheet":"Biofuels","index":1,"n_rows":117,"n_cols":3,"rows_kept":117,"cut":false,"hidden":false,"merged":[]}
[null,"Email from Macro","Corrected Email"]
["Dennis Bragg ","INTERNETbillbridge@aol.com",{"$f":"RIGHT(B2, LEN(B2)-8)","v":"billbridge@aol.com"}]
["Bragg Farms","INTERNETernst.cebert@aamu.edu",{"$f":"RIGHT(B3, LEN(B3)-8)","v":"ernst.cebert@aamu.edu"}]
["1180 Grimwood Rd.","INTERNEThollowridgefarm@hughes.net","hollowridgefarm@hughes.net"]
["Toney  AL  35773","INTERNEThathawaykw@msn.com","hathawaykw@msn.com"]
["United States home","INTERNETgpahauck@gmail.com","gpahauck@gmail.com"]
["Work Phone: work256-759-3559","INTERNETreecefarminc@yahoo.com","reecefarminc@yahoo.com"]
["Add to Address Book Updated 187 days agoReturn to top."]
["Bill Bridgeforth "]
["Bridgeforth Farms"]
["17049 Bridgeforth Rd."]
["Tanner  AL  35671"]
["United States home"]
["Work Phone: work256-232-2049"]
["Work Email:"]
["INTERNETbillbridge@aol.com"]
[]
["Add to Address Book Updated 187 days agoReturn to top."]
[]
["Ernie Cebert "]
[]
["Alabama A&M"]
[]
["Work"]
[]
["4900 Meridian Street"]
["Normal  AL  35762"]
["work"]
[]
["Work Phone: work256-372-4243"]
[]
["Work Email:"]
["INTERNETernst.cebert@aamu.edu"]
[]
["Website: http://www.aamu.edu"]
["Alabama Agricultural and Mechanical University reflects the uniqueness of the traditional land-grant institution which combines professional, vocational and liberal arts pursuits. The University provides baccalaureate and graduate studies that are compatible with the times to all qualified, capable individuals who are interested in further developing their technical, professional, and scholastic skills and competencies. It operates in the three-fold function of teaching, research, and public service, including extension."]
["Add to Address Book Updated 174 days agoReturn to top."]
["Harlod Collinsworth "]
["Hollow Ridge Farms"]
["Work Phone: work931-607-9245"]
["Work Fax: workfax931-695-3359"]
["Work Email:"]
["INTERNEThollowridgefarm@hughes.net"]
[]
["Add to Address Book Updated 26 days agoReturn to top."]
[]
["Jane Grimwood "]
[]
["HudsonAlpha Institute for Biotechnology"]
[]
["601 Genome Way"]
["Huntsville  AL  35806"]
["United States home"]
[]
["Work Phone: work256-327-0400"]
[]
["Website: http://www.hudsonalpha.org"]
["At HudsonAlpha we engage the power of biotechnology to improve life. Implementing a three-fold mission of genomic research, economic development and educational outreach, HudsonAlpha creates the environment and conditions to nurture life-affirming 'Eureka!' moments in the lab, marketplace and classroom."]
["Add to Address Book Updated 14 days agoReturn to top."]
["Kevin Hathaway "]
["Hathaway Bio Oils"]
["45 Frank Road"]
["Leoma  TN  38468"]
["United States home"]
["Work Phone: work931-852-4060"]
["Work Email:"]
["INTERNEThathawaykw@msn.com"]
[]
["Add to Address Book Updated 14 days agoReturn to top."]
[]
["Lee Hauck "]
["Engineer"]
[]
["Alabama A&M"]
[]
["4900 Meridian St."]
["Normal  AL  35762"]
["United States home"]
[]
["Work Phone: work256-658-7213"]
[]
["Work Email:"]
["INTERNETgpahauck@gmail.com"]
[]
["Website: http://www.aamu.edu"]
["Alabama Agricultural and Mechanical University reflects the uniqueness of the traditional land-grant institution which combines professional, vocational and liberal arts pursuits. The University provides baccalaureate and graduate studies that are compatible with the times to all qualified, capable individuals who are interested in further developing their technical, professional, and scholastic skills and competencies. It operates in the three-fold function of teaching, research, and public service, including extension."]
["Add to Address Book Updated 14 days agoReturn to top."]
["Jim Hudson "]
["HudsonAlpha Institute for Biotechnology"]
["601 Genome Way"]
["Huntsville  AL  35806"]
["United States home"]
["Work Phone: work256-327-0400"]
["Website: http://www.hudsonalpha.org/"]
["At HudsonAlpha we engage the power of biotechnology to improve life. Implementing a three-fold mission of genomic research, economic development and educational outreach, HudsonAlpha creates the environment and conditions to nurture life-affirming 'Eureka!' moments in the lab, marketplace and classroom."]
["Add to Address Book Updated 14 days agoReturn to top."]
["Terry Reece "]
["Reece Farm"]
["Work Phone: work256-657-6872"]
["Work Email:"]
["INTERNETreecefarminc@yahoo.com"]
[]
["Add to Address Book Updated 13 days agoReturn to top."]
[]
["Jeremy Schmutz "]
[]
["HudsonAlpha Institute for Biotechnology"]
[]
["601 Genome Way"]
["Huntsville  AL  35806"]
["home"]
[]
["Work Phone: work256-327-0400"]
[]
["Website: http://www.hudsonalpha.org/"]
["At HudsonAlpha we engage the power of biotechnology to improve life. Implementing a three-fold mission of genomic research, economic development and educational outreach, HudsonAlpha creates the environment and conditions to nurture life-affirming 'Eureka!' moments in the lab, marketplace and classroom."]
["Add to Address Book Updated 12 days agoReturn to top."]

{"sheet":"Battery Technologies","index":2,"n_rows":167,"n_cols":3,"rows_kept":167,"cut":false,"hidden":false,"merged":[]}
[null,"Email from Macro","Corrected Email"]
["Keith Bucher ","INTERNETkeith.bucher@seigroupinc.com",{"$f":"RIGHT(B2, LEN(B2)-8)","v":"keith.bucher@seigroupinc.com"}]
["VP Technology","INTERNETxigayden@yahoo.com","xigayden@yahoo.com"]
["SEI Group Inc.","INTERNETrex.geveden@tbe.com","rex.geveden@tbe.com"]
["303 Williams Ave.,S.W., Ste. 135","INTERNETmark.gradkowski@tbe.com","mark.gradkowski@tbe.com"]
["Huntsville  AL  35801","INTERNETmark.kelly@seigroupinc.com","mark.kelly@seigroupinc.com"]
["United States home","INTERNETls@cfdrc.com","ls@cfdrc.com"]
["Work Phone: work256-533-0500","INTERNETsteven.lambert@seigroupinc.com","steven.lambert@seigroupinc.com"]
["Work Email:","INTERNETibrahim.pastuszak@pwr.utc.com","ibrahim.pastuszak@pwr.utc.com"]
["INTERNETkeith.bucher@seigroupinc.com","INTERNETsuri.perinkulam@pwr.utc.com","suri.perinkulam@pwr.utc.com"]
[null,"INTERNETaks@cfdrc.com","aks@cfdrc.com"]
["Website: http://www.seigroupinc.com","INTERNETss2@cfdrc.com","ss2@cfdrc.com"]
["SEI Group, Inc. (SEI) is a minority owned Huntsville, Alabama Corporation, founded in 1996 by Eloy J. Torrez. SEI graduated from the SBA 8(a) program in 2006, and is currently a Small Disadvantaged Business (SDB). SEI offers customers, such as government agencies and commercial organizations, products and services in Solutions, Energy Technologies, and Infrastructure.","INTERNETrdt@cfdrc.com","rdt@cfdrc.com"]
["Add to Address Book Updated 187 days agoReturn to top.","INTERNETeloy.torrez@seigroupinc.com","eloy.torrez@seigroupinc.com"]
["Shawn Gayden "]
["Strategist"]
["GM"]
["Work Email:"]
["INTERNETxigayden@yahoo.com"]
[]
["Linked-in"]
[]
["Website: http://www.linkedin.com/in/shawngayden"]
["Strategy development, technology innovation, and program management for vehicle battery secondary use, including stationary and mobile energy storage applications globally."]
["Add to Address Book Updated 26 days agoReturn to top."]
["Rex Geveden "]
["President"]
["Teledyne Battery"]
["P.O. Box 070007"]
["Huntsville  AL  35807"]
["United States home"]
["Work Phone: work256-726-2600"]
["Work Email:"]
["INTERNETrex.geveden@tbe.com"]
[]
["Website: http://www.tbe.com Website: http://www.teledyne.com/aboutus/mgtgeveden.asp"]
["An industry leader in Engineered Systems, providing full-spectrumsystems engineering, integration, manufacturing, and technical/management services."]
["Add to Address Book Updated 26 days agoReturn to top."]
["Mark Gradkowski "]
["Vice President of Chemical, Biological, Radiological, and Nuclear (CBRN) Systems"]
["Teledyne Battery"]
["P.O. Box 070007"]
["Huntsville  AL  35807"]
["United States home"]
["Work Phone: work256-726-1377"]
["Work Email:"]
["INTERNETmark.gradkowski@tbe.com"]
[]
["Website: http://www.tbe.com"]
["An industry leader in Engineered Systems, providing full-spectrumsystems engineering, integration, manufacturing, and technical/management services."]
["Add to Address Book Updated 14 days agoReturn to top."]
["Mark Kelly "]
["SEI Group Inc."]
["303 Williams Ave.,S.W., Ste. 135"]
["Huntsville  AL  35801"]
["United States home"]
["Work Phone: work256-533-0500, 329"]
["Work Fax: workfax256-289-5759"]
["Work Email:"]
["INTERNETmark.kelly@seigroupinc.com"]
[]
["Website: http://www.seigroupinc.com/"]
["SEI Group, Inc. (SEI) is a minority owned Huntsville, Alabama Corporation, founded in 1996 by Eloy J. Torrez. SEI graduated from the SBA 8(a) program in 2006, and is currently a Small Disadvantaged Business (SDB). SEI offers customers, such as government agencies and commercial organizations, products and services in Solutions, Energy Technologies, and Infrastructure."]
["Add to Address Book Updated 14 days agoReturn to top."]
["Sudhakar Lakkaraju "]
["CFD Research Corp."]
["215 Wynn Drive"]
["Huntsville  AL  35805"]
["United States home"]
["Work Email:"]
["INTERNETls@cfdrc.com"]
[]
["Website: http://www.cfdrc.com"]
["CFD Corporation develops cutting edge technologies and provides innovative solutions for Aerospace & Defense, Biomedical & Life Sciences, Energy & Materials, and other industries. Since its inception in 1987, CFDRC has worked with government agencies, businesses, and academia, and has earned national recognitions for successful application and commercialization of innovative technologies (multi-physics software, hardware designs and prototypes, and multi-disciplinary analyses)."]
["Add to Address Book Updated 13 days agoReturn to top."]
["Steven Lambert "]
["Director of Research and Development, Senior Mechanical Engineer"]
["SEI Group Inc."]
["303 Williams Ave.,S.W., Ste. 135"]
["Huntsville  AL  35801"]
["United States home"]
["Work Phone: work256-533-0500"]
["Home Phone: home256-533-5516"]
["Home Phone: home205-887-5614"]
["Work Email:"]
["INTERNETsteven.lambert@seigroupinc.com"]
[]
["Website: http://www.seigroupinc.com"]
["SEI Group, Inc. (SEI) is a minority owned Huntsville, Alabama Corporation, founded in 1996 by Eloy J. Torrez. SEI graduated from the SBA 8(a) program in 2006, and is currently a Small Disadvantaged Business (SDB). SEI offers customers, such as government agencies and commercial organizations, products and services in Solutions, Energy Technologies, and Infrastructure."]
["Add to Address Book Updated 13 days agoReturn to top."]
["Ibrahim Pastuszak "]
["Program Manager"]
["Pratt & Whitney Rocketdyne"]
["555 Discovery Drive"]
["Huntsville  AL  35806"]
["United States home"]
["Work Phone: work256-971-4565"]
["Work Email:"]
["INTERNETibrahim.pastuszak@pwr.utc.com"]
[]
["Website: http://www.pw.utc.com"]
["Pratt & Whitney, a United Technologies Corp. company (NYSE:UTX), is a world leader in the design, manufacture and service of aircraft engines, industrial gas turbines and space propulsion systems. Pratt & Whitney reported an operating proﬁt of $1.84 billion in 2009 on revenues of $12.58 billion. The company's 36,000 employees support more than 11,000 customers in 195 countries around the world."]
["Add to Address Book Updated 13 days agoReturn to top."]
["Suri Perinkulam "]
["Program Manager"]
["Pratt & Whitney Rocketdyne"]
["555 Discovery Drive"]
["Huntsville  AL  35806"]
["United States home"]
["Work Phone: work256-971-3349"]
["Work Email:"]
["INTERNETsuri.perinkulam@pwr.utc.com"]
[]
["Website: http://www.pw.utc.com"]
["Pratt & Whitney, a United Technologies Corp. company (NYSE:UTX), is a world leader in the design, manufacture and service of aircraft engines, industrial gas turbines and space propulsion systems. Pratt & Whitney reported an operating pro?t of $1.84 billion in 2009 on revenues of $12.58 billion. The company's 36,000 employees support more than 11,000 customers in 195 countries around the world."]
["Add to Address Book Updated 13 days agoReturn to top."]
["Ashok Singhal "]
["CEO"]
["CFD Research Corp."]
["215 Wynn Drive"]
["Huntsville  AL  35805"]
["United States home"]
["Work Phone: work256-726-4800"]
["Work Email:"]
["INTERNETaks@cfdrc.com"]
[]
["Website: http://www.cfdrc.com"]
["CFD Corporation develops cutting edge technologies and provides innovative solutions for Aerospace & Defense, Biomedical & Life Sciences, Energy & Materials, and other industries. Since its inception in 1987, CFDRC has worked with government agencies, businesses, and academia, and has earned national recognitions for successful application and commercialization of innovative technologies (multi-physics software, hardware designs and prototypes, and multi-disciplinary analyses)."]
["Add to Address Book Updated 12 days agoReturn to top."]
["Sameer Singhal "]
["CFD Research Corp."]
["215 Wynn Drive"]
["Huntsville  AL  35805"]
["United States home"]
["Work Phone: work256-327-0664"]
["Work Fax: workfax256-603-4673"]
["Work Email:"]
["INTERNETss2@cfdrc.com"]
[]
["Website: http://www.cfdrc.com"]
["CFD Corporation develops cutting edge technologies and provides innovative solutions for Aerospace & Defense, Biomedical & Life Sciences, Energy & Materials, and other industries. Since its inception in 1987, CFDRC has worked with government agencies, businesses, and academia, and has earned national recognitions for successful application and commercialization of innovative technologies (multi-physics software, hardware designs and prototypes, and multi-disciplinary analyses)."]
["Add to Address Book Updated 12 days agoReturn to top."]
["Richard Thoms "]
["Manager Energy Group"]
["CFD Research Corp."]
["215 Wynn Drive"]
["Huntsville  AL  35805"]
["United States home"]
["Work Phone: work256-726-4810"]
["Work Email:"]
["INTERNETrdt@cfdrc.com"]
[]
["Website: http://www.cfdrc.com"]
["CFD Corporation develops cutting edge technologies and provides innovative solutions for Aerospace & Defense, Biomedical & Life Sciences, Energy & Materials, and other industries. Since its inception in 1987, CFDRC has worked with government agencies, businesses, and academia, and has earned national recognitions for successful application and commercialization of innovative technologies (multi-physics software, hardware designs and prototypes, and multi-disciplinary analyses)."]
["Add to Address Book Updated 12 days agoReturn to top."]
["Eloy Torrez "]
["SEI Group Inc."]
["303 Williams Ave.,S.W., Ste. 135"]
["Huntsville  AL  35801"]
["United States home"]
["Work Phone: work256-533-0500, 302"]
["Work Email:"]
["INTERNETeloy.torrez@seigroupinc.com"]
[]
["Website: http://www.seigroupinc.com"]
["SEI Group, Inc. (SEI) is a minority owned Huntsville, Alabama Corporation, founded in 1996 by Eloy J. Torrez. SEI graduated from the SBA 8(a) program in 2006, and is currently a Small Disadvantaged Business (SDB). SEI offers customers, such as government agencies and commercial organizations, products and services in Solutions, Energy Technologies, and Infrastructure."]
["Add to Address Book Updated 12 days agoReturn to top."]

{"sheet":"Energy Efficiency Consulting","index":3,"n_rows":528,"n_cols":3,"rows_kept":528,"cut":false,"hidden":false,"merged":[]}
[null,"Email from Macro","Corrected Email"]
["Brian Albright ","INTERNETalbright@ctc.com",{"$f":"RIGHT(B2, LEN(B2)-8)","v":"albright@ctc.com"}]
["Huntsville Operations","INTERNETmichael.f.baran@saic.com","michael.f.baran@saic.com"]
["CTC Huntsville Operations","INTERNETjeff@e2-cg.com","jeff@e2-cg.com"]
["15091 Alabama Highway 20 Suite A","INTERNETgregorycox1@me.com","gregorycox1@me.com"]
["Madison  AL  35756","INTERNETrobincox@me.com","robincox@me.com"]
["United States home","INTERNETpcrawford@jatecsolutionsllc.com","pcrawford@jatecsolutionsllc.com"]
["Work Phone: work256-560-6612","INTERNETkay@HSVgreen.com","kay@HSVgreen.com"]
["Work Fax: workfax256-560-6605","INTERNETdfarmer@tmtgroupinc.com","dfarmer@tmtgroupinc.com"]
["Work Phone: work814-418-7145","INTERNETENGINEERING@pacer-hq.com","ENGINEERING@pacer-hq.com"]
["Work Email:","INTERNETjfreeman@StrataG.org","jfreeman@StrataG.org"]
["INTERNETalbright@ctc.com","INTERNETotis.harty@agilisi.com","otis.harty@agilisi.com"]
[null,"INTERNETkhayes@jatecsolutionsllc.com","khayes@jatecsolutionsllc.com"]
["Website: http://www.ctc.com/","INTERNETrhill@taxcreditservices.com","rhill@taxcreditservices.com"]
["We are an independent, nonprofit, applied research and developmental professional services organization providing innovative management and technology-based solutions to a wide array of clients representing federal and state agencies and the private sector.","INTERNETdhurst@strataG.org","dhurst@strataG.org"]
["Add to Address Book Updated 26 days agoReturn to top.","INTERNETCecil.Jones@calibresys.com","Cecil.Jones@calibresys.com"]
["Mike Baron ","INTERNETsosusan@bellsouth.net","sosusan@bellsouth.net"]
["Recruiter","INTERNETbmara@ameresco.com","bmara@ameresco.com"]
["SAIC","INTERNETShaquinta@theroxburycompany.com","Shaquinta@theroxburycompany.com"]
["Work Phone: work256-864-8267","INTERNETmatt@muellermechanical.com","matt@muellermechanical.com"]
["Work Fax: workfax256-864-8267","INTERNETjnewkirk@govesi.com","jnewkirk@govesi.com"]
["Work Email:","INTERNETrebecca.newman@interglobalco.com","rebecca.newman@interglobalco.com"]
["INTERNETmichael.f.baran@saic.com","INTERNETparsons_sally@bah.com","parsons_sally@bah.com"]
[null,"INTERNETtpuckett@eleinc.com","tpuckett@eleinc.com"]
["Website: http://www.saic.com","INTERNETbquick@eleinc.com","bquick@eleinc.com"]
["We, as Science Applications International Corporation Employees, are dedicated to the delivery of quality scientific and technical products and services contributing to the security and well-being of our communities throughout the world. We believe high ethical standards are essential to the achievement of our individual and corporate goals.","INTERNETmrubino@staysailgroup.com","mrubino@staysailgroup.com"]
["Add to Address Book Updated 203 days agoReturn to top.","INTERNETmark_d_russell@bellsouth.net","mark_d_russell@bellsouth.net"]
["Jeff Black ","INTERNETmshelton@ciconcepts.biz","mshelton@ciconcepts.biz"]
["Energy & Environmental Consulting Group","INTERNETppsimon100@gmail.com","ppsimon100@gmail.com"]
["1300 Central Parkway","INTERNETruchi@nexusenergycenter.org","ruchi@nexusenergycenter.org"]
["Decatur  AL  35601","INTERNETjsoutuyo@arescorporation.com","jsoutuyo@arescorporation.com"]
["United States home","INTERNETsparks_joe@bah.com","sparks_joe@bah.com"]
["Work Phone: work256-260-5056","INTERNETgordon.stark@sourcecorptax.com","gordon.stark@sourcecorptax.com"]
["Work Email:","INTERNETkelleeT1973@aol.com","kelleeT1973@aol.com"]
["INTERNETjeff@e2-cg.com","INTERNETmathew@nexusenergycenter.org","mathew@nexusenergycenter.org"]
[null,"INTERNETcolewalker@me.com","colewalker@me.com"]
["Linked-in","INTERNETpwendling@govesi.com","pwendling@govesi.com"]
[null,"INTERNETscotty@e2-cg.com","scotty@e2-cg.com"]
["Website: http://www.e2-cg.com/"]
["E2CG is based out of Decatur, AL, with a satelite office in Auburn, Al. We provide an array of services, including: Air Barrier Testing, Envelope Consulting, Infrared Thermography, Engineering Services, Building FOrensics, Consultation on Air Barrier design, Mold Remediation, Indoor Air Quality, HVAC Diagnositcs, LEED Consulting, and Energy Modeling."]
["Add to Address Book Updated 203 days agoReturn to top."]
["Greg Cox "]
["Greg Cox Consulting"]
["Post Office Box 6663"]
["Huntsville  AL  35813"]
["United States home"]
["Personal Email:"]
["INTERNETgregorycox1@me.com"]
[]
["Website: http://www.linkedin.com/in/gregorycoxandassociates"]
["I am the CEO and Principal of Gregory Cox & Associates, LLC, an international science and technology consulting company, specializing in sustainability and GREEN related issues. I have over 23 years of experience in the procurement and management of federal, state, and private contracts and grants. My expertise lies in using science and technology tools that focus on sustainable development, biotechnology, alternative energy sources, and Earth systems science. I have worked internationally for over two decades, and am very comfortable with and well suited for doing business in foreign cultures, particularly those of Eastern Europe, Russia and Central Asia."]
["Add to Address Book Updated 26 days agoReturn to top."]
["Robin Cox "]
["Greg Cox Consulting"]
["Post Office Box 6663"]
["Huntsville  AL  35813"]
["United States home"]
["Personal Email:"]
["INTERNETrobincox@me.com"]
[]
["Website: http://www.linkedin.com/in/robindenson"]
["I earned a PhD in Archaeology and Fluvial Geomorphology from the University of St Andrews, Scotland in 1995. Co-founding the Gulf Archaeology Research Institute in Florida in 1992, I assisted land managers in cultural resource management of historic, prehistoric, and underwater archaeological resources until relocating to Huntsville in 2000. With a background in Earth and social sciences non-profit management including development and implementation of educational programs with GIS and environmental applications, I was drawn to the challenges of systemic STEM (science, technology, engineering and mathematics) education reform in implementing inquiry-based citizen-science education programs in America"]
["Add to Address Book Updated 26 days agoReturn to top."]
["Patrick Crawford "]
["President"]
["JATEC Solutions"]
["600 BLVD South Ste 104"]
["Huntsville  AL  35802"]
["United States home"]
["Work Phone: work256-705-3535"]
["Work Phone: work256-289-6524"]
["Work Email:"]
["INTERNETpcrawford@jatecsolutionsllc.com"]
[]
["Website: http://www.jatecsolutionsllc.com"]
["JATEC Solutions, LLC is a unique organization of energy and information technology specialists. JATEC specializes in business analytics to include reducing energy consumption and increasing efficiencies in Business and IT Operations, General office environment, and provide IT solutions for commercial and governmental entities. In addition to our business analytics, JATEC sells products and services in storage, security, network, energy and managed services solutions. We are ITIL Foundations certified and consult on IT Service Management solutions and processes which enables IT to 'run like a business'. Our focus is to capitalize on our energy and IT experience bringing intelligence to energy providers and their clients through meter data management, Smart AMR, energy and IT assessments, cyber security and data warehouse solutions."]
["Add to Address Book Updated 26 days agoReturn to top."]
["Kay Detter "]
["HSV Green"]
["Work Email:"]
["INTERNETkay@HSVgreen.com"]
[]
["Facebook"]
[]
["Website: http://www.facebook.com/pages/HSV-Green/194630172088"]
["Promoting energy efficiency and conservation in the Huntsville area. As a certified LEED Green Associate Kay offers homeowners and small business her expertise in reducing monthly energy costs."]
["Add to Address Book Updated 26 days agoReturn to top."]
["David Doane "]
["Energy Stewardship Specialist"]
["Strata-G"]
["2027 Castaic Lane"]
["Knoxville  TN  37932"]
["United States home"]
["Work Phone: work865-934-3408"]
["Website: http://www.stratag.org"]
["We Care We treat our customers and our employees as we wish to be treated. Integrity We are honest and ethical in every endeavor. Service We continuously strive to please our customers and to exceed their expectations. Quality We maintain a culture of continuous improvement. Safety We hold paramount the safety and health of our associates, our customers, the public, and the environment. Innovation We develop creative solutions to better serve our customers. Attitude We maintain a positive attitude and value humor. Outreach We share the results of our successes with the community."]
["Add to Address Book Updated 26 days agoReturn to top."]
["Daniel Farmer "]
["Executive Vice President, COO"]
["Technology Management Training Group, Inc."]
["P.O. Box 18274 204 Lowry Street"]
["Huntsville  AL  35804"]
["United States home"]
["Work Phone: work256-536-9717"]
["Work Fax: workfax256-536-9718"]
["Work Phone: work256-417-2317"]
["Work Email:"]
["INTERNETdfarmer@tmtgroupinc.com"]
[]
["Website: http://www.tmtgroupinc.com"]
["Technology Management Training Group, Incorporated (TMT Group)"]
["is a highly proficient management team of successful and innovative business"]
["professionals who are customer-focused and outcome-driven. TMT Group Inc. was"]
["founded in 2004 as a minority, woman owned, small disadvantaged business."]
[]
[]
["Headquartered in Huntsville, Alabama, it is our commitment to provide technical excellence in information technology, management support and training.   TMT Group Inc. believes that the success of our customers is hinged upon us working together in a close, trust-based relationship that allows us to thoroughly understand their needs. In addition, we provide reliable, high-quality personnel and services at a reasonable price.   Equally, we have extensive experience and expertise providing services encompassing technology, management and training solutions."]
["Add to Address Book Updated 26 days agoReturn to top."]
["Eric Folk "]
["Director of Engineering"]
["Pacer"]
["168 Whitfield Drive"]
["Toney  AL  35773"]
["United States home"]
["Work Phone: work256-658-3540"]
["Work Email:"]
["INTERNETENGINEERING@pacer-hq.com"]
[]
["Website: http://www.pacer-hq.com/"]
["PACER is Woman-Owned Small Business. PACER is an Electronics Hardware Design Services Provider as well as an Electronics R/R&D Firm. We provide Electronics Engineering Design Talent and Expertise to support the design of electronics for product development for Commercial, Military, and Space Applications. Although our technical capabilities are broad, we specialize in Analog Circuit Design, Power Supply Design, Power Electronics Design, and Custom Magnetics Design."]
["Add to Address Book Updated 26 days agoReturn to top."]
["Jenny Freeman "]
["Business Development Manager"]
["Strata-G"]
["2027 Castaic Lane"]
["Knoxville  TN  37932"]
["United States home"]
["Work Phone: work865-934-3400"]
["Work Fax: workfax865-934-3439"]
["Work Phone: work865-567-1520"]
["Work Email:"]
["INTERNETjfreeman@StrataG.org"]
[]
["Website: http://www.stratag.org"]
["We Care We treat our customers and our employees as we wish to be treated. Integrity We are honest and ethical in every endeavor. Service We continuously strive to please our customers and to exceed their expectations. Quality We maintain a culture of continuous improvement. Safety We hold paramount the safety and health of our associates, our customers, the public, and the environment. Innovation We develop creative solutions to better serve our customers. Attitude We maintain a positive attitude and value humor. Outreach We share the results of our successes with the community."]
["Add to Address Book Updated 26 days agoReturn to top."]
["Jesse Gonzalez "]
["InterGlobal Corporation"]
["10110 Shades Road"]
["Huntsville  AL  35802"]
["United States home"]
["Website: http://www.interglobalcorporation.com"]
["InterGlobal's Vision is to be a top leader in Logistics, Information Technology, and Program Management and to be a pioneer in the Research and Development (R&D) Alternative Energy field by bringing together diversified, top talent and form a tremendous team of unified individuals who's education and past performance have proven customer excellence. InterGlobal uniquely provides the utmost services at fair prices to our customers through our ethical business practices."]
["Add to Address Book Updated 14 days agoReturn to top."]
["Otis Harty "]
["Agilis Infrastructures"]
["P.O. Box 22264"]
["Huntsville  AL  35814"]
["United States home"]
["Work Phone: work256-513-5922"]
["Work Email:"]
["INTERNETotis.harty@agilisi.com"]
[]
["Website: http://www.agilisi.com"]
["Agilis Infrastructures is green certified and can help building owners and managers lower operating costs particularly in the area of energy efficiency. They perform comprehensive surveys and methodical building assessments, along with Physical Design and Logical/Equipment usage analysis. Written recommendations are based on industry best practices and provide a Cost Analysis (ROI) along with Base Line Energy Metrics. These detailed reports identify strategic opportunities for you to save money and improve tenant comfort."]
["Add to Address Book Updated 14 days agoReturn to top."]
["Ken Hayes "]
["JATEC Solutions"]
["600 BLVD South Ste 104"]
["Huntsville  AL  35802"]
["United States home"]
["Work Phone: work256-705-3535"]
["Work Email:"]
["INTERNETkhayes@jatecsolutionsllc.com"]
[]
["Website: http://www.jatecsolutionsllc.com/"]
["JATEC Solutions, LLC is a unique organization of energy and information technology specialists. JATEC specializes in business analytics to include reducing energy consumption and increasing efficiencies in Business and IT Operations, General office environment, and provide IT solutions for commercial and governmental entities. In addition to our business analytics, JATEC sells products and services in storage, security, network, energy and managed services solutions. We are ITIL Foundations certified and consult on IT Service Management solutions and processes which enables IT to 'run like a business'. Our focus is to capitalize on our energy and IT experience bringing intelligence to energy providers and their clients through meter data management, Smart AMR, energy and IT assessments, cyber security and data warehouse solutions."]
["Add to Address Book Updated 14 days agoReturn to top."]
["Robin Hill "]
["Tax Credit Services"]
["5860 Ridgeway Center Parkway Ste 102"]
["Memphis  TN  38120"]
["United States home"]
["Work Phone: work615-750-2052"]
["Work Phone: work615-715-0209"]
["Work Email:"]
["INTERNETrhill@taxcreditservices.com"]
[]
["Website: http://www.taxcreditservices.com"]
["Tax Credit Services, LLC. (TCS) is rapidly growing as a nationally recognized provider of federal, state and local tax services. TCS identifies, secures and administers valuable government incentives for our clients, thereby improving their financial performance and reducing their effective tax rate, bringing true value to the bottom line."]
["At TCS we are dedicated to customer profitability and our success has been measured by a commitment to be solely focused on the business of tax credits and government incentives and have been doing so since 2001. We save companies thousands of dollars every year by capturing government monies to which they are entitled but that often go unclaimed. This is most evident in the way we charge for services. We generally work on a contingency fee basis, allowing companies to see first hand our value without any out of pocket contingencies. You don’t pay anything unless we are able to produce tax credits for your company."]
["Add to Address Book Updated 14 days agoReturn to top."]
["Dan Hurst "]
["President"]
["Strata-G"]
["2027 Castaic Lane"]
["Knoxville  TN  37932"]
["United States home"]
["Work Phone: work865-934-3400"]
["Work Email:"]
["INTERNETdhurst@strataG.org"]
[]
["Website: http://www.stratag.org"]
["We Care"]
["We treat our customers"]
["and our employees as we"]
["wish to be treated."]
["Integrity"]
["We are honest and ethical in every endeavor."]
["Service"]
["We continuously strive to please our customers and to exceed their expectations."]
["Quality"]
["We maintain a culture of continuous improvement."]
["Safety"]
["We hold paramount the safety and health of our associates, our customers, the public, and the environment."]
["Innovation"]
["We develop creative solutions to better serve our customers."]
["Attitude"]
["We maintain a positive attitude and value humor."]
["Outreach"]
["We share the results of our successes with the community."]
["Add to Address Book Updated 14 days agoReturn to top."]
["Cecil Jones "]
["Principal Analyst - Energy"]
["Calibre"]
["4900 University Square"]
["Huntsville  AL  35816"]
["United States home"]
["Work Phone: work256-217-1677"]
["Home Phone: home703-600-3614"]
["Home Phone: home703-498-7614"]
["Work Email:"]
["INTERNETCecil.Jones@calibresys.com"]
[]
["Website: http://www.calibresys.com"]
["CALIBRE provides a wide range of energy management and integration support.  Our services include audit and validation, energy management systems, energy management training, energy planning and analysis, energy security assessment, smart grid interoperability, and sustainability planning and advisory."]
["Add to Address Book Updated 26 days agoReturn to top."]
["Susan Lee "]
["Huntsville  AL  home"]
["Work Phone: work256-503-3502"]
["Work Email:"]
["INTERNETsosusan@bellsouth.net"]
[]
["Add to Address Book Updated 13 days agoReturn to top."]
[]
["Bill Mara "]
["Account Executive"]
[]
["Ameresco"]
[]
["4655 Rosebud Lane"]
["Newburgh  IN  47630"]
["United States home"]
[]
["Work Phone: work866-200-5675 x3911"]
[]
["Work Email:"]
["INTERNETbmara@ameresco.com"]
[]
["Website: http://www.ameresco.com"]
["Add to Address Book Updated 13 days agoReturn to top."]
["Shaquinta Morgan "]
["Roxbury Consulting"]
["Work Phone: work256-724-0890"]
["Home Phone: home256-529-8855"]
["Work Email:"]
["INTERNETShaquinta@theroxburycompany.com"]
[]
["Website: http://www.ventoori.com/"]
["Website under construction - Coming Soon"]
["Add to Address Book Updated 13 days agoReturn to top."]
["Michele Morris "]
["V.P. Finance and Business Administration"]
["Government Energy Solutions Inc."]
["PO Box 5326"]
["Huntsville  AL  35814"]
["United States home"]
["Work Phone: work256-704-0422"]
["Website: http://www.govesi.com"]
["Ms. Morris has more than twenty years experience in a broad range of finance and accounting positions and has served as accounting group manager and financial controller in both small growth companies and fortune 500 organizations.  She has led a number of accounting system upgrades and replacement projects moving from Deltek to the CostPoint system. As controller for a major university she supervised the accounting organization staff, prepared budgets, ensured optimal expenditure control, managed all accounting records and bank accounts, coordinated both internal and external audits and led the institute’s cash, investment, and risk management programs. As financial controller for a major aerospace company operation she was the service center administrator, performed account reconciliations, managed the labor and accounts payable department, served as the business unit lead for a major software implementation and led the branch office on the remediation efforts of Sarbanes Oxley Compliance. Ms. Morris holds an MBA with Emphasis in Accounting from the University of Phoenix and a BBA with Emphasis in Accounting from Athens State University."]
["Add to Address Book Updated 13 days agoReturn to top."]
["Matt Mueller "]
["HVAC"]
["Mueller Mechanical"]
["Work Phone: work256-604-9249"]
["Work Email:"]
["INTERNETmatt@muellermechanical.com"]
[]
["Website: http://www.muellermechanical.com"]
["Air Conditioning and Appliance Service and Repair Servicing the Huntsville and Madison, AL area with 15 years experience in HVAC/R."]
["Add to Address Book Updated 13 days agoReturn to top."]
["Jay Newkirk "]
["V.P. Strategic Business Development"]
["Government Energy Solutions Inc."]
["PO Box 5326"]
["Huntsville  AL  35814"]
["United States home"]
["Work Phone: work256-704-0422"]
["Work Email:"]
["INTERNETjnewkirk@govesi.com"]
[]
["Website: http://www.govesi.com"]
["Mr. Newkirk until recently was President and CEO of Carina Technology, Inc. In that capacity he led a team of 36 professionals including software, systems integrators, sales and marketing professionals and senior business administrators.   Mr. Newkirk has had a distinguished career in computer based management information systems and applied mathematics in the field of commercial and government aerospace applications for over four decades. He was the co-founder of Computer Systems Technology, Inc. (CST), an information technology support services company and served as the Director of Operations and later managed the Strategic Business Development activity.  Following the sale of CST, Mr. Newkirk formed JNE Investments, Inc. which manages a diverse real estate, business and stock investment portfolio. Mr. Newkirk serves on several Advisory Boards for emerging technology companies as well as on non-profit civic organization boards. Mr. Newkirk received a Bachelor of Science degree in Mathematics from Lynchburg College and has completed graduate studies in mathematics and operations research at the University of Alabama, Huntsville."]
["Add to Address Book Updated 13 days agoReturn to top."]
["Rebecca Newman "]
["President/ CEO"]
["Interglobal Corporation"]
["10110 Shades Road"]
["Huntsville  AL  35802"]
["United States home"]
["Work Phone: work256-755-7691"]
["Work Fax: workfax256-562-0024"]
["Work Email:"]
["INTERNETrebecca.newman@interglobalco.com"]
[]
["Website: http://www.interglobalcorporation.com/"]
["InterGlobal's Vision is to be a top leader in Logistics, Information Technology,  and Program Management and to be a pioneer in the Research and Development (R&D) Alternative Energy field by bringing together diversified, top talent and form a tremendous team of unified individuals who's education and past performance have proven customer excellence.   InterGlobal  uniquely provides the utmost services at fair prices to our customers through our ethical business practices."]
["Add to Address Book Updated 13 days agoReturn to top."]
["Sally Parsons "]
["Booz Allen Hamilton"]
["6703 Odyssey Dr. Suite 200"]
["Huntsville  AL  35806"]
["United States home"]
["Work Phone: work256-922-2760"]
["Work Email:"]
["INTERNETparsons_sally@bah.com"]
[]
["Website: http://www.boozallen.com/"]
["Since 1914, government agencies, corporations, institutions, and infrastructure organizations have relied on Booz Allen Hamilton’s consulting services, information technology capabilities, and systems engineering and integration expertise to find solutions and seize opportunities.  They combine a consultant’s unique problem-solving orientation with deep technical knowledge and strong execution to help clients achieve success in their most critical missions."]
["Add to Address Book Updated 13 days agoReturn to top."]
["Tony Puckett "]
["VP & Dir. Of Engineering"]
["Erica Lane Enterprises, Inc. (Ele)"]
["2905 Westcorp BLVD. Suite 114"]
["Huntsville  AL  35805"]
["United States home"]
["Work Phone: work256-536-7117"]
["Work Fax: workfax256-533-7133"]
["Cell Phone: cell256-508-3220"]
["Work Email:"]
["INTERNETtpuckett@eleinc.com"]
[]
["Website: http://www.eleinc.com/"]
["eLe’s Resource Efficiency Management (REM) Program provides services to increase the effectiveness of Government installations’ energy programs by reducing energy and water costs through the implementation of cost-effective programs and practices derived from a review of available data and processes. The program is designed to be self-sustaining in that the costs of the program are more than offset by savings generated."]
["Add to Address Book Updated 10 days agoReturn to top."]
["Bob Quick "]
["REM Prog. Manager"]
["Erica Lane Enterprises, Inc. (Ele)"]
["2905 Westcorp BLVD. Suite 114"]
["Huntsville  AL  35805"]
["United States home"]
["Work Phone: work256-536-7117"]
["Work Fax: workfax256-533-7133"]
["Cell Phone: cell256-508-4209"]
["Work Email:"]
["INTERNETbquick@eleinc.com"]
[]
["Website: http://www.eleinc.com/"]
["eLe’s Resource Efficiency Management (REM) Program provides services to increase the effectiveness of Government installations’ energy programs by reducing energy and water costs through the implementation of cost-effective programs and practices derived from a review of available data and processes. The program is designed to be self-sustaining in that the costs of the program are more than offset by savings generated."]
["Add to Address Book Updated 10 days agoReturn to top."]
["Mark Rubino "]
["Stay Sail LLC"]
["5000 Granstswood Road"]
["Irondale  AL  35210"]
["United States home"]
["Work Phone: work205-451-1492"]
["Work Email:"]
["INTERNETmrubino@staysailgroup.com"]
[]
["Website: http://www.staysailgroup.com/"]
["Staysail Group is a management services firm that understands it takes more than just a solid strategy to stay afloat in a turbulent market...it takes execution.  Though we have guided some of the world’s leading corporations, our focus is on business ‘gazelles’ which have the potential to accelerate and grow at a rapid rate.  These are the organizations that as they reach their potential, the water level rises for everyone."]
["Add to Address Book Updated 13 days agoReturn to top."]
["Mark Russell "]
["President"]
["Elegant Consulting Solutions"]
["PO Box 1122"]
["Goodlettsville  TN  37070"]
["United States home"]
["Work Phone: work615-945-1323"]
["Work Email:"]
["INTERNETmark_d_russell@bellsouth.net"]
[]
["Website: http://elegantconsultingsolutions.com/"]
["Mark Russell founded Elegant Consulting Solutions, LLC in 2009. As the Vice President of Research and Development from 2005 until 2009 at Span Tech LLC, he developed patent-pending technology that addressed a longstanding problem with conveyor cleanliness. With this technology development company specializing in material handling solutions for the food-processing and pharmaceutical industries, his responsibilities included development of product designs, new product launches, applied research in new technologies, submission of research results for patent applications, quality assurance for production, and development of custom design software."]
["Add to Address Book Updated 13 days agoReturn to top."]
["Michael Shelton "]
["President/ Analyst"]
["CI Concepts"]
["213 Riverwalk Trail"]
["New Market  AL  35761"]
["United States home"]
["Work Phone: work256-933-0043"]
["Work Phone: work724-989-2907"]
["Work Email:"]
["INTERNETmshelton@ciconcepts.biz"]
[]
["Website: http://www.ciconcepts.biz"]
["Michael Shelton, President of CI Concepts has worked in manufacturing, operations, and quality roles in industry for over 25 years. His experience include both Fortune 500 Companies and Small privately held companies and understands the differences involved to get to the next level."]
["Add to Address Book Updated 12 days agoReturn to top."]
["Phillip Simon "]
["InterGlobal Corporation"]
["10110 Shades Road"]
["Huntsville  AL  35802"]
["United States home"]
["Work Phone: work256-529-0335"]
["Work Email:"]
["INTERNETppsimon100@gmail.com"]
[]
["Website: http://www.interglobalcorporation.com/"]
["InterGlobal's Vision is to be a top leader in Logistics, Information Technology, and Program Management and to be a pioneer in the Research and Development (R&D) Alternative Energy field by bringing together diversified, top talent and form a tremendous team of unified individuals who's education and past performance have proven customer excellence. InterGlobal uniquely provides the utmost services at fair prices to our customers through our ethical business practices."]
["Add to Address Book Updated 12 days agoReturn to top."]
["Ruchi Singhal "]
["Director"]
["Nexus Energy Center"]
["200 Westside Square, Suite 53"]
["Huntsville  AL  35801"]
["United States home"]
["Work Phone: work256-539-6225"]
["Work Email:"]
["INTERNETruchi@nexusenergycenter.org"]
[]
["Website: http://www.nexusenergycenter.org"]
["Located in Huntsville, Alabama, the Nexus Energy Center is a consortium of talented partners dedicated to bringing energy solutions to Alabama and the United States. The primary objectives for the Center will be to foster education/outreach and economic development for local businesses, universities, entrepreneurs and the community at-large dedicated to new energy strategies for America. The Center will strive to promote and facilitate a balance of analysis and creativity while focusing on the conservation, generation, storage, and transmission of energy."]
["Add to Address Book Updated 12 days agoReturn to top."]
["Julie Soutuyo "]
["Manager, Mission Assurance"]
["Ares Corporation"]
["200 Sparkman Drive, Suite 1"]
["Huntsville  AL  35805"]
["United States home"]
["Work Phone: work256-489-5200"]
["Work Fax: workfax256-489-5201"]
["Work Phone: work703-862-0819"]
["Work Email:"]
["INTERNETjsoutuyo@arescorporation.com"]
[]
["Website: http://www.arescorporation.com"]
["ARES Corporation is one of the foremost Engineering, Project Management, Safety & Risk Management, and Software Solutions companies in the United States. We differentiate ourselves from our competition because we truly live up to our mission, which is to provide superior-quality products and services, on time and within budget. We do this routinely! With a top-notch team of engineers, scientists, and other professionals, ARES focuses on solving industry’s most complex technical challenges in the key areas of energy, defense, aerospace, the environment and critical infrastructure."]
["Add to Address Book Updated 12 days agoReturn to top."]
["Joe Sparks "]
["Booz Allen Hamilton"]
["6703 Odyssey Dr, Suite 200"]
["Huntsville  AL  35806"]
["United States home"]
["Work Phone: work256-922-2766"]
["Work Email:"]
["INTERNETsparks_joe@bah.com"]
[]
["Website: http://www.boozallen.com/"]
["Since 1914, government agencies, corporations, institutions, and infrastructure organizations have relied on Booz Allen Hamilton’s consulting services, information technology capabilities, and systems engineering and integration expertise to find solutions and seize opportunities.  They combine a consultant’s unique problem-solving orientation with deep technical knowledge and strong execution to help clients achieve success in their most critical missions."]
["Add to Address Book Updated 12 days agoReturn to top."]
["Gordon Stark "]
["Director"]
["Source Corp"]
["120 Firestone"]
["Duluth  GA  30097"]
["United States home"]
["Work Phone: work678-640-4810"]
["Work Email:"]
["INTERNETgordon.stark@sourcecorptax.com"]
[]
["Website: http://www.sourcecorptax.com"]
["As a company committed to trust and service, we will become the nation’s leading specialized business tax consulting firm as we maintain mutually beneficial, long-term relationships, provide value-creating resources, and act responsibly to help our clients and our team members achieve their goals."]
["Add to Address Book Updated 12 days agoReturn to top."]
["Kellee Tipton "]
["Office Manager"]
["Tipton Heating and Cooling, Inc."]
["1678 Joe Quick Rd."]
["New Market  AL  35761"]
["United States home"]
["Work Phone: work256-828-4806"]
["Work Email:"]
["INTERNETkelleeT1973@aol.com"]
[]
["Website: http://www.tiptonhvac.com/"]
["At Tipton Heating and Cooling, we offer much more than just heating and cooling systems and air purification. Our goal is to provide your family with an unsurpassed level of quality, trust and comfort. That’s why we offer free in-home estimates and back every installation with 24/7 emergency service."]
["Add to Address Book Updated 12 days agoReturn to top."]
["Mathew Underwood "]
["Energy Efficiency Coordinator"]
["Nexus Energy Center"]
["200 Westside Square, Suite 53"]
["Huntsville  AL  35801"]
["United States home"]
["Work Phone: work256-539-6272"]
["Work Email:"]
["INTERNETmathew@nexusenergycenter.org"]
[]
["Website: http://www.nexusenergycenter.org"]
["Located in Huntsville, Alabama, the Nexus Energy Center is a consortium of talented partners dedicated to bringing energy solutions to Alabama and the United States. The primary objectives for the Center will be to foster education/outreach and economic development for local businesses, universities, entrepreneurs and the community at-large dedicated to new energy strategies for America. The Center will strive to promote and facilitate a balance of analysis and creativity while focusing on the conservation, generation, storage, and transmission of energy."]
["Add to Address Book Updated 12 days agoReturn to top."]
["Cole Walker "]
["Chairman"]
["United Properties, Nexus Energy Center"]
["200 Westside Square, Suite 53"]
["Huntsville  AL  35801"]
["United States home"]
["Work Email:"]
["INTERNETcolewalker@me.com"]
[]
["Website: http://www.nexusenergycenter.org"]
["Cole has a Master’s of Science in Instructional Technology from Georgia State University and Bachelor’s in Civil Engineering from the University of Alabama. He is a Partner in United Properties, a company that develops, owns and manages medical and professional offices as well as retail centers. His work and awards while residing in Atlanta included the founding of Atlanta New Century School, Volunteer of the Year, Legend of Fairlie Poplar, Rising Star of Atlanta, and Dossier magazine’s Atlanta Hall of Fame, plus named a mover and shaker in the field of education. After relocating to Huntsville, Mr. Walker has been instrumental in the founding of the North Alabama Chapter of the USGBC and currently serves as Treasurer."]
["Add to Address Book Updated 12 days agoReturn to top."]
["Phil Wendling "]
["President CEO"]
["Government Energy Solutions Inc."]
["PO Box 5326"]
["Huntsville  AL  35814"]
["United States home"]
["Work Phone: work256-656-6743"]
["Work Email:"]
["INTERNETpwendling@govesi.com"]
[]
["Website: http://www.govesi.com"]
["Mr. Wendling has more than twelve years experience in computer systems infrastructure and network systems analysis and support.  He has been project manager for a number of significant information system deployments and has contributed directly to design, test and integration of large classified information technology network systems for the U.S. Army Space and Missile Defense Command and Missile Defense Agency.  Mr. Wendling’s previous experience is directly applicable to his previous responsibility which included leading the project management team members for Carina Technology deployment projects and managing the integration of Carina’s hardware and software systems into customers’ computing infrastructure.  Mr. Wendling served in the military with the United States Marine Corps and was deployed to the Middle East during Operation Desert Shield/Desert Storm in 1990. Mr. Wendling holds a Bachelors degree in Computer Information Systems from the University of North Alabama."]
["Add to Address Book Updated 12 days agoReturn to top."]
["Scotty Winfrey "]
["Consultant"]
["Energy & Environmental Consulting Group"]
["1300 Central Parkway"]
["Decatur  AL  35601"]
["United States home"]
["Work Phone: work256-655-2671"]
["Work Email:"]
["INTERNETscotty@e2-cg.com"]
[]
["Website: http://www.e2-cg.com/"]
["E2CG is based out of Decatur, AL, with a satelite office in Auburn, Al. We provide an array of services, including: Air Barrier Testing, Envelope Consulting, Infrared Thermography, Engineering Services, Building FOrensics, Consultation on Air Barrier design, Mold Remediation, Indoor Air Quality, HVAC Diagnositcs, LEED Consulting, and Energy Modeling."]
["Add to Address Book Updated 12 days agoReturn to top."]

{"sheet":"Energy Efficiency Technologies","index":4,"n_rows":435,"n_cols":3,"rows_kept":435,"cut":false,"hidden":false,"merged":[]}
[null,"Email from Macro","Corrected Email"]
[null,"INTERNETpeter.beucher@wlv.com",{"$f":"RIGHT(B2, LEN(B2)-8)","v":"peter.beucher@wlv.com"}]
[null,"INTERNETpjbeucher@comcast.net","pjbeucher@comcast.net"]
[null,"INTERNETaustin.boyd@inergi.com","austin.boyd@inergi.com"]
[null,"INTERNETkeith.bucher@seigroupinc.com","keith.bucher@seigroupinc.com"]
[null,"INTERNETchristie.coplen@mbtech-group-na.com","christie.coplen@mbtech-group-na.com"]
[null,"INTERNETkeith.dickerson@us.schneider-electric.com","keith.dickerson@us.schneider-electric.com"]
[null,"INTERNETotbox@bellsouth.net","otbox@bellsouth.net"]
[null,"INTERNETdaryl.glass@buildings.schneider-electric.com","daryl.glass@buildings.schneider-electric.com"]
[null,"INTERNETdaryl.glass@buildings.schneider-electric.com","daryl.glass@buildings.schneider-electric.com"]
[null,"INTERNETjholley@calhoun.edu","jholley@calhoun.edu"]
[null,"INTERNETallenhoover@sbcglobal.net","allenhoover@sbcglobal.net"]
["Add to Address Book Updated 188 days agoReturn to top.","INTERNETjeneen.horton@tema.toyota.com","jeneen.horton@tema.toyota.com"]
["Peter Beucher ","INTERNETdon.jarman@eximian.com","don.jarman@eximian.com"]
["Director","INTERNETjonesma@ctc.com","jonesma@ctc.com"]
["Wolverine","INTERNETmark.kelly@seigroupinc.com","mark.kelly@seigroupinc.com"]
["3023 Hampton Cove Way","INTERNETpfkern@gmail.com","pfkern@gmail.com"]
["Hampton Cove  AL  35803","INTERNETking902284@bellsouth.net","king902284@bellsouth.net"]
["United States home","INTERNETsteven.lambert@seigroupinc.com","steven.lambert@seigroupinc.com"]
["Work Phone: work256-990-0225","INTERNETandrealee@automatedcontrolsinc.com","andrealee@automatedcontrolsinc.com"]
["Work Email:","INTERNETlynn.leeper@aztechnology.com","lynn.leeper@aztechnology.com"]
["INTERNETpeter.beucher@wlv.com","INTERNETashok@mtronics.com","ashok@mtronics.com"]
[null,"INTERNETed.massey@tbe.com","ed.massey@tbe.com"]
["Personal Email:","INTERNETjack.mccauley@schneider-electric.com","jack.mccauley@schneider-electric.com"]
["INTERNETpjbeucher@comcast.net","INTERNETgmiller@greencitegroup.com","gmiller@greencitegroup.com"]
[null,"INTERNETa.reddy@asburysoftware.com","a.reddy@asburysoftware.com"]
["Linked-in","INTERNETjim.roy@quantitech.com","jim.roy@quantitech.com"]
[null,"INTERNETmazillo@hotmail.com","mazillo@hotmail.com"]
["Website: http://www.microcooling.com","INTERNETkelleeT1973@aol.com","kelleeT1973@aol.com"]
["Wolverine is a global leader in offering proprietary custom-engineered components that provide a thermal management solution for our customers in multiple markets including HVAC, refrigeration and appliance, electronics cooling, power generation, petrochemical and chemical processing. We deliver the most advanced metal surface technology enhancements for heat transfer solutions in today","INTERNETeloy.torrez@seigroupinc.com","eloy.torrez@seigroupinc.com"]
["Add to Address Book Updated 203 days agoReturn to top.","INTERNETvvega@gatr.com","vvega@gatr.com"]
["Randy Blackwood "]
["Inline Electric"]
["2880 Bob Wallace Ave"]
["Huntsville  AL  35805"]
["United States home"]
["Work Phone: work256-533-2851"]
["Cell Phone: cell256-990-0048"]
["Inline opened its doors in 1988 in Huntsville, AL with a strategy to be (the best place in town for electrical contractors as well as commercial, institutional, and industrial customers to trade for their day-to-day electrical supplies"]
["Add to Address Book Updated 188 days agoReturn to top."]
["Austin Boyd "]
["Chief Executive Officer"]
["Inergi"]
["3414-A Governors Drive"]
["Huntsville  AL  35805"]
["United States home"]
["Work Phone: work256-705-6168"]
["Work Phone: work256-704-7700 x 137"]
["Cell Phone: cell256-679-0689"]
["Work Fax: workfax888-629-5673"]
["Work Fax: workfax256-704-7704"]
["Work Email:"]
["INTERNETaustin.boyd@inergi.com"]
[]
["Website: http://www.inergi.com"]
["Product development can be a daunting task. Inergi's powerful, multi-disciplinary team of engineers and creative professionals is dedicated to transforming your concept into a dynamic design that will excite and engage customers."]
["Add to Address Book Updated 174 days agoReturn to top."]
["Keith Bucher "]
["VP Technology"]
["SEI Group Inc."]
["303 Williams Ave.,S.W., Ste. 135"]
["Huntsville  AL  35801"]
["United States home"]
["Work Phone: work256-533-0500"]
["Work Email:"]
["INTERNETkeith.bucher@seigroupinc.com"]
[]
["Website: http://www.seigroupinc.com"]
["SEI Group, Inc. (SEI) is a minority owned Huntsville, Alabama Corporation, founded in 1996 by Eloy J. Torrez. SEI graduated from the SBA 8(a) program in 2006, and is currently a Small Disadvantaged Business (SDB). SEI offers customers, such as government agencies and commercial organizations, products and services in Solutions, Energy Technologies, and Infrastructure."]
["Add to Address Book Updated 187 days agoReturn to top."]
["Christie Coplen "]
["Director - Full Vehicle Engineering"]
["Mercedes Benz Technology"]
["400 East Big Beaver"]
["Troy  MI  48084"]
["United States home"]
["Work Phone: work248-434-5697"]
["Work Phone: work248 703 2576"]
["Work Email:"]
["INTERNETchristie.coplen@mbtech-group-na.com"]
[]
["Website: http://www.mbtech-group.com/eu-en/company/home.html\",\"http://www.mbtech-group.com/eu-en/company/home.html"]
["Director - Full Vehicle & Chassis Engineering at Mercedes-Benz Technology Greater Detroit Area Globally active and an international leader: With more than 2,700 employees we provide our customers with the decisive advantage. We are there for you worldwide with engineering and consulting services. We think globally and look to the future. We embrace the product creation process and product lifecycles in their entirety. Our customer orientation is at the heart of our corporate philosophy. We work in flexible, interdisciplinary project teams and in close cooperation with our customers and partners. Our people mobilize all their experience, knowledge, professionalism, and commitment to make our customers succeed. Our employees bring along a diversity of experience from every corner of the international automotive industry, from manufacturers and suppliers to consultancies and more. Our people are quality conscious, reliable, and always available, so that we can achieve perfection and serve it up with an ample portion of commitment and an extra dash of sophistication. The knowledge and experience of our staff is bolstered by the latest technology, tools, and processes for engineering, numeric calculation, simulation, and testing. We can thus pull off tailored solutions with precision."]
["Add to Address Book Updated 26 days agoReturn to top."]
["Keith Dickerson "]
["SE Region Business Development Manager | Federal Segment"]
["Schneider Electric"]
["225 Townpark Dr. Suite 400"]
["Kennesaw  GA  30144"]
["United States home"]
["Work Phone: work770-792-4838"]
["Work Phone: work770-330-8387"]
["Work Email:"]
["INTERNETkeith.dickerson@us.schneider-electric.com"]
[]
["Website: http://www.schneider-electric.us/sites/us/en/home.page"]
["Today, energy is at the heart of every ones concern. More than ever, the current situation compels each and everyone to achieve more while using fewer resources. Global specialist in energy management, Schneider Electric makes energy safe, reliable, efficient, productive and green. How? Simply by making energy visible and gives you the means to act to optimise its consumption."]
["Add to Address Book Updated 26 days agoReturn to top."]
["Harvey Fest "]
["Inline Lighting & Electric"]
["P.O. Box 7267"]
["Huntsville  AL  35807"]
["United States home"]
["Work Phone: work256-533-2851"]
["Website: http://www.inlinelighting.com/"]
["Inline opened its doors in 1988 in Huntsville, AL with a strategy to be \"the best place in town for electrical contractors as well as commercial, institutional, and industrial customers to trade for their day-to-day electrical supplies...\""]
["Add to Address Book Updated 26 days agoReturn to top."]
["Robert Gamble "]
["GreenCite Group"]
["3116 Triana Blvd."]
["Huntsville  AL  35805"]
["United States home"]
["Work Phone: work256-303-9184"]
["Work Fax: workfax866-711-5866"]
["Work Email:"]
["INTERNETotbox@bellsouth.net"]
[]
["Website: http://www.greencitegroup.com/"]
["Fireproofing, Waterproofing Contractors"]
["Add to Address Book Updated 26 days agoReturn to top."]
["Daryl Glass "]
["National Account Manager - Federal Buildings Business"]
["Schneider Electric"]
["1650 W. Crosby Rd."]
["Carrollton  TX  75006"]
["home"]
["Work Phone: work972-323-1111"]
["Work Phone: work469-426-9357"]
["Work Email:"]
["INTERNETdaryl.glass@buildings.schneider-electric.com"]
[]
["Website: http://www.schneider-electric.us/go/buildings"]
["Add to Address Book Updated 14 days agoReturn to top."]
["Daryl Glass "]
["National Account Manager - Federal Buildings Business"]
["Schneider Electric"]
["1650 W. Crosby Rd."]
["Carrollton  TX  75006"]
["home"]
["Work Phone: work972-323-1111"]
["Work Phone: work469-426-9357"]
["Work Email:"]
["INTERNETdaryl.glass@buildings.schneider-electric.com"]
[]
["Website: http://www.schneider-electric.us/go/buildings"]
["Add to Address Book Updated 26 days agoReturn to top."]
["John Holley "]
["ACR Instructor"]
["Calhoun Community College"]
["PO Box 2216"]
["Decatur  AL  35609"]
["United States home"]
["Work Phone: work256-306-2865"]
["Work Email:"]
["INTERNETjholley@calhoun.edu"]
[]
["Website: http://www.calhoun.edu"]
["Calhoun Community College exemplifies the two-year college mission of commitment to excellence in teaching and service and is the region's leader in education and workforce development."]
["Add to Address Book Updated 14 days agoReturn to top."]
["Allen Hoover "]
["Owner"]
["Thermal Corrosion Solutions"]
["6515 Goodman Road"]
["Olive Branch  MS  38654"]
["United States home"]
["Work Phone: work901-674-1896"]
["Work Phone: work662-893-8522"]
["Work Email:"]
["INTERNETallenhoover@sbcglobal.net"]
[]
["Website: http://www.thermalcorrosionsolutions.com/"]
["TCS is an independent contractor specializing in the development of industrial, commercial, and residential insulating solutions. TCS draws on more than 20 years of experience to develop unique and customized solutions for each project to arrest corrosion and oxidation, prevent thermal transfer, and extend the lifespan of equipment, while reducing the overall costs of operation."]
["Add to Address Book Updated 14 days agoReturn to top."]
["Jeneen Horton "]
["Environmental Specialist"]
["Toyota Motor Manufacturing"]
["1 Cottonvalley Drive"]
["Huntsville  AL  35810"]
["United States home"]
["Work Phone: work256-746-5611"]
["Work Phone: work256-683-1192"]
["Work Email:"]
["INTERNETjeneen.horton@tema.toyota.com"]
[]
["Website: http://www.toyota.com/about/our_business/engineering_and_manufacturing/tema/"]
["The first Toyota V8 engine outside Japan came off the line at our Alabama plant in 2003. TMMAL now manufactures V6 and V8 engines for Tacoma and Tundra pickup trucks and the Sequoia full-size sport utility vehicle.*"]
["*Toyota vehicles and components are built using U.S. and globally sourced parts. All data as of December 2009."]
["Add to Address Book Updated 14 days agoReturn to top."]
["Don Jarman "]
["Eximian"]
["1003 Brookridge Circle"]
["Huntsville  AL  35801"]
["United States home"]
["Work Phone: work256-426-4900"]
["Work Email:"]
["INTERNETdon.jarman@eximian.com"]
[]
["Website: http://eximian.com/"]
["EXIMIAN is Huntsville, Alabama's first Global Investment Think-Tank with focus on building virtual global enterprises investments that can be easily exported to emerging markets. EXIMIAN utilizes a unique think-tank / alliance-partner strategy that quickly unites capital, technology and people for rapid business integration and value creation throughout the global marketplace."]
["Add to Address Book Updated 14 days agoReturn to top."]
["Matthew (Carter) Jones "]
["Program Director, Business Development"]
["Concurrent Technologies Corporation"]
["15091 Alabama Highway 20 Suite A"]
["Huntsville  AL  35756"]
["United States home"]
["Work Phone: work256-560-6612"]
["Work Fax: workfax256-560-6605"]
["Work Phone: work256-679-2242"]
["Work Email:"]
["INTERNETjonesma@ctc.com"]
[]
["Website: http://www.ctc.com"]
["We are an independent, nonprofit, applied research and developmental professional services organization providing innovative management and technology-based solutions to a wide array of clients representing federal and state agencies and the private sector."]
["Add to Address Book Updated 14 days agoReturn to top."]
["Mark Kelly "]
["SEI Group Inc."]
["303 Williams Ave.,S.W., Ste. 135"]
["Huntsville  AL  35801"]
["United States home"]
["Work Phone: work256-533-0500, 329"]
["Work Fax: workfax256-289-5759"]
["Work Email:"]
["INTERNETmark.kelly@seigroupinc.com"]
[]
["Website: http://www.seigroupinc.com/"]
["SEI Group, Inc. (SEI) is a minority owned Huntsville, Alabama Corporation, founded in 1996 by Eloy J. Torrez. SEI graduated from the SBA 8(a) program in 2006, and is currently a Small Disadvantaged Business (SDB). SEI offers customers, such as government agencies and commercial organizations, products and services in Solutions, Energy Technologies, and Infrastructure."]
["Add to Address Book Updated 14 days agoReturn to top."]
["Phil Kern "]
["President"]
["Green Lighting Corporation"]
["5732 Jones Valley Drive"]
["Huntsville  AL  35802"]
["United States home"]
["Work Phone: work256-527-3081"]
["Work Email:"]
["INTERNETpfkern@gmail.com"]
[]
["Furniture and Home Finishings"]
["Add to Address Book Updated 14 days agoReturn to top."]
["Charles King "]
["CEO"]
["King Electronic Packaging"]
["1609 Wintergreen Ct."]
["Huntsville  AL  35806"]
["United States home"]
["Work Phone: work256-698-6233"]
["Work Email:"]
["INTERNETking902284@bellsouth.net"]
[]
["Quality Management System Development ISO-9001 2008 and CMMI. Advanced electronic packaging hardware. Material set consultant for high density circuit boards and emerging sub .5mm packages."]
["Add to Address Book Updated 13 days agoReturn to top."]
["Steven Lambert "]
["Director of Research and Development, Senior Mechanical Engineer"]
["SEI Group Inc."]
["303 Williams Ave.,S.W., Ste. 135"]
["Huntsville  AL  35801"]
["United States home"]
["Work Phone: work256-533-0500"]
["Home Phone: home256-533-5516"]
["Home Phone: home205-887-5614"]
["Work Email:"]
["INTERNETsteven.lambert@seigroupinc.com"]
[]
["Website: http://www.seigroupinc.com"]
["SEI Group, Inc. (SEI) is a minority owned Huntsville, Alabama Corporation, founded in 1996 by Eloy J. Torrez. SEI graduated from the SBA 8(a) program in 2006, and is currently a Small Disadvantaged Business (SDB). SEI offers customers, such as government agencies and commercial organizations, products and services in Solutions, Energy Technologies, and Infrastructure."]
["Add to Address Book Updated 13 days agoReturn to top."]
["Andrea Lee "]
["Account Executive"]
["Automated Controls, Inc."]
["P.O. Box 583"]
["Huntsville  AL  35804"]
["United States home"]
["Work Phone: work256-650-5321"]
["Work Fax: workfax256-883-5332"]
["Work Phone: work256-990-9580"]
["Work Email:"]
["INTERNETandrealee@automatedcontrolsinc.com"]
[]
["Website: http://www.automatedcontrolsinc.com"]
["Add to Address Book Updated 26 days agoReturn to top."]
["Lynn Leeper "]
["CEO/ President"]
["AZ Technology"]
["7047 Old Madison Pike, Suite 300"]
["Huntsville  AL  35806"]
["home"]
["Work Phone: work256-837-9877"]
["Work Fax: workfax256-837-1155"]
["Work Email:"]
["INTERNETlynn.leeper@aztechnology.com"]
[]
["Website: http://www.aztechnology.com"]
["AZ Technology has been specializing in scientific and engineering research and development since 1989. A woman– and service-disabled-veteran-owned small business, the company has par-ticular expertise in electromechanical-optical design and hardware integra-tion, advanced materials and coatings, chemical processes, information tech-nology, and in the development of hardware systems for scientific measurement."]
["Add to Address Book Updated 13 days agoReturn to top."]
["Ashok Mahbubani "]
["President & CEO"]
["Mtronics VMI, LLC"]
["325-F Electronics Boulevard"]
["Huntsville  AL  35824"]
["United States home"]
["Work Phone: work256-461-8883"]
["Work Fax: workfax256-461-8538"]
["Work Email:"]
["INTERNETashok@mtronics.com"]
[]
["Website: http://www.mtronics.com"]
["Multitronics VMI, LLC, is a TS-16949"]
["registered manufacturer of high volume electromechanical assemblies built to the"]
["exacting standards of the automotive electronics industry."]
[]
["MVMI also provides process engineering,"]
["quality containment, technical and VMI logistics support to other companies in"]
["the automotive supply chain.  Since 1987, it has been our privilege to serve"]
["some of the finest OEMs and Tier 1 Suppliers in the world."]
["Add to Address Book Updated 13 days agoReturn to top."]
["Ed Massey "]
["Director - Space Flight Hardware"]
["Teledyne Brown Engineering, Inc."]
["300 Sparkman Dr."]
["Huntsville  AL  35805"]
["United States home"]
["Work Phone: work256-726-5011"]
["Work Email:"]
["INTERNETed.massey@tbe.com"]
[]
["Website: http://www.tbe.com/space_flight_hardware.html"]
["From telemetry systems for early unmanned rockets to scientific equipment on the International Space Station, Teledyne Brown Engineering provides a wide variety of hardware qualified for space flight applications."]
["Add to Address Book Updated 13 days agoReturn to top."]
["Jack McCauley "]
["National Sales Manager, Federal Government"]
["Schneider Electric"]
["265 Mill Street, Suite 300"]
["Hagertown  MD  21740"]
["United States home"]
["Work Phone: work301-393-3303"]
["Work Fax: workfax859-817-7396"]
["Work Phone: work202-255-8807"]
["Work Email:"]
["INTERNETjack.mccauley@schneider-electric.com"]
[]
["Website: http://www.schneider-electric.us/sites/us/en/home.page"]
["Add to Address Book Updated 13 days agoReturn to top."]
["Gordon Miller "]
["GreenCite Group"]
["3116 Triana Blvd."]
["Huntsville  AL  35805"]
["United States home"]
["Work Phone: work256-303-9184"]
["Work Fax: workfax866-711-5866"]
["Work Email:"]
["INTERNETgmiller@greencitegroup.com"]
[]
["Website: http://www.greencitegroup.com"]
["Fireproofing, Waterproofing Contractors"]
["Add to Address Book Updated 13 days agoReturn to top."]
["Anil Reddy "]
["CEO"]
["Avani Corporation"]
["Work Phone: work256-503-5900"]
["Work Email:"]
["INTERNETa.reddy@asburysoftware.com"]
[]
["Linked-in"]
[]
["Energy Monitoring/Management and Automation solutions for Home and SME market. Just about ready to launch the product line, including Dimmer/Switches, Outlets, Water Heaters, Sprinkler Systems and iPhone/Android Interfaces."]
["Low cost and easy to install devices with touch control and power metering."]
["Add to Address Book Updated 13 days agoReturn to top."]
["Jim Roy "]
["Director and Senior Program Manager"]
["Quantitech"]
["7027 Old Madison Pike, Suite 106"]
["Huntsville  AL  35806"]
["United States home"]
["Work Phone: work256-799-0659"]
["Work Fax: workfax256-650-5569"]
["Work Phone: work256-714-1111"]
["Work Email:"]
["INTERNETjim.roy@quantitech.com"]
[]
["Website: http://www.quantitech.com"]
["Add to Address Book Updated 13 days agoReturn to top."]
["Sergey Sarkisov "]
["CEO"]
["SSS Optical Technologies"]
["515 Sparman Drive, Suite 122"]
["Huntsville  AL  35816"]
["United States home"]
["Work Phone: work256-489-0081"]
["Work Email:"]
["INTERNETmazillo@hotmail.com"]
[]
["Website: http://www.sssopticaltechnologies.com"]
["SSS Optical Technologies, LLC (SSSOT) is a small business located in Huntsville, Alabama, a short distance from NASA Marshall Space Flight Center, Redstone Arsenal, University of Alabama in Huntsville, Oakwood University, and Alabama Agricultural and Mechanical University. The company consists of a core of engineers and scientists; a supporting technical staff is augmented by key consultants. The company's expertise covers optical, mechanical, and electrical engineering, physics, chemistry, and material science. SSSOT develops and markets commercially viable optical technologies and products/services related to those technologies for applications ranging from basic research to complex industrial use. These technologies are covered with patents and provisional patent applications."]
["Add to Address Book Updated 13 days agoReturn to top."]
["Kellee Tipton "]
["Office Manager"]
["Tipton Heating and Cooling, Inc."]
["1678 Joe Quick Rd."]
["New Market  AL  35761"]
["United States home"]
["Work Phone: work256-828-4806"]
["Work Email:"]
["INTERNETkelleeT1973@aol.com"]
[]
["Website: http://www.tiptonhvac.com/"]
["At Tipton Heating and Cooling, we offer much more than just heating and cooling systems and air purification. Our goal is to provide your family with an unsurpassed level of quality, trust and comfort. That’s why we offer free in-home estimates and back every installation with 24/7 emergency service."]
["Add to Address Book Updated 12 days agoReturn to top."]
["Eloy Torrez "]
["SEI Group Inc."]
["303 Williams Ave.,S.W., Ste. 135"]
["Huntsville  AL  35801"]
["United States home"]
["Work Phone: work256-533-0500, 302"]
["Work Email:"]
["INTERNETeloy.torrez@seigroupinc.com"]
[]
["Website: http://www.seigroupinc.com"]
["SEI Group, Inc. (SEI) is a minority owned Huntsville, Alabama Corporation, founded in 1996 by Eloy J. Torrez. SEI graduated from the SBA 8(a) program in 2006, and is currently a Small Disadvantaged Business (SDB). SEI offers customers, such as government agencies and commercial organizations, products and services in Solutions, Energy Technologies, and Infrastructure."]
["Add to Address Book Updated 12 days agoReturn to top."]
["Victor Vega "]
["Engineering"]
["GATR Technologies"]
["11506 Gilleland Rd."]
["Huntsville  AL  35803"]
["United States home"]
["Work Phone: work256-698-9095"]
["Work Fax: workfax256-382-1336"]
["Work Email:"]
["INTERNETvvega@gatr.com"]
[]
["Linked-in"]
[]
["Perform engineering analysis and testing of antenna communication systems including: antenna analysis and testing, RF component assessment and testing, modem configuration, and IP network design and configuration. Organize and manage the antenna test area. Manage budget, personnel, and resources for smaller projects including the Co-Op projects. Aid the program manager on larger R&D programs with schedules, reports, demonstrations, and other key program milestones. Interface with customers through demonstration, training, and adoption of antenna technology."]
["Add to Address Book Updated 12 days agoReturn to top."]

{"sheet":"Energy Simulation","index":5,"n_rows":202,"n_cols":3,"rows_kept":202,"cut":false,"hidden":false,"merged":[]}
[null,"Email from Macro","Corrected Email"]
["Daniel Adamek ","INTERNETdanieladamek@gmail.com",{"$f":"RIGHT(B2, LEN(B2)-8)","v":"danieladamek@gmail.com"}]
["CohesionForce Inc.","INTERNETmichael.f.baran@saic.com",{"$f":"RIGHT(B3, LEN(B3)-8)","v":"michael.f.baran@saic.com"}]
["360C Quality Circle, Suite 320","INTERNETharold.brewer@irtc-hq.com","harold.brewer@irtc-hq.com"]
["Huntsville  AL  35806","INTERNETbulgatz@ama-inc.com","bulgatz@ama-inc.com"]
["United States home","INTERNETcalloway@ama-inc.com","calloway@ama-inc.com"]
["Work Phone: work256-683-7995","INTERNETrex.geveden@tbe.com","rex.geveden@tbe.com"]
["Work Email:","INTERNETmark.gradkowski@tbe.com","mark.gradkowski@tbe.com"]
["INTERNETdanieladamek@gmail.com","INTERNETkeith.johnson@willbrook.com","keith.johnson@willbrook.com"]
[null,"INTERNETls@cfdrc.com","ls@cfdrc.com"]
["Linked-in","INTERNETkeith.noren@willbrook.com","keith.noren@willbrook.com"]
[null,"INTERNETaks@cfdrc.com","aks@cfdrc.com"]
["Website: http://www.cohesionforce.com/","INTERNETss2@cfdrc.com","ss2@cfdrc.com"]
["CohesionForce, Inc. (CFI) is an advanced software engineering, Native American, Woman Owned, Small Disadvantaged, 8(a) Business headquartered in Huntsville, Alabama. CFI has progressed from our founding in 1998 with measured growth focused on providing innovative solutions and collaborative teaming for complete support to our Prime and Government customers.","INTERNETk.smith@ama-inc.com","k.smith@ama-inc.com"]
["Add to Address Book Updated 188 days agoReturn to top.","INTERNETjay.stinson@intergraph.com","jay.stinson@intergraph.com"]
["Mike Baron ","INTERNETrdt@cfdrc.com","rdt@cfdrc.com"]
["Recruiter"]
["SAIC"]
["Work Phone: work256-864-8267"]
["Work Fax: workfax256-864-8267"]
["Work Email:"]
["INTERNETmichael.f.baran@saic.com"]
[]
["Website: http://www.saic.com"]
["We, as Science Applications International Corporation Employees, are dedicated to the delivery of quality scientific and technical products and services contributing to the security and well-being of our communities throughout the world. We believe high ethical standards are essential to the achievement of our individual and corporate goals."]
["Add to Address Book Updated 203 days agoReturn to top."]
["Hal Brewer "]
["Intuitive Research"]
["5030 Bradford Drive Building 2, Suite 205"]
["Huntsville  AL  35805"]
["United States home"]
["Work Phone: work256-922-9300"]
["Work Fax: workfax256-509-0445"]
["Work Email:"]
["INTERNETharold.brewer@irtc-hq.com"]
[]
["Website: http://www.irtc-hq.com"]
["INTUITIVE provides quality services in production support, systems engineering, programmatic support, product development, rapid prototyping, and technology management to clients across the United States."]
["Add to Address Book Updated 187 days agoReturn to top."]
["Dennis Bulgatz "]
["Branch Manager"]
["Analytical Mechanics Associates, Inc."]
["1500 Perimeter Pkwy, Suite 285"]
["Huntsville  AL  35806"]
["United States home"]
["Work Phone: work256-830-4811"]
["Work Fax: workfax256-830-4812"]
["Work Email:"]
["INTERNETbulgatz@ama-inc.com"]
[]
["Website: http://www.ama-inc.com"]
["AMA is a “small business” specializing in aerospace engineering, information technology, business analytics, and visualization solutions with a primary NAICS code of 541710. AMA has about 75 employees supporting various clients."]
["Add to Address Book Updated 26 days agoReturn to top."]
["Rob Calloway "]
["Sr. Tech Advisor"]
["Analytical Mechanics Associates, Inc."]
["1500 Perimeter Pkwy, Suite 285"]
["Huntsville  AL  35806"]
["United States home"]
["Work Phone: work256-830-4811"]
["Work Email:"]
["INTERNETcalloway@ama-inc.com"]
[]
["Website: http://www.ama-inc.com"]
["AMA is a “small business” specializing in aerospace engineering, information technology, business analytics, and visualization solutions with a primary NAICS code of 541710. AMA has about 75 employees supporting various clients."]
["Add to Address Book Updated 187 days agoReturn to top."]
["Rex Geveden "]
["President"]
["Teledyne Battery"]
["P.O. Box 070007"]
["Huntsville  AL  35807"]
["United States home"]
["Work Phone: work256-726-2600"]
["Work Email:"]
["INTERNETrex.geveden@tbe.com"]
[]
["Website: http://www.tbe.com Website: http://www.teledyne.com/aboutus/mgtgeveden.asp"]
["An industry leader in Engineered Systems, providing full-spectrumsystems engineering, integration, manufacturing, and technical/management services."]
["Add to Address Book Updated 26 days agoReturn to top."]
["Mark Gradkowski "]
["Vice President of Chemical, Biological, Radiological, and Nuclear (CBRN) Systems"]
["Teledyne Battery"]
["P.O. Box 070007"]
["Huntsville  AL  35807"]
["United States home"]
["Work Phone: work256-726-1377"]
["Work Email:"]
["INTERNETmark.gradkowski@tbe.com"]
[]
["Website: http://www.tbe.com"]
["An industry leader in Engineered Systems, providing full-spectrumsystems engineering, integration, manufacturing, and technical/management services."]
["Add to Address Book Updated 14 days agoReturn to top."]
["Keith Johnson "]
["Willbrook Solutions"]
["150 Westpark Loop, Suite 304"]
["Huntsville  AL  35806"]
["United States home"]
["Work Phone: work256-864-8731, 103"]
["Work Email:"]
["INTERNETkeith.johnson@willbrook.com"]
[]
["Website: http://www.willbrooksolutions.com"]
["Willbrook Solutions was founded in 2006 to provide the defense and aerospace industries comprehensive system engineering and test & evaluation services. Started by Mr. Kendell Phillips with over 20 years of analysis, program management, and corporate management experience, Willbrook Solutions Inc is an employee centered and owned corporation. He is growing the company based on his priorities of integrity and customer before corporate philosopWillbrook Solutions was founded in 2006 to provide the defense and aerospace industries comprehensive system engineering and test & evaluation services. Started by Mr. Kendell Phillips with over 20 years of analysis, program management, and corporate management experience, Willbrook Solutions Inc is an employee centered and owned corporation. He is growing the company based on his priorities of integrity and customer before corporate philosophy."]
["Add to Address Book Updated 14 days agoReturn to top."]
["Sudhakar Lakkaraju "]
["CFD Research Corp."]
["215 Wynn Drive"]
["Huntsville  AL  35805"]
["United States home"]
["Work Email:"]
["INTERNETls@cfdrc.com"]
[]
["Website: http://www.cfdrc.com"]
["CFD Corporation develops cutting edge technologies and provides innovative solutions for Aerospace & Defense, Biomedical & Life Sciences, Energy & Materials, and other industries. Since its inception in 1987, CFDRC has worked with government agencies, businesses, and academia, and has earned national recognitions for successful application and commercialization of innovative technologies (multi-physics software, hardware designs and prototypes, and multi-disciplinary analyses)."]
["Add to Address Book Updated 13 days agoReturn to top."]
["Keith Noren "]
["Willbrook Solutions"]
["150 Westpark Loop, Suite 304"]
["Huntsville  AL  35806"]
["United States home"]
["Work Phone: work256-864-8731, 103"]
["Work Email:"]
["INTERNETkeith.noren@willbrook.com"]
[]
["Website: http://www.willbrooksolutions.com"]
["Willbrook Solutions was founded in 2006 to provide the defense and aerospace industries comprehensive system engineering and test & evaluation services. Started by Mr. Kendell Phillips with over 20 years of analysis, program management, and corporate management experience, Willbrook Solutions Inc is an employee centered and owned corporation. He is growing the company based on his priorities of integrity and customer before corporate philosophy."]
["Add to Address Book Updated 13 days agoReturn to top."]
["Jeff Sims "]
["Nuclear Program Manager"]
["Teledyne Brown Engineering, Inc."]
["P.O. Box 070007"]
["Huntsville  AL  35807"]
["United States home"]
["Work Phone: work256-726-2600"]
["Website: http://www.tbe.com"]
["An industry leader in Engineered Systems, providing full-spectrumsystems engineering, integration, manufacturing, and technical/management services."]
["Add to Address Book Updated 12 days agoReturn to top."]
["Ashok Singhal "]
["CEO"]
["CFD Research Corp."]
["215 Wynn Drive"]
["Huntsville  AL  35805"]
["United States home"]
["Work Phone: work256-726-4800"]
["Work Email:"]
["INTERNETaks@cfdrc.com"]
[]
["Website: http://www.cfdrc.com"]
["CFD Corporation develops cutting edge technologies and provides innovative solutions for Aerospace & Defense, Biomedical & Life Sciences, Energy & Materials, and other industries. Since its inception in 1987, CFDRC has worked with government agencies, businesses, and academia, and has earned national recognitions for successful application and commercialization of innovative technologies (multi-physics software, hardware designs and prototypes, and multi-disciplinary analyses)."]
["Add to Address Book Updated 12 days agoReturn to top."]
["Sameer Singhal "]
["CFD Research Corp."]
["215 Wynn Drive"]
["Huntsville  AL  35805"]
["United States home"]
["Work Phone: work256-327-0664"]
["Work Fax: workfax256-603-4673"]
["Work Email:"]
["INTERNETss2@cfdrc.com"]
[]
["Website: http://www.cfdrc.com"]
["CFD Corporation develops cutting edge technologies and provides innovative solutions for Aerospace & Defense, Biomedical & Life Sciences, Energy & Materials, and other industries. Since its inception in 1987, CFDRC has worked with government agencies, businesses, and academia, and has earned national recognitions for successful application and commercialization of innovative technologies (multi-physics software, hardware designs and prototypes, and multi-disciplinary analyses)."]
["Add to Address Book Updated 12 days agoReturn to top."]
["Kenneth Smith "]
["Vice President - Huntsville Branch"]
["Analytical Mechanics Associates, Inc."]
["1500 Perimeter Pkwy, Suite 285"]
["Huntsville  AL  35806"]
["United States home"]
["Work Phone: work256-830-4811"]
["Work Email:"]
["INTERNETk.smith@ama-inc.com"]
[]
["Website: http://www.ama-inc.com"]
["AMA is a 'small business' specializing in aerospace engineering, information technology, business analytics, and visualization solutions with a primary NAICS code of 541710. AMA has about 75 employees supporting various clients."]
["Add to Address Book Updated 12 days agoReturn to top."]
["Jay Stinson "]
["Intergraph"]
["P.O. Box 240000"]
["Huntsville  AL  35813"]
["United States home"]
["Work Phone: work256-730-2000"]
["Work Fax: workfax256-527-3595"]
["Work Email:"]
["INTERNETjay.stinson@intergraph.com"]
[]
["Website: http://www.intergraph.com"]
["Intergraph Corporation is the leading global provider of engineering and geospatial software that enables customers to visualize complex data. Businesses and governments in more than 60 countries rely on Intergraph’s industry-specific software to organize vast amounts of data into understandable visual representations and actionable intelligence. Intergraph’s software and services empower customers to build and operate more efficient plants and ships, create intelligent maps, and protect critical infrastructure and millions of people around the world."]
["Add to Address Book Updated 12 days agoReturn to top."]
["Richard Thoms "]
["Manager Energy Group"]
["CFD Research Corp."]
["215 Wynn Drive"]
["Huntsville  AL  35805"]
["United States home"]
["Work Phone: work256-726-4810"]
["Work Email:"]
["INTERNETrdt@cfdrc.com"]
[]
["Website: http://www.cfdrc.com"]
["CFD Corporation develops cutting edge technologies and provides innovative solutions for Aerospace & Defense, Biomedical & Life Sciences, Energy & Materials, and other industries. Since its inception in 1987, CFDRC has worked with government agencies, businesses, and academia, and has earned national recognitions for successful application and commercialization of innovative technologies (multi-physics software, hardware designs and prototypes, and multi-disciplinary analyses)."]
["Add to Address Book Updated 12 days agoReturn to top."]

{"sheet":"Energy Transmission","index":6,"n_rows":76,"n_cols":3,"rows_kept":76,"cut":false,"hidden":false,"merged":[]}
[null,"Email from Macro","Corrected Email"]
["Stuart McCafferty ","INTERNETstuart@enernex.com",{"$f":"RIGHT(B2, LEN(B2)-8)","v":"stuart@enernex.com"}]
["Vice President of Government Projects","INTERNETAshish.Moondra@avocent.com",{"$f":"RIGHT(B3, LEN(B3)-8)","v":"Ashish.Moondra@avocent.com"}]
["EnerNex Corporation","INTERNETjnewkirk@govesi.com","jnewkirk@govesi.com"]
["620 Mabry Hood Road, Suite 300","INTERNETjay.stinson@intergraph.com","jay.stinson@intergraph.com"]
["Knoxville  TN  37932","INTERNETpwendling@govesi.com","pwendling@govesi.com"]
["United States home"]
["Work Phone: work256-837-5366"]
["Work Email:"]
["INTERNETstuart@enernex.com"]
[]
["Website: http://www.enernex.com"]
["EnerNex Corporation, selected by the Illinois Commerce Commission (ICC) as the Facilitator for the Illinois Statewide Smart Grid Collaborative, has finalized a two-year effort which culminated with the submission of the Collaborative Report to the ICC."]
["Add to Address Book Updated 13 days agoReturn to top."]
["Ashish Moondra "]
["Emerson Network Power"]
["4991 Corporate Drive"]
["Huntsville  AL  35805"]
["United States home"]
["Work Phone: work256-261-6069"]
["Work Phone: work256-431-8141"]
["Work Email:"]
["INTERNETAshish.Moondra@avocent.com"]
[]
["Website: http://www.avocent.com"]
["Emerson Network Power, a business of Emerson (NYSE:EMR), is the global leader in enabling Business- Critical Continuity™ from grid to chip for telecommunication networks, data centers, health care and industrial facilities. Emerson Network Power provides innovative solutions and expertise in areas including AC and DC power and precision cooling systems, embedded computing and power, integrated racks and enclosures, power switching and controls, infrastructure management, and connectivity. All solutions are supported globally by local merson Network Power service technicians."]
["Add to Address Book Updated 13 days agoReturn to top."]
["Michele Morris "]
["V.P. Finance and Business Administration"]
["Government Energy Solutions Inc."]
["PO Box 5326"]
["Huntsville  AL  35814"]
["United States home"]
["Work Phone: work256-704-0422"]
["Website: http://www.govesi.com"]
["Ms. Morris has more than twenty years experience in a broad range of finance and accounting positions and has served as accounting group manager and financial controller in both small growth companies and fortune 500 organizations.  She has led a number of accounting system upgrades and replacement projects moving from Deltek to the CostPoint system. As controller for a major university she supervised the accounting organization staff, prepared budgets, ensured optimal expenditure control, managed all accounting records and bank accounts, coordinated both internal and external audits and led the institute’s cash, investment, and risk management programs. As financial controller for a major aerospace company operation she was the service center administrator, performed account reconciliations, managed the labor and accounts payable department, served as the business unit lead for a major software implementation and led the branch office on the remediation efforts of Sarbanes Oxley Compliance. Ms. Morris holds an MBA with Emphasis in Accounting from the University of Phoenix and a BBA with Emphasis in Accounting from Athens State University."]
["Add to Address Book Updated 13 days agoReturn to top."]
["Jay Newkirk "]
["V.P. Strategic Business Development"]
["Government Energy Solutions Inc."]
["PO Box 5326"]
["Huntsville  AL  35814"]
["United States home"]
["Work Phone: work256-704-0422"]
["Work Email:"]
["INTERNETjnewkirk@govesi.com"]
[]
["Website: http://www.govesi.com"]
["Mr. Newkirk until recently was President and CEO of Carina Technology, Inc. In that capacity he led a team of 36 professionals including software, systems integrators, sales and marketing professionals and senior business administrators.   Mr. Newkirk has had a distinguished career in computer based management information systems and applied mathematics in the field of commercial and government aerospace applications for over four decades. He was the co-founder of Computer Systems Technology, Inc. (CST), an information technology support services company and served as the Director of Operations and later managed the Strategic Business Development activity.  Following the sale of CST, Mr. Newkirk formed JNE Investments, Inc. which manages a diverse real estate, business and stock investment portfolio. Mr. Newkirk serves on several Advisory Boards for emerging technology companies as well as on non-profit civic organization boards. Mr. Newkirk received a Bachelor of Science degree in Mathematics from Lynchburg College and has completed graduate studies in mathematics and operations research at the University of Alabama, Huntsville."]
["Add to Address Book Updated 13 days agoReturn to top."]
["Jay Stinson "]
["Intergraph"]
["P.O. Box 240000"]
["Huntsville  AL  35813"]
["United States home"]
["Work Phone: work256-730-2000"]
["Work Fax: workfax256-527-3595"]
["Work Email:"]
["INTERNETjay.stinson@intergraph.com"]
[]
["Website: http://www.intergraph.com"]
["Intergraph Corporation is the leading global provider of engineering and geospatial software that enables customers to visualize complex data. Businesses and governments in more than 60 countries rely on Intergraph’s industry-specific software to organize vast amounts of data into understandable visual representations and actionable intelligence. Intergraph’s software and services empower customers to build and operate more efficient plants and ships, create intelligent maps, and protect critical infrastructure and millions of people around the world."]
["Add to Address Book Updated 12 days agoReturn to top."]
["Phil Wendling "]
["President CEO"]
["Government Energy Solutions Inc."]
["PO Box 5326"]
["Huntsville  AL  35814"]
["United States home"]
["Work Phone: work256-656-6743"]
["Work Email:"]
["INTERNETpwendling@govesi.com"]
[]
["Website: http://www.govesi.com"]
["Mr. Wendling has more than twelve years experience in computer systems infrastructure and network systems analysis and support.  He has been project manager for a number of significant information system deployments and has contributed directly to design, test and integration of large classified information technology network systems for the U.S. Army Space and Missile Defense Command and Missile Defense Agency.  Mr. Wendling’s previous experience is directly applicable to his previous responsibility which included leading the project management team members for Carina Technology deployment projects and managing the integration of Carina’s hardware and software systems into customers’ computing infrastructure.  Mr. Wendling served in the military with the United States Marine Corps and was deployed to the Middle East during Operation Desert Shield/Desert Storm in 1990. Mr. Wendling holds a Bachelors degree in Computer Information Systems from the University of North Alabama."]
["Add to Address Book Updated 12 days agoReturn to top."]

{"sheet":"Green Building","index":7,"n_rows":271,"n_cols":3,"rows_kept":271,"cut":false,"hidden":false,"merged":[]}
[null,"Email from Macro","Corrected Email"]
["John Allen ","INTERNETjallen@southern-construction.com",{"$f":"RIGHT(B2, LEN(B2)-8)","v":"jallen@southern-construction.com"}]
["President","INTERNETmichael.f.baran@saic.com",{"$f":"RIGHT(B3, LEN(B3)-8)","v":"michael.f.baran@saic.com"}]
["Southern Construction & Design","INTERNETsbeck@tcco.com","sbeck@tcco.com"]
["P.O. Box 770","INTERNETtodd.billings@saineng.com","todd.billings@saineng.com"]
["Madison  AL  35758","INTERNETrandy.boyd@earthlink.net","randy.boyd@earthlink.net"]
["United States home","INTERNETmbullard@tcco.com","mbullard@tcco.com"]
["Work Phone: work256-652-6857","INTERNETjcargile@4siteinc.biz","jcargile@4siteinc.biz"]
["Work Fax: workfax256-325-5427","INTERNETcotney@bellsouth.net","cotney@bellsouth.net"]
["Work Email:","INTERNETdanesh@uimagineit.com","danesh@uimagineit.com"]
["INTERNETjallen@southern-construction.com","INTERNETnavid@uimagineit.com","navid@uimagineit.com"]
[null,"INTERNETmark@markharrishomes.com","mark@markharrishomes.com"]
["Website: http://southern-construction.com/","INTERNETharry.kleiser@arcadis-us.com","harry.kleiser@arcadis-us.com"]
["As a client or potential client of Southern Construction & Design, Inc., you are beginning a process that will affect one of the most important investments of your life. With this in mind, it is crucial that the process you execute to choose a builder is thorough, well researched, and provides you with the knowledge that your choice will result in the right selection. Most important is selecting a builder that you trust and that you can communicate with.","INTERNETglovvorn@habitatalc.org","glovvorn@habitatalc.org"]
["Add to Address Book Updated 188 days agoReturn to top.","INTERNETjwninc@comcast.net","jwninc@comcast.net"]
["Mike Baron ","INTERNETalton@powersroofing.com","alton@powersroofing.com"]
["Recruiter","INTERNETsteve.sain@saineng.com","steve.sain@saineng.com"]
["SAIC","INTERNETlseverin@4siteinc.biz","lseverin@4siteinc.biz"]
["Work Phone: work256-864-8267","INTERNETbob@roofmister.com","bob@roofmister.com"]
["Work Fax: workfax256-864-8267","INTERNETkelleeT1973@aol.com","kelleeT1973@aol.com"]
["Work Email:"]
["INTERNETmichael.f.baran@saic.com"]
[]
["Website: http://www.saic.com"]
["We, as Science Applications International Corporation Employees, are dedicated to the delivery of quality scientific and technical products and services contributing to the security and well-being of our communities throughout the world. We believe high ethical standards are essential to the achievement of our individual and corporate goals."]
["Add to Address Book Updated 203 days agoReturn to top."]
["Scott Beck "]
["Turner Construction"]
["336 James Record Road SW"]
["Huntsville  AL  35824"]
["United States home"]
["Work Phone: work256-461-6700"]
["Work Email:"]
["INTERNETsbeck@tcco.com"]
[]
["Website: http://www.turnerconstruction.com/greenbuildings/content.asp?d=2199"]
["Turner is committed to the success and increased adoption of sustainable construction practices throughout the industry. As part of this effort, we train all new hires in the theory and practice of green building, emphasizing the LEED rating system. We believe Green buildings are not only good for the environment, they also provide immediate and long-term economic benefits for developers, building owners and occupants."]
["Add to Address Book Updated 203 days agoReturn to top."]
["Todd Billings "]
["Director, Business Development"]
["Sain Engineering Associates, Inc."]
["100 Corporate Parkway, Suite 100"]
["Birmingham  AL  35242"]
["United States home"]
["Work Phone: work256-979-9966"]
["Work Fax: workfax205-979-9936"]
["Work Phone: work855-807-7246"]
["Work Email:"]
["INTERNETtodd.billings@saineng.com"]
[]
["Website: http://www.saineng.com"]
["SEA is experienced and has achieved the highest ratings from Dun & Bradstreet in all program areas, including: quality, cost, attitude, timeliness, technical support & responsiveness. SEA provides a growing suite of efficiency services to support our clients in accomplishing their mission and meeting their goals."]
["Add to Address Book Updated 27 days agoReturn to top."]
["Randy Boyd "]
["Sain Engineering Associates"]
["100 Corporate Parkway, Sute 100"]
["Birmingham  AL  35242"]
["United States home"]
["Work Phone: work205-979-9966"]
["Work Fax: workfax205-979-9936"]
["Work Email:"]
["INTERNETrandy.boyd@earthlink.net"]
[]
["Website: http://saineng.com/"]
["SEA is experienced and has achieved the highest ratings from Dun & Bradstreet in all program areas, including: quality, cost, attitude, timeliness, technical support & responsiveness. SEA provides a growing suite of efficiency services to support our clients in accomplishing their mission and meeting their goals."]
["Add to Address Book Updated 187 days agoReturn to top."]
["Mica Bullard "]
["Turner Construction"]
["336 James Record Road SW"]
["Huntsville  AL  35824"]
["United States home"]
["Work Phone: work256-461-6700"]
["Work Email:"]
["INTERNETmbullard@tcco.com"]
[]
["Website: http://www.turnerconstruction.com/greenbuildings/content.asp?d=2199"]
["Turner is committed to the success and increased adoption of sustainable construction practices throughout the industry. As part of this effort, we train all new hires in the theory and practice of green building, emphasizing the LEED rating system. We believe Green buildings are not only good for the environment, they also provide immediate and long-term economic benefits for developers, building owners and occupants."]
["Add to Address Book Updated 187 days agoReturn to top."]
["Jerry Cargile "]
["4 Site Inc."]
["Ste 209, 7500 Memorial Pkwy SW"]
["Huntsville  AL  35802"]
["United States home"]
["Home Phone: home256-539-1221"]
["Work Email:"]
["INTERNETjcargile@4siteinc.biz"]
[]
["Website: http://www.4siteinc.biz"]
["His 15 years of experience have taught him how to give attention to detail, and to balance costs with multiple design options to keep a project's vision on track and bring it into reality."]
["Add to Address Book Updated 27 days agoReturn to top."]
["Steve Cotney "]
["Manufacturers Representatives"]
["J.S. Cotney Inc."]
["PO Box 380667"]
["Birmingham  AL  35238"]
["United States home"]
["Work Phone: work205-981-9920"]
["Work Phone: work205-531-7517"]
["Work Email:"]
["INTERNETcotney@bellsouth.net"]
[]
["Website: http://www.cotney.com"]
["Meeting today's requirements for innovative lighting concepts in the business environment, commercial or institutional settings, J.S. Cotney, Inc. is proud to serve the community of architects, designers and engineers."]
["Add to Address Book Updated 26 days agoReturn to top."]
["Harvey Fest "]
["Inline Lighting & Electric"]
["P.O. Box 7267"]
["Huntsville  AL  35807"]
["United States home"]
["Work Phone: work256-533-2851"]
["Website: http://www.inlinelighting.com/"]
["Inline opened its doors in 1988 in Huntsville, AL with a strategy to be \"the best place in town for electrical contractors as well as commercial, institutional, and industrial customers to trade for their day-to-day electrical supplies...\""]
["Add to Address Book Updated 26 days agoReturn to top."]
["Danesh Foroughi "]
["Owner"]
["Stonecraft Construction"]
["5016 Dale Road"]
["Huntsville  AL  35803"]
["United States home"]
["Work Phone: work256-509-8300"]
["Work Email:"]
["INTERNETdanesh@uimagineit.com"]
[]
["Website: http://www.uimagineit.com/stonecraft"]
["Stonecraft construction is at the forefront of residential construction,"]
["incorporating methods that ensure a safer, healthier, more comfortable, and"]
["energy efficient home. Imagine, Inc. created Stonecraft construction so that we"]
["may be able to offer the residents of North-East Alabama a new option, when they"]
["are searching for or are planning to build their DREAM HOME."]
["Add to Address Book Updated 27 days agoReturn to top."]
["Navid Foroughi "]
["Truseal Insulation"]
["5016 Dale Road"]
["Huntsville  AL  35803"]
["United States home"]
["Work Phone: work256-509-3800"]
["Work Email:"]
["INTERNETnavid@uimagineit.com"]
[]
["Website: http://www.uimagineit.com/truseal"]
["Truseal Insulation is proud to offer the North Alabama Region, foam insulation,"]
["the Superior Insulation."]
[]
["We offer two types of foam insulation, so that"]
["we may provide the best for attaining superior comfort and at the same time it"]
["enables us to better serve the uniqueness of each project."]
["Add to Address Book Updated 27 days agoReturn to top."]
["Mark Harris "]
["Owner"]
["Mark Harris Homes LLC"]
["224 Voekel Rd."]
["Huntsville  AL  35811"]
["United States home"]
["Work Phone: work256-851-7999"]
["Work Email:"]
["INTERNETmark@markharrishomes.com"]
[]
["Website: http://markharrishomes.com"]
["Are you looking for a new home in the Huntsville, Alabama area? Mark Harris Homes will build a new house for your family- whether you're relocating due to BRAC or currently reside in Madison County. Mark Harris is a certified green builder and offers new full brick homes in our beautiful neighborhoods with easy access to Redstone Arsenal and award winning Madison County schools.Choose from our selection of unfurnished model homes or build a new home with amenities in one of our neighborhoods that offer lake front property, river access, and an Olympic lane pool and clubhouse. Mark Harris Homes wants to be your quality new home builder."]
["Add to Address Book Updated 14 days agoReturn to top."]
["Harry Kleiser "]
["Executive Vice President, Client Development Director - Federal"]
["Arcadis U.S. Inc."]
["300 E. Lombard Street Suite 1510"]
["Baltimore  MD  21202"]
["United States home"]
["Work Phone: work410-230-9960"]
["Work Fax: workfax410-230-0491"]
["Work Phone: work410-258-8483"]
["Work Email:"]
["INTERNETharry.kleiser@arcadis-us.com"]
[]
["Website: http://www.arcadis-us.com"]
["PE"]
["Add to Address Book Updated 13 days agoReturn to top."]
["Garth Lovvorn "]
["Executive Director"]
["Habitat for Humanity"]
["PO Box 217,700 Brownsferry Street"]
["Athens  AL  35612"]
["United States home"]
["Work Phone: work256-230-6001"]
["Work Fax: workfax256-230-6087"]
["Work Email:"]
["INTERNETglovvorn@habitatalc.org"]
[]
["Website: http://habitatalc.org/"]
["The Athens/Limestone County affiliate of Habitat for Humanity is dedicated to providing afforable homes for deserving families. These families must work and pay for each house, and in doing so, continues the chain of families who have bettered themselves by partnering with Habitat. We hope that you will find it in your heart to assist either by volunteering or with financial assistance to continue our efforts so that all who are in need will have the hope of owning a decent and affordable home. Habitat for Humanity International defines an affordable house as one that is affordable not only by the intial cost, but also factoring in the month-to-month payments and how safe and healthy the home is. That is why we at the Athens-Limestone County affiliate are dedicated to building an energy efficient, healthy home for our partner families."]
["Add to Address Book Updated 13 days agoReturn to top."]
["Jim Neighbors "]
["President"]
["Old Towne Home Builders J.W. Neighbors Inc."]
["3103 Masters Drive"]
["Hampton Cove  AL  35763"]
["United States home"]
["Work Phone: work256-533-3755"]
["Work Fax: workfax256-533-6213"]
["Work Phone: work256-316-1755"]
["Work Email:"]
["INTERNETjwninc@comcast.net"]
[]
["Add to Address Book Updated 26 days agoReturn to top."]
[]
["Alton Powers "]
["Owner"]
[]
["Powers Roofing"]
[]
["5101 Meridian St."]
["Huntsville  AL  35801"]
["United States home"]
[]
["Work Phone: work256-656-7256"]
["Work Fax: workfax256-512-5518"]
[]
["Work Email:"]
["INTERNETalton@powersroofing.com"]
[]
["Website: http://www.powersroofing.com"]
["Locally owned and operated Powers Roofing offers commercial and residential roofing, siding and gutter services to Huntsville, AL and surrounding areas. Owner Alton Powers and his experienced installers provide dependable, high quality roofing services and more. We specialize in storm damage repair and work with most insurance claims."]
["Add to Address Book Updated 13 days agoReturn to top."]
["Stephen Sain "]
["President"]
["Sain Engineering Associates, Inc."]
["100 Corporate Parkway, Sute 100"]
["Birmingham  AL  35242"]
["United States home"]
["Work Phone: work205-979-9966"]
["Work Fax: workfax205-979-9936"]
["Work Email:"]
["INTERNETsteve.sain@saineng.com"]
[]
["Website: http://www.saineng.com"]
["PE, CEM"]
["Add to Address Book Updated 13 days agoReturn to top."]
["Lori Severin "]
["4Site Inc"]
["7500 South Memorial Pkwy. Suite 209"]
["Huntsville  AL  35802"]
["United States home"]
["Work Phone: work256-539-1221"]
["Work Email:"]
["INTERNETlseverin@4siteinc.biz"]
[]
["Website: http://www.4siteinc.biz/index.html"]
["4Site is a Huntsville based, interdisciplinary firm with over 50 years of combined professional experience. We partner with our clients to design and develop a more sustainable future. 4Site has expertise in facilitating community and regional initiatives, master planning, and in land design solutions that balance creative elements with the practical aspects of science, technology and business. At every level, 4Site endeavors to consciously consider the economic, environmental and social impacts of our business and our work."]
["Add to Address Book Updated 12 days agoReturn to top."]
["Bobby Starling "]
["Roof Mister"]
["65A Town Center Drive"]
["Huntsville  AL  35806"]
["United States home"]
["Work Phone: work704-747-1238"]
["Work Email:"]
["INTERNETbob@roofmister.com"]
[]
["Website: http://www.roofmister.com"]
["Add to Address Book Updated 12 days agoReturn to top."]
["Kellee Tipton "]
["Office Manager"]
["Tipton Heating and Cooling, Inc."]
["1678 Joe Quick Rd."]
["New Market  AL  35761"]
["United States home"]
["Work Phone: work256-828-4806"]
["Work Email:"]
["INTERNETkelleeT1973@aol.com"]
[]
["Website: http://www.tiptonhvac.com/"]
["At Tipton Heating and Cooling, we offer much more than just heating and cooling systems and air purification. Our goal is to provide your family with an unsurpassed level of quality, trust and comfort. That’s why we offer free in-home estimates and back every installation with 24/7 emergency service."]
["Add to Address Book Updated 12 days agoReturn to top."]

{"sheet":"Government | NonProfit","index":8,"n_rows":669,"n_cols":3,"rows_kept":669,"cut":false,"hidden":false,"merged":[]}
[null,"Email from Macro","Corrected Email"]
["Jaime Anderson ","INTERNETJaime.Anderson@pentagon.af.mil",{"$f":"RIGHT(B2, LEN(B2)-8)","v":"Jaime.Anderson@pentagon.af.mil"}]
["Major","INTERNETjaimeanderson@hotmail.com","jaimeanderson@hotmail.com"]
["United States Deligation to the NATO Military Committee","INTERNETcontact@hsvcity.com","contact@hsvcity.com"]
["4289 Lexie Circle","INTERNETjbbowen@tva.gov","jbbowen@tva.gov"]
["Trussville  AL  35173","INTERNETmbrazier@hsvchamber.org","mbrazier@hsvchamber.org"]
["United States home","INTERNETvbrown@birminghambusinessalliance.com","vbrown@birminghambusinessalliance.com"]
["Work Phone: work205-655-3841","INTERNETnaita@naita.org","naita@naita.org"]
["Cell Phone: cell318-294-5976","INTERNETdonna_burrell@msn.com","donna_burrell@msn.com"]
["Work Email:","INTERNETdist3e@co.madison.al.us","dist3e@co.madison.al.us"]
["INTERNETJaime.Anderson@pentagon.af.mil","INTERNETanthonyldaniels@gmail.com","anthonyldaniels@gmail.com"]
[null,"INTERNETrdavis@hsvchamber.org","rdavis@hsvchamber.org"]
["Personal Email:","INTERNETlarry.denman@hsvutil.org","larry.denman@hsvutil.org"]
["INTERNETjaimeanderson@hotmail.com","INTERNEThdiamond@hsvchamber.org","hdiamond@hsvchamber.org"]
[null,"INTERNETmevans@sci-quest.org","mevans@sci-quest.org"]
["Major, USAFR","INTERNETrgilliland@greenjobsalliance.org","rgilliland@greenjobsalliance.org"]
["Add to Address Book Updated 203 days agoReturn to top.","INTERNETggilmartin@croet.com","ggilmartin@croet.com"]
["Tommy Battle Jr.","INTERNETtgodfrey@naida.com","tgodfrey@naida.com"]
["Mayor of Huntsville","INTERNETlahaislip@tva.com","lahaislip@tva.com"]
["308 Fountain Circle","INTERNETwphicks@tva.gov","wphicks@tva.gov"]
["Huntsville  AL  35801","INTERNETdoc@swdahsv.org","doc@swdahsv.org"]
["United States home","INTERNETsteveh@shoalschamber.com","steveh@shoalschamber.com"]
["Work Phone: work256-427-5000","INTERNEThoughde@y12.doe.gov","houghde@y12.doe.gov"]
["Work Email:","INTERNEThowellmi@ornl.gov","howellmi@ornl.gov"]
["INTERNETcontact@hsvcity.com","INTERNETjonesma@ctc.com","jonesma@ctc.com"]
[null,"INTERNETkress@nsstc.uah.edu","kress@nsstc.uah.edu"]
["Facebook","INTERNEThowell.lee@valleyinnovation.org","howell.lee@valleyinnovation.org"]
["Twitter","INTERNETlani.macrae@ee.doe.gov","lani.macrae@ee.doe.gov"]
[null,"INTERNETgiles@shoalsec.com","giles@shoalsec.com"]
["Website: http://www.huntsvilleal.gov/mayor/","INTERNETsheilamcferran@stillservingveterans.org","sheilamcferran@stillservingveterans.org"]
["The mayor serves as the city's chief executive officer and is responsible for providing professional leadership in the administration and implementation of all city operations and the policies, goals and vision set forth by the Office of the Mayor and City Council.","INTERNETmarkeeva.a.morgan@nasa.org","markeeva.a.morgan@nasa.org"]
["Add to Address Book Updated 188 days agoReturn to top.","INTERNETgpruitt@vcsi.org","gpruitt@vcsi.org"]
["Jillian Bowen ","INTERNETjoanne.randolph@wbcna.org","joanne.randolph@wbcna.org"]
["Power Utilization Engineer","INTERNETaaray@tva.gov","aaray@tva.gov"]
["Tennessee Valley Authority","INTERNETdick@dickreeves.com","dick@dickreeves.com"]
["4960 Corporate Drive, STE 125","INTERNETreevesme@ornl.gov","reevesme@ornl.gov"]
["Huntsville  AL  35805","INTERNETj450n1970@hotmail.com","j450n1970@hotmail.com"]
["United States home","INTERNETsenator@shelby.senate.gov","senator@shelby.senate.gov"]
["Work Phone: work256-430-4858","INTERNETruchi@nexusenergycenter.org","ruchi@nexusenergycenter.org"]
["Work Fax: workfax256-430-4840","INTERNETrox@y12.doe.gov","rox@y12.doe.gov"]
["Cell Phone: cell256-200-1820","INTERNETstephen.spehn@eucom.mil","stephen.spehn@eucom.mil"]
["Work Email:","INTERNETjay.stowe@hsvutil.org","jay.stowe@hsvutil.org"]
["INTERNETjbbowen@tva.gov","INTERNETben@seealliance.org","ben@seealliance.org"]
[null,"INTERNETdenise.taylor@hsvcity.com","denise.taylor@hsvcity.com"]
["Website: http://www.tva.com","INTERNETmathew@nexusenergycenter.org","mathew@nexusenergycenter.org"]
["The Tennessee Valley Authority, a corporation owned by the U.S. government, provides electricity for 9 million people in parts of seven southeastern states at prices below the national average. TVA, which receives no taxpayer money and makes no profits, also provides flood control, navigation and land management for the Tennessee River system and assists utilities and state and local governments with economic development.","INTERNETvogtdp@ornl.gov","vogtdp@ornl.gov"]
["Add to Address Book Updated 188 days agoReturn to top.","INTERNETcolewalker@me.com","colewalker@me.com"]
["Mike Brazier ","INTERNETcindy@biztech.org","cindy@biztech.org"]
["Investor Relations"]
["Chamber of Commerce of Huntsville/Madison County"]
["225 Church Street"]
["Huntsville  AL  35801"]
["United States home"]
["Work Phone: work256-535-2035"]
["Work Email:"]
["INTERNETmbrazier@hsvchamber.org"]
[]
["Website: http://www.huntsvillealabamausa.com/"]
["Our Mission at the Chamber is to Prepare, Develop, and Promote our community for economic growth."]
["Add to Address Book Updated 187 days agoReturn to top."]
["Victor Brown "]
["Director"]
["Birmingham Business Alliance"]
["20th Street Ste 200"]
["Birmingham  AL  35203"]
["United States home"]
["Work Phone: work205-241-8109"]
["Cell Phone: cell205-218-6682"]
["Work Email:"]
["INTERNETvbrown@birminghambusinessalliance.com"]
[]
["Website: http://www.birminghamchamber.com/"]
["The Birmingham Business Alliance was created by the merger of Birmingham Regional Chamber of Commerce and the Metropolitan Development Board, a process that began in August 2008, and culminated in the creation of the BBA on July 10, 2009. The BBA will focus on the economic growth of the entire seven-county Birmingham region. Bringing the Chamber and MDB together allows business leaders to create a much stronger and well-rounded entity to promote dynamic growth and improve the quality of life in the region. The Birmingham Business Alliance is a dynamic advocate, unifying voice and constant catalyst for economic development and business prosperity for the Birmingham Region."]
["Add to Address Book Updated 187 days agoReturn to top."]
["Anne Burkett "]
["Director, Planning & Economic Development"]
["North Alabama International Trade Association (NAITA)"]
["P.O. Box 2457"]
["Huntsville  AL  35804"]
["United States home"]
["Work Phone: work256-532-3505"]
["Personal Email:"]
["INTERNETnaita@naita.org"]
[]
["Website: http://www.naita.org"]
["NAITA is a business-driven non-profit membership organization committed to increasing knowledge, interest, and activity in international trade in North Alabama."]
["Add to Address Book Updated 187 days agoReturn to top."]
["Donna Burrell "]
["Oak Ridge National Laboratory"]
["219 Haddington Court"]
["Huntsville  AL  35757"]
["United States home"]
["Work Phone: work256-529-0809"]
["Personal Email:"]
["INTERNETdonna_burrell@msn.com"]
[]
["Website: http://www.ornl.gov"]
["Welcome to Oak Ridge National Laboratory. ORNL is a multiprogram science and technology laboratory managed for the U.S. Department of Energy by UT-Battelle, LLC. Scientists and engineers at ORNL conduct basic and applied research and development to create scientific knowledge and technological solutions that strengthen the nation's leadership in key areas of science; increase the availability of clean, abundant energy; restore and protect the environment; and contribute to national security."]
["Add to Address Book Updated 187 days agoReturn to top."]
["Jerry Craig "]
["County Commisioner"]
["Madison County District 3"]
["4273 Hwy 72"]
["Brownsboro  AL  35741"]
["United States home"]
["Work Phone: work256-776-2475"]
["Work Phone: work256-603-4157"]
["Work Email:"]
["INTERNETdist3e@co.madison.al.us"]
[]
["Website: http://www.co.madison.al.us/about/dist3/"]
["It is an honor to represent the people of District Three. I will continue my open door policy, working with all the citizens to insure the Commission takes the proper steps to meet the needs of Madison County. This is a wonderful county which has seen tremendous growth. I am committed to listening and carefully weighing new policy that will impact our homes, neighborhoods and businesses for years to come."]
["Add to Address Book Updated 26 days agoReturn to top."]
["Anthony Daniels "]
["Transportation Team"]
["Green 13"]
["Huntsville  AL  United States home"]
["Work Email:"]
["INTERNETanthonyldaniels@gmail.com"]
[]
["Website: http://www.hsvcity.com/green/transportation_team.php"]
["As a member of the Mayor’s Sustainability Council, Anthony Daniels will be working as the Transportation Sub-Team Lead. His primary focus is to develop recommendations to the Green Council in the area of sustainable transportation."]
["Add to Address Book Updated 26 days agoReturn to top."]
["Rick Davis "]
["Economic Development"]
["Chamber of Commerce of Huntsville/Madison County"]
["225 Church Street"]
["Huntsville  AL  35801"]
["United States home"]
["Work Phone: work256-535-2000"]
["Work Fax: workfax256-326-2018"]
["Work Email:"]
["INTERNETrdavis@hsvchamber.org"]
[]
["Website: http://www.huntsvillealabamausa.com/"]
["Our Mission at the Chamber is to Prepare, Develop, and Promote our community for economic growth."]
["Add to Address Book Updated 26 days agoReturn to top."]
["Larry Denman "]
["Huntsville Utilities"]
["P.O. Box 2048"]
["Huntsville  AL  35804"]
["United States home"]
["Work Phone: work256-535-1338"]
["Work Email:"]
["INTERNETlarry.denman@hsvutil.org"]
[]
["Website: http://www.hsvutil.org/"]
["Huntsville Utilities is located in Huntsville, Alabama and is owned by the City of Huntsville. Huntsville Utilities is actually three separate Systems operating under three Boards appointed by the City Council. The Gas, Water and Electric Systems share top management, customer services, billing, meter reading, accounting and purchasing to save our customers money. Each System pays its share of these expenses and has its own financial reports. Due to our common goal of outstanding customer service and cost savings, Huntsville Utilities has also worked with most of the Madison County Water Systems, the City and County Sanitation Departments and the City Water Pollution Control Department to provide our customers with a single bill each month. By sharing in this billing, we all save on postage, paper, payroll, benefits, computers, vehicles and insurance while giving the customer the convenience of one stop service and a single monthly bill."]
["Add to Address Book Updated 26 days agoReturn to top."]
["Harrison Diamond "]
["Economic Development Coordinator"]
["Chamber of Commerce of Huntsville/Madison County"]
["225 Church Street"]
["Huntsville  AL  35801"]
["United States home"]
["Work Phone: work256-535-2049"]
["Work Email:"]
["INTERNEThdiamond@hsvchamber.org"]
[]
["Website: http://www.huntsvillealabamausa.com/"]
["Our Mission at the Chamber is to Prepare, Develop, and Promote our community for economic growth."]
["Add to Address Book Updated 26 days agoReturn to top."]
["Margie Evans "]
["PR Specialist"]
["Sci-Quest"]
["102-D Wynn Drive"]
["Huntsville  AL  35805"]
["United States home"]
["Work Phone: work256-837-0606, 277"]
["Work Email:"]
["INTERNETmevans@sci-quest.org"]
[]
["Website: http://www.sci-quest.org/home/"]
["Sci-Quest is a hands-on science center with more than 100 permanent, interactive exhibits in seven different subject areas. Unlike a typical 'museum,' Sci-Quest's exhibits are designed to engage, educate and entertain."]
["Add to Address Book Updated 26 days agoReturn to top."]
["Millicent Garland "]
["Project Manager"]
["Tennessee Valley Authority"]
["1101 Market Street, SP 5D"]
["Chattanooga  TN  37402"]
["United States home"]
["Work Phone: work423-751-2557"]
["Work Fax: workfax423-751-6087"]
["Website: http://www.tva.com"]
["The Tennessee Valley Authority, a corporation owned by the U.S. government, provides electricity for 9 million people in parts of seven southeastern states at prices below the national average. TVA, which receives no taxpayer money and makes no profits, also provides flood control, navigation and land management for the Tennessee River system and assists utilities and state and local governments with economic development."]
["Add to Address Book Updated 26 days agoReturn to top."]
["Randy Gilliland "]
["Co-founder"]
["Green Jobs Alliance - Hampton Roads"]
["2 Eaton St"]
["Hampton  VA  23669"]
["United States home"]
["Work Phone: work757-788-9073"]
["Work Phone: work757-814-0001"]
["Work Email:"]
["INTERNETrgilliland@greenjobsalliance.org"]
[]
["Website: http://greenjobsalliance.org/"]
["The Green Jobs Alliance is an Alabama nonprofit organization formed by a coalition of renewable energy industries, green construction companies, sustainable small businesses, labor organizations, veteran"]
["Add to Address Book Updated 26 days agoReturn to top."]
["Gary Gilmartin "]
["Oak Ridge Energy Corridor"]
["Work Phone: work865-241-8078"]
["Work Fax: workfax865-621-6255"]
["Work Email:"]
["INTERNETggilmartin@croet.com"]
[]
["Website: http://www.facebook.com/gmgilmartin"]
["http://www.energyoakridge.com/ - Coming Soon"]
["Add to Address Book Updated 14 days agoReturn to top."]
["Tate Godfrey "]
["President and CEO"]
["NAIDA"]
["410 Johnston Street, Suite A"]
["Decatur  AL  35601"]
["United States home"]
["Work Phone: work256-353-5982"]
["Work Email:"]
["INTERNETtgodfrey@naida.com"]
[]
["Website: http://www.naida.com"]
["The North Alabama Industrial Development Association is an economic development organization ready to assist companies and site location consultants find available sites and buildings in North Alabama. If you are looking for industrial property or office space in the Southeast, North Alabama is a great location."]
["Add to Address Book Updated 14 days agoReturn to top."]
["Parker Griffith "]
["5th district Congressman"]
["Congressman"]
["2101 Clinton Avenue W Suite 302"]
["Huntsville  AL  35805"]
["United States home"]
["Work Phone: work256-551-0190"]
["Website: http://griffith.house.gov/"]
["Welcome to North Alabama’s home on the internet.  I hope you find the resources available here valuable.  On my website, you can learn more about our region and government, find assistance with a federal agency, request a tour or flag, and read more about what I am doing in Washington to serve the people of the Tennessee Valley."]
["Add to Address Book Updated 14 days agoReturn to top."]
["Lisa Haislip "]
["Product Manager, Consumer & Small, Business Programs"]
["Tennessee Valley Authority"]
["P.O. Box 292409, OCP 2F-NST"]
["Nashville  TN  37229-2409"]
["United States home"]
["Work Phone: work615-232-6914"]
["Work Fax: workfax615-232-6810"]
["Work Phone: work615-483-7890"]
["Work Email:"]
["INTERNETlahaislip@tva.com"]
[]
["Website: http://www.tva.com"]
["Add to Address Book Updated 26 days agoReturn to top."]
["Warren Hicks "]
["Economic Development"]
["Tennessee Valley Authority"]
["4960 Corporate Drive, STE 125"]
["Huntsville  AL  35805"]
["United States home"]
["Work Phone: work256-430-4804"]
["Work Fax: workfax256-430-4801"]
["Work Phone: work256-679-6355"]
["Work Email:"]
["INTERNETwphicks@tva.gov"]
[]
["Website: http://www.tva.com"]
["The Tennessee Valley Authority, a corporation owned by the U.S. government, provides electricity for 9 million people in parts of seven southeastern states at prices below the national average. TVA, which receives no taxpayer money and makes no profits, also provides flood control, navigation and land management for the Tennessee River system and assists utilities and state and local governments with economic development."]
["Add to Address Book Updated 14 days agoReturn to top."]
["Doc Holladay "]
["Executive Director"]
["Solid Waste Disposal Authority"]
["P.O. Box 2619"]
["Huntsville  AL  35804"]
["United States home"]
["Work Phone: work256-880-6054"]
["Work Email:"]
["INTERNETdoc@swdahsv.org"]
[]
["Website: http://www.swdahsv.org"]
["In 1985 the City of Huntsville created a public, non-profit corporation to finance and operate the city and county's solid waste management system. That corporation is The Solid Waste Disposal Authority."]
["Add to Address Book Updated 14 days agoReturn to top."]
["Steve Holt "]
["President"]
["Shoals Chamber of Commerce"]
["20 Hightower Place"]
["Florence  AL  35630"]
["United States home"]
["Work Phone: work 256-764-4661"]
["Work Email:"]
["INTERNETsteveh@shoalschamber.com"]
[]
["Website: http://www.shoalschamber.com"]
["It's PEOPLE who make things happen!"]
["The Chamber's most important asset is its members — people just like you, who realize that they can accomplish collectively through the Chamber what they cannot do individually. You are encouraged to voice your opinion and to participate in the work of the various committees.  When enough people become interested in a project and make their individual contributions, then things HAPPEN!"]
["Add to Address Book Updated 14 days agoReturn to top."]
["Dennis Hough "]
["ORNL - Y12"]
["PO Box 2009"]
["Oak Ridge  TN  37831"]
["United States home"]
["Work Phone: work865-576-0615"]
["Work Email:"]
["INTERNEThoughde@y12.doe.gov"]
[]
["Website: http://www.y12.doe.gov/"]
["The Y‑12 National Security Complex is a premier manufacturing facility dedicated to making our nation and the world a safer place. Operated by B&W Y‑12 for the National Nuclear Security Administration, Y‑12 plays a vital role in the Department of Energy’s Nuclear Security Enterprise."]
["Y‑12 helps ensure a safe and effective U.S. nuclear weapons deterrent. We also retrieve and store nuclear materials, fuel the nation’s naval reactors, and perform complementary work for other government and private-sector entities."]
["Add to Address Book Updated 14 days agoReturn to top."]
["Michael Howell "]
["Director, Huntsville Operations"]
["Oak Ridge National Laboratory"]
["301 Sparkeman Drive, Suite 101 Olin B. King Technoloy Hall"]
["Huntsville  AL  35899"]
["United States home"]
["Work Phone: work256-722-5576"]
["Work Phone: work865-250-1188"]
["Work Email:"]
["INTERNEThowellmi@ornl.gov"]
[]
["Website: http://www.ornl.gov/"]
["Oak Ridge - Huntsville Partnership Ofice | Global Security Directorate"]
["Add to Address Book Updated 14 days agoReturn to top."]
["Matthew (Carter) Jones "]
["Program Director, Business Development"]
["Concurrent Technologies Corporation"]
["15091 Alabama Highway 20 Suite A"]
["Huntsville  AL  35756"]
["United States home"]
["Work Phone: work256-560-6612"]
["Work Fax: workfax256-560-6605"]
["Work Phone: work256-679-2242"]
["Work Email:"]
["INTERNETjonesma@ctc.com"]
[]
["Website: http://www.ctc.com"]
["We are an independent, nonprofit, applied research and developmental professional services organization providing innovative management and technology-based solutions to a wide array of clients representing federal and state agencies and the private sector."]
["Add to Address Book Updated 14 days agoReturn to top."]
["LaFreeda Jordan "]
["Richard Shelby - Senator"]
["1000 Glenn Hearn Boulevard #20127"]
["Huntsville  AL  35824"]
["United States home"]
["Work Phone: work256-772-0460"]
["Website: http://shelby.senate.gov/public/index.cfm?p=Home"]
["Richard Shelby, Alabama's senior United States Senator, was first elected to the Senate in 1986 with an undeniable commitment to Alabama and the simple philosophy that a smaller government can also be a more effective government."]
[]
["Senator Shelby is ranking member of the Banking, Housing, and Urban Affairs Committee and ranking member of the Commerce, Justice, and Science Appropriations Subcommittee.  In addition, he is a senior member of the full Appropriations Committee and the Special Committee on Aging."]
["Add to Address Book Updated 14 days agoReturn to top."]
["Marty Kress "]
["Executive Director"]
["Von Braun Center for Science and Innovation"]
["320 Sparkman Drive"]
["Huntsville  AL  35805"]
["United States home"]
["Work Phone: work256-961-7001"]
["Work Email:"]
["INTERNETkress@nsstc.uah.edu"]
[]
["Website: http://www.vcsi.org"]
["The mission of VCSI is to provide innovative engineering solutions and science applications for NASA, DoD, and other government agencies. VCSI will provide technical solutions to vital government clients in an efficient, cost-effective, and timely manner. The establishment of VCSI will enable the government, industry, and academic communities in the Huntsville region to better compete for critical NASA and DoD R&D functions and activities, many of which are currently outsourced to other regions of the United States."]
["Add to Address Book Updated 13 days agoReturn to top."]
["Howell Lee "]
["President"]
["VIA"]
["P.O. Box 2216"]
["Decatur  AL  35609"]
["United States home"]
["Work Phone: work256-306-2643"]
["Work Fax: workfax256-221-1329"]
["Work Email:"]
["INTERNEThowell.lee@valleyinnovation.org"]
[]
["Website: http://valleyinnovation.org/"]
["Howell Lee currently serves as Director for the Tennessee Valley’s WIRED Initiative as well as President of Valley Innovation Alliance. He has thirty seven years of experience in the business and legislative arenas. Lee’s background includes extensive experience in governmental affairs, serving as District Director for Congressman Bud Cramer, Al-05, Finance Director for Friends of Bud Cramer, Director of Governmental Affairs for SPARTA, Inc., a 1,500 employee defense contractor, business experience includes economic development construction, management, administration and public relations developed through leadership positions in business and professional associations."]
["Add to Address Book Updated 13 days agoReturn to top."]
["Lani MacRae "]
["U.S. Department of Energy"]
["Building Technologies Program"]
["1000 Independence Ave. SW"]
["Washington  DC  20585"]
["United States home"]
["Work Phone: work202-586-9193"]
["Work Phone: work202-341-5913"]
["Work Email:"]
["INTERNETlani.macrae@ee.doe.gov"]
[]
["Website: http://ee.doe.gov"]
["Add to Address Book Updated 26 days agoReturn to top."]
["Giles McDaniel "]
["Director"]
["Shoals Entrepreneurial Center"]
["3115 Northington Court"]
["Florence  AL  35630"]
["United States home"]
["Work Phone: work256-760-9014"]
["Work Email:"]
["INTERNETgiles@shoalsec.com"]
[]
["Website: http://www.shoalsec.com"]
["The Shoals Entrepreneurial Center (SEC) is a business incubator in which start-up and emerging companies locate during their initial growth phase. Business incubators are characterized by shared space, services, and equipment in a controlled overhead environment. The incubator atmosphere allows small start-up businesses to allocate more of its limited resources toward growing the business. Occupancy for companies at an incubator can range from one to five years. Incubator clients receive mentoring, networking and public relations opportunities, access to equipment, and referral to professionals in order to help prepare them to move out into their own facility and become self-sustaining members of the business community."]
["Add to Address Book Updated 13 days agoReturn to top."]
["Sheila McFerran "]
["Program Development Director"]
["Stil Serving Veterans"]
["2939 Johnson Road S.W."]
["Huntsville  AL  35805"]
["United States home"]
["Work Phone: work256-653-1104"]
["Work Fax: workfax256-883-7166"]
["Work Email:"]
["INTERNETsheilamcferran@stillservingveterans.org"]
[]
["Website: http://www.stillservingveterans.org"]
["Add to Address Book Updated 13 days agoReturn to top."]
["Markeeva Morgan "]
["ADTI Program Manager"]
["NASA - VCSI"]
["Work Email:"]
["INTERNETmarkeeva.a.morgan@nasa.org"]
[]
["Website: http://www.vcsi.org"]
["Add to Address Book Updated 13 days agoReturn to top."]
["Wayman Pace "]
["Tennessee Valley Authority"]
["400 W. Summit Hill Dr"]
["Knoxville  TN  37902"]
["United States home"]
["Work Phone: work865-632-2101"]
["Website: http://www.tva.com"]
["The Tennessee Valley Authority, a corporation owned by the U.S. government, provides electricity for 9 million people in parts of seven southeastern states at prices below the national average. TVA, which receives no taxpayer money and makes no profits, also provides flood control, navigation and land management for the Tennessee River system and assists utilities and state and local governments with economic development."]
["Add to Address Book Updated 13 days agoReturn to top."]
["Greg Pruitt "]
["VCSI"]
["Work Email:"]
["INTERNETgpruitt@vcsi.org"]
[]
["Add to Address Book Updated 13 days agoReturn to top."]
[]
["Joanne Randolph "]
["President & CEO"]
[]
["Women's Resource Center"]
[]
["225 Church Street"]
["Huntsville  AL  35801"]
["United States home"]
[]
["Work Phone: work256-535-2038"]
[]
["Work Email:"]
["INTERNETjoanne.randolph@wbcna.org"]
[]
["Website: http://www.wbcna.org"]
["The mission of the WBCNA is to help women and men start and grow a business and generate economic growth for the region. This is accomplished by serving as the premier source for information and access to resources; facilitating their self-¬discovery and personal development; and providing a mentoring process to support, nurture and advocate the development of their business."]
["Add to Address Book Updated 13 days agoReturn to top."]
["Anda Ray "]
["Tennessee Valley Authority"]
["400 West Summit Hill Drive, WT-11A"]
["Knoxville  TN  37902"]
["United States home"]
["Work Phone: work865-632-8511"]
["Work Email:"]
["INTERNETaaray@tva.gov"]
[]
["Website: http://www.tva.com"]
["The Tennessee Valley Authority, a corporation owned by the U.S. government, provides electricity for 9 million people in parts of seven southeastern states at prices below the national average. TVA, which receives no taxpayer money and makes no profits, also provides flood control, navigation and land management for the Tennessee River system and assists utilities and state and local governments with economic development."]
["Add to Address Book Updated 13 days agoReturn to top."]
["Dick Reeves "]
["Huntsville Angel Network"]
["515 Sparkman Drive"]
["Huntsville  AL  35816"]
["United States home"]
["Work Phone: work256-489-0103"]
["Work Email:"]
["INTERNETdick@dickreeves.com"]
[]
["Website: http://huntsville.angelgroups.net/"]
["The Huntsville Angel Network is a group of individuals and companies that have joined together to make the angel investing process work better in the Huntsville, Alabama area."]
["Add to Address Book Updated 13 days agoReturn to top."]
["Mark Reeves "]
["Oak Ridge National Laboratory"]
["P.O. Box 2008"]
["Oak Ridge  TN  37831"]
["United States home"]
["Work Phone: work865-574-4160"]
["Work Email:"]
["INTERNETreevesme@ornl.gov"]
[]
["Website: http://www.ornl.gov/"]
["Welcome to Oak Ridge National Laboratory. ORNL is a multiprogram science and technology laboratory managed for the U.S. Department of Energy by UT-Battelle, LLC. Scientists and engineers at ORNL conduct basic and applied research and development to create scientific knowledge and technological solutions that strengthen the nation's leadership in key areas of science; increase the availability of clean, abundant energy; restore and protect the environment; and contribute to national security."]
["Add to Address Book Updated 13 days agoReturn to top."]
["Bob Riley "]
["Governor of Alabama"]
["Governor of Alabama"]
["600 Dexter Avenue"]
["Montgomery  AL  36130"]
["United States home"]
["Work Phone: work334-242-7100"]
["Website: http://governor.alabama.gov/"]
["Governor Bob Riley is serving his second term as Alabama’s chief executive. Throughout his service, he has focused on economic development, education reform and making state government more accountable to the taxpayers. The results have been impressive."]
["During his two terms, Alabama has won major economic development projects that resulted in more than 150,000 announced new jobs and witnessed a growth in per capita income and a decrease in poverty, even in spite of the national recession. Governor Riley is also the first Alabama governor to sign an income tax cut into law in over 70 years."]
["Governor Bob Riley is serving his second term as Alabama’s chief executive. Throughout his service, he has focused on economic development, education reform and making state government more accountable to the taxpayers. The results have been impressive."]
["During his two terms, Alabama has won major economic development projects that resulted in more than 150,000 announced new jobs and witnessed a growth in per capita income and a decrease in poverty, even in spite of the national recession. Governor Riley is also the first Alabama governor to sign an income tax cut into law in over 70 years."]
["Add to Address Book Updated 13 days agoReturn to top."]
["Jason Scully-Clemmons "]
["Assistant DA"]
["Madison County District Attorney's Office"]
["100 North Side Square"]
["Huntsville  AL  35801"]
["United States home"]
["Work Phone: work256-532-3460"]
["Work Phone: work256-527-5755"]
["Work Email:"]
["INTERNETj450n1970@hotmail.com"]
[]
["Website: http://www.districtattorney.org/staff-attorney-profiles.html"]
["Jason Scully-Clemmons, Assistant District Attorney"]
["Degrees: New York University, Juris Doctorate (1998) American University, MPA (1994) Georgetown University, BA in Government & Spanish (1992)"]
["Admitted to the Bar: Florida (1998); North Carolina (2004); Alabama (2008)"]
["Joined the DA’s office: 2008"]
["Unit: District Court Prosecutor"]
["Add to Address Book Updated 12 days agoReturn to top."]
["Richard Shelby "]
["Senator"]
["1000 Glenn Hearn Boulevard #20127"]
["Huntsville  AL  35824"]
["United States home"]
["Work Phone: work256-772-0460"]
["Work Email:"]
["INTERNETsenator@shelby.senate.gov"]
[]
["Website: http://shelby.senate.gov/public/index.cfm?p=Home"]
["Richard Shelby, Alabama's senior United States Senator, was first elected to the Senate in 1986 with an undeniable commitment to Alabama and the simple philosophy that a smaller government can also be a more effective government. Senator Shelby is ranking member of the Banking, Housing, and Urban Affairs Committee and ranking member of the Commerce, Justice, and Science Appropriations Subcommittee. In addition, he is a senior member of the full Appropriations Committee and the Special Committee on Aging."]
["Add to Address Book Updated 12 days agoReturn to top."]
["Ruchi Singhal "]
["Director"]
["Nexus Energy Center"]
["200 Westside Square, Suite 53"]
["Huntsville  AL  35801"]
["United States home"]
["Work Phone: work256-539-6225"]
["Work Email:"]
["INTERNETruchi@nexusenergycenter.org"]
[]
["Website: http://www.nexusenergycenter.org"]
["Located in Huntsville, Alabama, the Nexus Energy Center is a consortium of talented partners dedicated to bringing energy solutions to Alabama and the United States. The primary objectives for the Center will be to foster education/outreach and economic development for local businesses, universities, entrepreneurs and the community at-large dedicated to new energy strategies for America. The Center will strive to promote and facilitate a balance of analysis and creativity while focusing on the conservation, generation, storage, and transmission of energy."]
["Add to Address Book Updated 12 days agoReturn to top."]
["Rosanne Smith "]
["Energy Manager"]
["ORNL - Y12"]
["PO Box 2009"]
["Oak Ridge  TN  37831"]
["United States home"]
["Work Phone: work865-576-0615"]
["Work Phone: work865-406-7590"]
["Work Email:"]
["INTERNETrox@y12.doe.gov"]
[]
["Website: http://www.y12.doe.gov/"]
["The Y‑12 National Security Complex is a premier manufacturing facility dedicated to making our nation and the world a safer place. Operated by B&W Y‑12 for the National Nuclear Security Administration, Y‑12 plays a vital role in the Department of Energy’s Nuclear Security Enterprise."]
["Y‑12 helps ensure a safe and effective U.S. nuclear weapons deterrent. We also retrieve and store nuclear materials, fuel the nation’s naval reactors, and perform complementary work for other government and private-sector entities."]
["Add to Address Book Updated 12 days agoReturn to top."]
["Stephen Spehn "]
["US European Command"]
["Work Email:"]
["INTERNETstephen.spehn@eucom.mil"]
[]
["Add to Address Book Updated 12 days agoReturn to top."]
[]
["Jay Stowe "]
["VP Operations"]
[]
["Huntsville Utilities"]
[]
["P.O. Box 2048"]
["Huntsville  AL  35804"]
["United States home"]
[]
["Work Phone: work256-535-1264"]
[]
["Work Email:"]
["INTERNETjay.stowe@hsvutil.org"]
[]
["Website: http://www.hsvutil.org/"]
["Huntsville Utilities is located in Huntsville, Alabama and is owned by the City of Huntsville. Huntsville Utilities is actually three separate Systems operating under three Boards appointed by the City Council. The Gas, Water and Electric Systems share top management, customer services, billing, meter reading, accounting and purchasing to save our customers money. Each System pays its share of these expenses and has its own financial reports. Due to our common goal of outstanding customer service and cost savings, Huntsville Utilities has also worked with most of the Madison County Water Systems, the City and County Sanitation Departments and the City Water Pollution Control Department to provide our customers with a single bill each month. By sharing in this billing, we all save on postage, paper, payroll, benefits, computers, vehicles and insurance while giving the customer the convenience of one stop service and a single monthly bill."]
["Add to Address Book Updated 12 days agoReturn to top."]
["Ben Taube "]
["Executive Director"]
["Southeast Energy Efficiency Alliance"]
["999 Peachtree Street, NW"]
["Atlanta  GA  30309"]
["United States home"]
["Work Phone: work404-931-1518"]
["Work Phone: work404-566-4170, 44180"]
["Work Email:"]
["INTERNETben@seealliance.org"]
[]
["Website: http://www.seealliance.org"]
["Southeast Energy Efficiency Alliance (SEEA) is a 501(c)(3) non-profit that brings together businesses, utilities, governments, public utility commissions, energy service companies, manufacturers, retailers, energy and environmental organizations, low-income energy advocates, large energy consumers, and universities to promote energy-efficient policies and practices."]
["Add to Address Book Updated 12 days agoReturn to top."]
["Denise Taylor "]
["Coordinator"]
["Operation Green Team"]
["PO Box 308"]
["Huntsville  AL  35804"]
["United States home"]
["Work Phone: work256-532-5326"]
["Work Email:"]
["INTERNETdenise.taylor@hsvcity.com"]
[]
["Website: http://www.hsvcity.com/greenteam/"]
["Founded in 1977, Operation Green Team was originally known as the Huntsville Madison County Clean Community Office. It is a city-funded organization governed by a volunteer board of directors. Operation Green Team endeavors to make Huntsville a role model for the state, region and Nation in terms of landscape beauty, cleanliness and environmental consciousness."]
["Add to Address Book Updated 12 days agoReturn to top."]
["Mathew Underwood "]
["Energy Efficiency Coordinator"]
["Nexus Energy Center"]
["200 Westside Square, Suite 53"]
["Huntsville  AL  35801"]
["United States home"]
["Work Phone: work256-539-6272"]
["Work Email:"]
["INTERNETmathew@nexusenergycenter.org"]
[]
["Website: http://www.nexusenergycenter.org"]
["Located in Huntsville, Alabama, the Nexus Energy Center is a consortium of talented partners dedicated to bringing energy solutions to Alabama and the United States. The primary objectives for the Center will be to foster education/outreach and economic development for local businesses, universities, entrepreneurs and the community at-large dedicated to new energy strategies for America. The Center will strive to promote and facilitate a balance of analysis and creativity while focusing on the conservation, generation, storage, and transmission of energy."]
["Add to Address Book Updated 12 days agoReturn to top."]
["David Vogt "]
["Distinguished R&D Staff, Manager, Regional Studies Program, Environmental Sciences Division"]
["Oak Ridge National Laboratory"]
["One Bethel Valley Road P.O. Box 2008"]
["Oak Ridge  TN  37831-6036"]
["United States home"]
["Work Phone: work865-574-5192"]
["Work Fax: workfax865-576-3989"]
["Work Phone: work865-604-4213"]
["Work Email:"]
["INTERNETvogtdp@ornl.gov"]
[]
["Website: http://www.ornl.gov/"]
["Add to Address Book Updated 26 days agoReturn to top."]
["Cole Walker "]
["Chairman"]
["United Properties, Nexus Energy Center"]
["200 Westside Square, Suite 53"]
["Huntsville  AL  35801"]
["United States home"]
["Work Email:"]
["INTERNETcolewalker@me.com"]
[]
["Website: http://www.nexusenergycenter.org"]
["Cole has a Master’s of Science in Instructional Technology from Georgia State University and Bachelor’s in Civil Engineering from the University of Alabama. He is a Partner in United Properties, a company that develops, owns and manages medical and professional offices as well as retail centers. His work and awards while residing in Atlanta included the founding of Atlanta New Century School, Volunteer of the Year, Legend of Fairlie Poplar, Rising Star of Atlanta, and Dossier magazine’s Atlanta Hall of Fame, plus named a mover and shaker in the field of education. After relocating to Huntsville, Mr. Walker has been instrumental in the founding of the North Alabama Chapter of the USGBC and currently serves as Treasurer."]
["Add to Address Book Updated 12 days agoReturn to top."]
["Cindy Warner "]
["HR"]
["BizTech"]
["515 Sparkman Drive"]
["Huntsville  AL  35816"]
["United States home"]
["Work Phone: work256-489-0105"]
["Work Email:"]
["INTERNETcindy@biztech.org"]
[]
["Website: http://www.biztech.org"]
["BizTech is a technology-focused business incubator designed to help small companies develop emerging technologies for the global marketplace.We provide mentoring, access to investors, training, a ready-made network of contacts, and an array of business support services designed to improve the likelihood of success of startup and developmental stage companies."]
["Add to Address Book Updated 12 days agoReturn to top."]
["Randy Wilhelm "]
["President"]
["Green Jobs Alliance"]
["2250 Highland Ave, South"]
["Birmingham  AL  35205"]
["United States home"]
["Work Phone: work205-837-3736"]
["Website: http://greenjobsalliance.org/"]
["The Green Jobs Alliance is an Alabama nonprofit organization formed by a coalition of renewable energy industries, green construction companies, sustainable small businesses, labor organizations, veteran’s groups, educational institutions and technical training schools, community service organizations, environmental groups, and workforce development services who have partnered to provide education, green jobs training, job placement and career development."]
["Add to Address Book Updated 12 days agoReturn to top."]

{"sheet":"Grant Writer","index":9,"n_rows":29,"n_cols":3,"rows_kept":29,"cut":false,"hidden":false,"merged":[]}
[null,"Email from Macro","Corrected Email"]
["Alison Lansing ","INTERNETalisonlansing75@gmail.com",{"$f":"RIGHT(B2, LEN(B2)-8)","v":"alisonlansing75@gmail.com"}]
["owner","INTERNETjennifer@pinkleycommunications.com",{"$f":"RIGHT(B3, LEN(B3)-8)","v":"jennifer@pinkleycommunications.com"}]
["Lansing Grant Solutions"]
["2223 Magna Carta Place SW"]
["Huntsville  AL  35803"]
["United States home"]
["Work Phone: work256-541-0766"]
["Work Fax: workfax256-541-0766"]
["Work Email:"]
["INTERNETalisonlansing75@gmail.com"]
[]
["Website: http://www.lansinggrantsolutions.com/"]
["Alison Lansing has lived for a number of years in the North Alabama region building a wealth of contacts and connections both in the private and government sector. She has written and managed grant proposals 'cradle to grave' for non-profit organizations, universities, and small businesses."]
["Add to Address Book Updated 13 days agoReturn to top."]
["Jennifer Pinkley "]
["Grant Writer"]
["Pinkley Communications"]
["PO Box 74"]
["Taft  TN  38488"]
["United States home"]
["Work Phone: work931-233-0420"]
["Work Phone: work256-714-7980"]
["Work Email:"]
["INTERNETjennifer@pinkleycommunications.com"]
[]
["Website: http://www.pinkleycommunications.com/"]
["Pinkley Communications provides a range of professional writing and editing services to help your business or nonprofit succeed! I'll work with you to establish the best long term strategy to communicate with your customers, supporters, and partners. Count on Pinkley Communications for clear, concise, and engaging writing."]
["Add to Address Book Updated 13 days agoReturn to top."]

{"sheet":"Hydroelectric Technologies","index":10,"n_rows":27,"n_cols":3,"rows_kept":27,"cut":false,"hidden":false,"merged":[]}
[null,"Email from Macro","Corrected Email"]
["James Boschma ","INTERNETjboschma@boschmaresearch.com",{"$f":"RIGHT(B2, LEN(B2)-8)","v":"jboschma@boschmaresearch.com"}]
["President","INTERNETshurst@boschmaresearch.com",{"$f":"RIGHT(B3, LEN(B3)-8)","v":"shurst@boschmaresearch.com"}]
["Boschma Research"]
["138 Lawler Dr."]
["Brownsboro  AL  35741"]
["United States home"]
["Work Phone: work256-694-1483"]
["Work Email:"]
["INTERNETjboschma@boschmaresearch.com"]
[]
["Website: http://www.boschmaresearch.com"]
["Boschma Research, Inc. is dedicated to the development of non-polluting electric power generation devices to include Hydro, Thermal, Photo-Voltaic, and Wind energy extraction. It is our goal to become the '"]
["Add to Address Book Updated 188 days agoReturn to top."]
["Scott Hurst "]
["Engineer"]
["Boschma Research"]
["138 Lawler Dr."]
["Huntsville  AL  35741"]
["United States home"]
["Work Phone: work256-417-6048"]
["Work Email:"]
["INTERNETshurst@boschmaresearch.com"]
[]
["Website: http://www.boschmaresearch.com"]
["Boschma Research, Inc. is dedicated to the development of non-polluting electric power generation devices to include Hydro, Thermal, Photo-Voltaic, and Wind energy extraction. It is our goal to become the “plug-and-play” supplier of Renewable Energy products on a Worldwide basis."]
["Add to Address Book Updated 14 days agoReturn to top."]

{"sheet":"Other Renewable Technologies","index":11,"n_rows":196,"n_cols":3,"rows_kept":196,"cut":false,"hidden":false,"merged":[]}
[null,"Email from Macro","Corrected Email"]
["James Boschma ","INTERNETjboschma@boschmaresearch.com",{"$f":"RIGHT(B2, LEN(B2)-8)","v":"jboschma@boschmaresearch.com"}]
["President","INTERNETchristie.coplen@mbtech-group-na.com","christie.coplen@mbtech-group-na.com"]
["Boschma Research","INTERNETcedreck.g.davis@nasa.gov","cedreck.g.davis@nasa.gov"]
["138 Lawler Dr.","INTERNETjim.dowdy@msfc.nasa.gov","jim.dowdy@msfc.nasa.gov"]
["Brownsboro  AL  35741","INTERNETdennis.c.foster@nasa.gov","dennis.c.foster@nasa.gov"]
["United States home","INTERNETjeneen.horton@tema.toyota.com","jeneen.horton@tema.toyota.com"]
["Work Phone: work256-694-1483","INTERNETshurst@boschmaresearch.com","shurst@boschmaresearch.com"]
["Work Email:","INTERNETashok@mtronics.com","ashok@mtronics.com"]
["INTERNETjboschma@boschmaresearch.com","INTERNETibrahim.pastuszak@pwr.utc.com","ibrahim.pastuszak@pwr.utc.com"]
[null,"INTERNETsuri.perinkulam@pwr.utc.com","suri.perinkulam@pwr.utc.com"]
["Website: http://www.boschmaresearch.com","INTERNETkelleeT1973@aol.com","kelleeT1973@aol.com"]
["Boschma Research, Inc. is dedicated to the development of non-polluting electric power generation devices to include Hydro, Thermal, Photo-Voltaic, and Wind energy extraction. It is our goal to become the '","INTERNETjwarren@floridasyngas.com","jwarren@floridasyngas.com"]
["Add to Address Book Updated 188 days agoReturn to top.","INTERNETmyokley@gwjones.com","myokley@gwjones.com"]
["Christie Coplen "]
["Director - Full Vehicle Engineering"]
["Mercedes Benz Technology"]
["400 East Big Beaver"]
["Troy  MI  48084"]
["United States home"]
["Work Phone: work248-434-5697"]
["Work Phone: work248 703 2576"]
["Work Email:"]
["INTERNETchristie.coplen@mbtech-group-na.com"]
[]
["Website: http://www.mbtech-group.com/eu-en/company/home.html\",\"http://www.mbtech-group.com/eu-en/company/home.html"]
["Director - Full Vehicle & Chassis Engineering at Mercedes-Benz Technology Greater Detroit Area Globally active and an international leader: With more than 2,700 employees we provide our customers with the decisive advantage. We are there for you worldwide with engineering and consulting services. We think globally and look to the future. We embrace the product creation process and product lifecycles in their entirety. Our customer orientation is at the heart of our corporate philosophy. We work in flexible, interdisciplinary project teams and in close cooperation with our customers and partners. Our people mobilize all their experience, knowledge, professionalism, and commitment to make our customers succeed. Our employees bring along a diversity of experience from every corner of the international automotive industry, from manufacturers and suppliers to consultancies and more. Our people are quality conscious, reliable, and always available, so that we can achieve perfection and serve it up with an ample portion of commitment and an extra dash of sophistication. The knowledge and experience of our staff is bolstered by the latest technology, tools, and processes for engineering, numeric calculation, simulation, and testing. We can thus pull off tailored solutions with precision."]
["Add to Address Book Updated 26 days agoReturn to top."]
["Cedreck Davis "]
["Energy&Water Program Manager"]
["NASA - MFSC"]
["AS24"]
["Marshall Space Flight Center  AL  35812"]
["United States home"]
["Work Phone: work256-544-3221"]
["Work Email:"]
["INTERNETcedreck.g.davis@nasa.gov"]
[]
["Linked-in"]
[]
["Website: http://energyandwater.msfc.nasa.gov/about.html"]
["The Energy Efficiency Team (EET) is a team that evaluates and implements energy and water conservation strategies and projects for governmental energy and water compliance and promotes energy and water conservation practices into the Center’s culture.  The EET also promote sustainable energy and water management technologies that enhance present and future environmental conservation."]
["Add to Address Book Updated 26 days agoReturn to top."]
["Jim Dowdy "]
["IPP Chief"]
["NASA - MFSC"]
["ES-82"]
["Marshall Space Flight Center  AL  35812"]
["United States home"]
["Work Phone: work256-544-7604"]
["Work Email:"]
["INTERNETjim.dowdy@msfc.nasa.gov"]
[]
["Website: http://www.nasa.gov/offices/ipp/network/msfc.html"]
["NASA's Technology Transfer Program seeks to maximize the nation's return on investment in the space program by encouraging American private enterprise to adapt and commercialize technologies derived from our work in space."]
["Add to Address Book Updated 26 days agoReturn to top."]
["Dennis Foster "]
["Mechanical/Electrical Design Team"]
["NASA - MFSC"]
["AD22"]
["Marshall Space Flight Center  AL  35812"]
["United States home"]
["Work Phone: work256-544-8489"]
["Work Email:"]
["INTERNETdennis.c.foster@nasa.gov"]
[]
["Website: http://www.nasa.gov/centers/marshall/home/index.html"]
["From the roar of mighty rocket engines to extraordinary scientific discoveries about our world and our universe, NASA's Marshall Space Flight Center in Huntsville, Ala., stands at the forefront of the nation’s space exploration mission -- just as it has done for five decades."]
["Add to Address Book Updated 26 days agoReturn to top."]
["Jeneen Horton "]
["Environmental Specialist"]
["Toyota Motor Manufacturing"]
["1 Cottonvalley Drive"]
["Huntsville  AL  35810"]
["United States home"]
["Work Phone: work256-746-5611"]
["Work Phone: work256-683-1192"]
["Work Email:"]
["INTERNETjeneen.horton@tema.toyota.com"]
[]
["Website: http://www.toyota.com/about/our_business/engineering_and_manufacturing/tema/"]
["The first Toyota V8 engine outside Japan came off the line at our Alabama plant in 2003. TMMAL now manufactures V6 and V8 engines for Tacoma and Tundra pickup trucks and the Sequoia full-size sport utility vehicle.*"]
["*Toyota vehicles and components are built using U.S. and globally sourced parts. All data as of December 2009."]
["Add to Address Book Updated 14 days agoReturn to top."]
["Scott Hurst "]
["Engineer"]
["Boschma Research"]
["138 Lawler Dr."]
["Huntsville  AL  35741"]
["United States home"]
["Work Phone: work256-417-6048"]
["Work Email:"]
["INTERNETshurst@boschmaresearch.com"]
[]
["Website: http://www.boschmaresearch.com"]
["Boschma Research, Inc. is dedicated to the development of non-polluting electric power generation devices to include Hydro, Thermal, Photo-Voltaic, and Wind energy extraction. It is our goal to become the “plug-and-play” supplier of Renewable Energy products on a Worldwide basis."]
["Add to Address Book Updated 14 days agoReturn to top."]
["Ashok Mahbubani "]
["President & CEO"]
["Mtronics VMI, LLC"]
["325-F Electronics Boulevard"]
["Huntsville  AL  35824"]
["United States home"]
["Work Phone: work256-461-8883"]
["Work Fax: workfax256-461-8538"]
["Work Email:"]
["INTERNETashok@mtronics.com"]
[]
["Website: http://www.mtronics.com"]
["Multitronics VMI, LLC, is a TS-16949"]
["registered manufacturer of high volume electromechanical assemblies built to the"]
["exacting standards of the automotive electronics industry."]
[]
["MVMI also provides process engineering,"]
["quality containment, technical and VMI logistics support to other companies in"]
["the automotive supply chain.  Since 1987, it has been our privilege to serve"]
["some of the finest OEMs and Tier 1 Suppliers in the world."]
["Add to Address Book Updated 13 days agoReturn to top."]
["Nelson Olinger "]
["Project Manager"]
["NASA - MFSC"]
["AS24"]
["Marshall Space Flight Center  AL  35812"]
["United States home"]
["Work Phone: work256-544-0055"]
["Website: http://www.nasa.gov/centers/marshall/home/index.html"]
["From the roar of mighty rocket engines to extraordinary scientific discoveries about our world and our universe, NASA's Marshall Space Flight Center in Huntsville, Ala., stands at the forefront of the nation’s space exploration mission -- just as it has done for five decades."]
["Add to Address Book Updated 13 days agoReturn to top."]
["Ibrahim Pastuszak "]
["Program Manager"]
["Pratt & Whitney Rocketdyne"]
["555 Discovery Drive"]
["Huntsville  AL  35806"]
["United States home"]
["Work Phone: work256-971-4565"]
["Work Email:"]
["INTERNETibrahim.pastuszak@pwr.utc.com"]
[]
["Website: http://www.pw.utc.com"]
["Pratt & Whitney, a United Technologies Corp. company (NYSE:UTX), is a world leader in the design, manufacture and service of aircraft engines, industrial gas turbines and space propulsion systems. Pratt & Whitney reported an operating proﬁt of $1.84 billion in 2009 on revenues of $12.58 billion. The company's 36,000 employees support more than 11,000 customers in 195 countries around the world."]
["Add to Address Book Updated 13 days agoReturn to top."]
["Suri Perinkulam "]
["Program Manager"]
["Pratt & Whitney Rocketdyne"]
["555 Discovery Drive"]
["Huntsville  AL  35806"]
["United States home"]
["Work Phone: work256-971-3349"]
["Work Email:"]
["INTERNETsuri.perinkulam@pwr.utc.com"]
[]
["Website: http://www.pw.utc.com"]
["Pratt & Whitney, a United Technologies Corp. company (NYSE:UTX), is a world leader in the design, manufacture and service of aircraft engines, industrial gas turbines and space propulsion systems. Pratt & Whitney reported an operating pro?t of $1.84 billion in 2009 on revenues of $12.58 billion. The company's 36,000 employees support more than 11,000 customers in 195 countries around the world."]
["Add to Address Book Updated 13 days agoReturn to top."]
["Kellee Tipton "]
["Office Manager"]
["Tipton Heating and Cooling, Inc."]
["1678 Joe Quick Rd."]
["New Market  AL  35761"]
["United States home"]
["Work Phone: work256-828-4806"]
["Work Email:"]
["INTERNETkelleeT1973@aol.com"]
[]
["Website: http://www.tiptonhvac.com/"]
["At Tipton Heating and Cooling, we offer much more than just heating and cooling systems and air purification. Our goal is to provide your family with an unsurpassed level of quality, trust and comfort. That’s why we offer free in-home estimates and back every installation with 24/7 emergency service."]
["Add to Address Book Updated 12 days agoReturn to top."]
["John Warren "]
["Director-Government Relations"]
["Florida Syngas"]
["2643 Gurley Pike"]
["Gurley  AL  35748"]
["United States home"]
["Work Phone: work256-653-4140"]
["Work Email:"]
["INTERNETjwarren@floridasyngas.com"]
[]
["Website: http://www.floridasyngas.com/"]
["John served in the U.S. Army for a total of thirty years as an active duty Commissioned Officer, Reserve Officer and U. S. Government Civilian employee. He worked in a variety of Command and Staff positions within U.S. Army organizations. He retired as a Lieutenant Colonel, U.S. Army Reserve, and as a GS – 15 Federal Civil Service."]
["John worked as a Senior Logistics Manager in the U.S. Army Materiel Command. He directed and managed large organizations which were responsible for planning and executing logistics operations during military campaigns in Afghanistan, Iraq and the Global War on Terror."]
["Since retirement, John has directed his energy toward the political arena by managing and consulting for several campaigns for elective offices from the local through the national level. He was the Chairperson for a campaign for the Alabama Lieutenant Governor’s office in 2006."]
["John holds a B.A. from Auburn University and an M.B.A. from Florida Institute of Technology."]
["Add to Address Book Updated 12 days agoReturn to top."]
["Mark Yokely "]
["President and Principal-in-Charge"]
["GWJones and Sons Consulting Engineers, Inc."]
["401 Franklin Street"]
["Huntsville  AL  35801"]
["United States home"]
["Work Phone: work256-533-3311"]
["Work Email:"]
["INTERNETmyokley@gwjones.com"]
[]
["Website: http://www.gwjones.com/"]
["With over 115 years of engineering excellence, GW Jones & Sons Consulting Engineers, Inc. (GWJ) is still a leader in engineering in North Alabama. The firm's staff is fully qualified, by both education and experience. to undertake and complete a wide variety of engineering assignments. The scope of our engineering services includes civil, sanitary, municipal, industrial, and structural engineering. Also included in our services is land surveying as well as site development Engineering. With years of design experience and a continued local presence, GWJ has made and continues to make a positive impact on the North Alabama area as engineering consultants."]
["Add to Address Book Updated 12 days agoReturn to top."]

{"sheet":"Solar Technologies","index":12,"n_rows":119,"n_cols":3,"rows_kept":119,"cut":false,"hidden":false,"merged":[]}
[null,"Email from Macro","Corrected Email"]
["John Conger ","INTERNETjohnb.conger@gmail.com",{"$f":"RIGHT(B2, LEN(B2)-8)","v":"johnb.conger@gmail.com"}]
["Southern Solar Systems","INTERNETcotney@bellsouth.net","cotney@bellsouth.net"]
["11807 South Memorial Parkway","INTERNETibrahim.pastuszak@pwr.utc.com","ibrahim.pastuszak@pwr.utc.com"]
["Huntsville  AL  35803","INTERNETsuri.perinkulam@pwr.utc.com","suri.perinkulam@pwr.utc.com"]
["United States home","INTERNETstephen.rush@outpostsolar.com","stephen.rush@outpostsolar.com"]
["Work Phone: work205-999-1631","INTERNETsouthernsolarsys@bellsouth.net","southernsolarsys@bellsouth.net"]
["Work Email:","INTERNETkelleeT1973@aol.com","kelleeT1973@aol.com"]
["INTERNETjohnb.conger@gmail.com","INTERNETsouthernsolarsys@bellsouth.net","southernsolarsys@bellsouth.net"]
[null,"INTERNETdale@watringtc.com","dale@watringtc.com"]
["Website: http://www.southernsolarsys.com"]
["Southern Solar has what it takes to solve your energy needs. Whether its solar hot water, solar photovoltaic, on grid or off grid systems or even geothermal heat pumps, Southern Solar can provide what you need. We design and install all of the previously mentioned technologies. We will provide our clients with a complete solution from product selection and sizing to installing and commissioning the desired energy system."]
["Add to Address Book Updated 26 days agoReturn to top."]
["Steve Cotney "]
["Manufacturers Representatives"]
["J.S. Cotney Inc."]
["PO Box 380667"]
["Birmingham  AL  35238"]
["United States home"]
["Work Phone: work205-981-9920"]
["Work Phone: work205-531-7517"]
["Work Email:"]
["INTERNETcotney@bellsouth.net"]
[]
["Website: http://www.cotney.com"]
["Meeting today's requirements for innovative lighting concepts in the business environment, commercial or institutional settings, J.S. Cotney, Inc. is proud to serve the community of architects, designers and engineers."]
["Add to Address Book Updated 26 days agoReturn to top."]
["Ibrahim Pastuszak "]
["Program Manager"]
["Pratt & Whitney Rocketdyne"]
["555 Discovery Drive"]
["Huntsville  AL  35806"]
["United States home"]
["Work Phone: work256-971-4565"]
["Work Email:"]
["INTERNETibrahim.pastuszak@pwr.utc.com"]
[]
["Website: http://www.pw.utc.com"]
["Pratt & Whitney, a United Technologies Corp. company (NYSE:UTX), is a world leader in the design, manufacture and service of aircraft engines, industrial gas turbines and space propulsion systems. Pratt & Whitney reported an operating proﬁt of $1.84 billion in 2009 on revenues of $12.58 billion. The company's 36,000 employees support more than 11,000 customers in 195 countries around the world."]
["Add to Address Book Updated 13 days agoReturn to top."]
["Suri Perinkulam "]
["Program Manager"]
["Pratt & Whitney Rocketdyne"]
["555 Discovery Drive"]
["Huntsville  AL  35806"]
["United States home"]
["Work Phone: work256-971-3349"]
["Work Email:"]
["INTERNETsuri.perinkulam@pwr.utc.com"]
[]
["Website: http://www.pw.utc.com"]
["Pratt & Whitney, a United Technologies Corp. company (NYSE:UTX), is a world leader in the design, manufacture and service of aircraft engines, industrial gas turbines and space propulsion systems. Pratt & Whitney reported an operating pro?t of $1.84 billion in 2009 on revenues of $12.58 billion. The company's 36,000 employees support more than 11,000 customers in 195 countries around the world."]
["Add to Address Book Updated 13 days agoReturn to top."]
["Stephen Rush "]
["VP-Develpoment"]
["Outpost Solar, LLC"]
["102 Long St. "]
["Pulaski  TN  38478"]
["home"]
["Work Phone: work800-416-8374"]
["Work Email:"]
["INTERNETstephen.rush@outpostsolar.com"]
[]
["Website: http://www.outpostsolar.com"]
["Outpost Solar, LLC designs and manufactures innovative solar energy systems. Our creative solutions for solar energy implementation range from 6kW off-grid systems designed for the most remote areas of the world, to grid-tied systems that generate a megawatt or more. Outpost Solar provides its clients with the necessary expertise to assess their needs and maximize the return on their investment. Our professionals provide complete project management services: design build, installation, financing, and tax incentive optimization."]
["Add to Address Book Updated 13 days agoReturn to top."]
["Chris Shearburn "]
["Systems Engineer"]
["Southern Solar System"]
["11807 South Memorial Parkway"]
["Huntsville  AL  35803"]
["United States home"]
["Work Phone: work256-883-9848"]
["Work Fax: workfax256-679-7024"]
["Work Email:"]
["INTERNETsouthernsolarsys@bellsouth.net"]
[]
["Website: http://www.southernsolarsys.com"]
["Southern Solar has what it takes to solve your energy needs. Whether its solar hot water, solar photovoltaic, on grid or off grid systems or even geothermal heat pumps, Southern Solar can provide what you need. We design and install all of the previously mentioned technologies. We will provide our clients with a complete solution from product selection and sizing to installing and commissioning the desired energy system."]
["Add to Address Book Updated 12 days agoReturn to top."]
["Kellee Tipton "]
["Office Manager"]
["Tipton Heating and Cooling, Inc."]
["1678 Joe Quick Rd."]
["New Market  AL  35761"]
["United States home"]
["Work Phone: work256-828-4806"]
["Work Email:"]
["INTERNETkelleeT1973@aol.com"]
[]
["Website: http://www.tiptonhvac.com/"]
["At Tipton Heating and Cooling, we offer much more than just heating and cooling systems and air purification. Our goal is to provide your family with an unsurpassed level of quality, trust and comfort. That’s why we offer free in-home estimates and back every installation with 24/7 emergency service."]
["Add to Address Book Updated 12 days agoReturn to top."]
["Joe Ward "]
["Sales"]
["Southern Solar System"]
["11807 South Memorial Parkway"]
["Huntsville  AL  35803"]
["United States home"]
["Work Phone: work256-457-7110"]
["Work Email:"]
["INTERNETsouthernsolarsys@bellsouth.net"]
[]
["Website: http://www.southernsolarsys.com"]
["Southern Solar has what it takes to solve your energy needs. Whether its solar hot water, solar photovoltaic, on grid or off grid systems or even geothermal heat pumps, Southern Solar can provide what you need. We design and install all of the previously mentioned technologies. We will provide our clients with a complete solution from product selection and sizing to installing and commissioning the desired energy system."]
["Add to Address Book Updated 12 days agoReturn to top."]
["Dale Watring "]
["President & CEO"]
["Watring Technologies, Inc."]
["2120 Meridian Street"]
["Huntsville  AL  35811"]
["United States home"]
["Work Phone: work256-881-1705"]
["Work Email:"]
["INTERNETdale@watringtc.com"]
[]
["Website: http://www.watringtc.com"]
["Watring Technologies, Inc. (WTI) is a experienced, diversified high technology company proficient in total system integration services, test, custom design, and the manufacturing of process automated hardware. We give customers access to a sole-source, multi-disciplinary staff of specialists offering turn-key solutions."]
["Add to Address Book Updated 12 days agoReturn to top."]

{"sheet":"Media | Marketing","index":13,"n_rows":107,"n_cols":3,"rows_kept":107,"cut":false,"hidden":false,"merged":[]}
[null,"Email from Macro","Corrected Email"]
["Amelia Dawkins ","INTERNETamy.dawkins@gosomerset.net",{"$f":"RIGHT(B2, LEN(B2)-8)","v":"amy.dawkins@gosomerset.net"}]
["Director of Business Development","INTERNETedidier@redsageonline.com","edidier@redsageonline.com"]
["Somerset","INTERNETralph@magnavistagroup.com","ralph@magnavistagroup.com"]
["475 Providence Main St. NW Suite 403","INTERNETinfo@philpodesign.com","info@philpodesign.com"]
["Huntsville  AL  35806","INTERNETbusiness@inergi.com",{"$f":"RIGHT(B6, LEN(B6)-8)","v":"business@inergi.com"}]
["United States home","INTERNETjwright@pesa.com","jwright@pesa.com"]
["Work Phone: work256-772-3435"]
["Work Fax: workfax256-489-3452"]
["Work Phone: work256-797-6824"]
["Work Email:"]
["INTERNETamy.dawkins@gosomerset.net"]
[]
["Website: http://www.gosomerset.net"]
["Add to Address Book Updated 27 days agoReturn to top."]
["Ellen Didier "]
["President"]
["Red Sage Communications, Inc."]
["111 2nd Ave. NE"]
["Decatur  AL  35601"]
["United States home"]
["Work Phone: work256-693-5241"]
["Work Fax: workfax256-466-5577"]
["Work Phone: work256-560-0098"]
["Work Email:"]
["INTERNETedidier@redsageonline.com"]
[]
["Website: http://www.redsageonline.com"]
["Add to Address Book Updated 27 days agoReturn to top."]
["Ralph Petroff "]
["Magnavista Group Inc."]
["515 Sparkman Drive"]
["Huntsville  AL  35816"]
["United States home"]
["Work Phone: work256-990-0224"]
["Work Fax: workfax256-990-0224"]
["Work Email:"]
["INTERNETralph@magnavistagroup.com"]
[]
["Website: http://kinematicbodyengineering.com/ralph_petroff.htm"]
["Mr. Petroff is a CEO with 30 years of successful global experience in high technology, including businesses in wireless communications, remote data acquisition and asset tracking, and clean technologies. Currently, he is CEO of Magna Vista Group, providing management and strategic consulting to a variety of companies."]
["Add to Address Book Updated 13 days agoReturn to top."]
["Lloyd Philpott "]
["Owner"]
["Philpo Design"]
["PO Box 1088"]
["Old Decatur  AL  35602"]
["United States home"]
["Work Phone: work256-309-9850"]
["Work Email:"]
["INTERNETinfo@philpodesign.com"]
[]
["Website: http://www.philpodesign.com/"]
["The history of design and anthropology, in objects and communication shows us that great design is more than the technical function forming the external surface, but that the essence, including the soul, the purpose, the technology, the efficiency, the feeling, the quality, the character, the integrity, as well as the materials and structure must become evident and integral to the form of the design, to serve all users."]
["Add to Address Book Updated 13 days agoReturn to top."]
["Jamie Hill"]
["Director of Sales"]
["INERGI"]
["3414-A Governors Dr."]
["Huntsville  AL  35803"]
["United States home"]
["Work Phone: work256-704-7700"]
["Work Fax: workfax256-704-7704"]
["Work Email: jamie.hill@inergi.com"]
["INTERNETbusiness@inergi.com"]
[]
["Website: http://www.inergi.com"]
["Inergi designs customer-focused experiences that ensure your market success. Drawing on our multidisciplinary talent - designers, engineers, marketers, communicators - Inergi starts with imagination and delivers innovation."]
["Add to Address Book Updated 13 days agoReturn to top."]
["Trevor Stokes "]
["Times Daily - Shoals"]
["219 W. Tennessee St."]
["Florence  AL  35630"]
["United States home"]
["Work Phone: work256-740-5728"]
["Work Phone: work256-766-3434"]
["Website: http://www.timesdaily.com"]
["For more than 100 years, the TimesDaily has been serving the readers of Lauderdale, Colbert, Franklin and Lawrence counties along with parts of Marion and Winston counties in Alabama. We also circulate in parts of southern Tennessee and northeast Mississippi. The TimesDaily is owned by Tennessee Valley Printing Co., Inc."]
["Add to Address Book Updated 12 days agoReturn to top."]
["John Wright "]
["VP, Government Business Development"]
["PESA"]
["103 Quality Circle, Suite 210"]
["Huntsville  AL  35806"]
["United States home"]
["Work Phone: work256-327-8085"]
["Work Fax: workfax256-726-9271"]
["Work Phone: work256-684-9025"]
["Work Email:"]
["INTERNETjwright@pesa.com"]
[]
["Website: http://www.pesa.com"]
["Add to Address Book Updated 26 days agoReturn to top."]
[]
["Austin Boyd"]
["CEO"]
["INERGI"]
["3414-A Governors Dr."]
["Huntsville  AL  35803"]
["United States home"]
["Work Phone: work256-704-7700"]
["Work Fax: workfax256-704-7704"]
["Work Email: jamie.hill@inergi.com"]
["INTERNETbusiness@inergi.com"]
[]
["Website: http://www.inergi.com"]
["Inergi designs customer-focused experiences that ensure your market success. Drawing on our multidisciplinary talent - designers, engineers, marketers, communicators - Inergi starts with imagination and delivers innovation."]

{"sheet":"Aggregated Email List","index":14,"n_rows":230,"n_cols":3,"rows_kept":230,"cut":false,"hidden":false,"merged":[]}
[null,null,"Emails"]
[null,null,"nka@calhoun.edu"]
[null,null,"glennbarnes@sog.unc.edu"]
[null,null,"berkowd@uah.edu"]
[null,null,"ernst.cebert@aamu.edu"]
[null,null,"sundar@nsstc.uah.edu"]
[null,null,"vanessa.ennis@uah.edu"]
[null,null,"dfarmer@tmtgroupinc.com"]
[null,null,"cgapasin@aces.edu"]
[null,null,"kfg0003@aces.edu"]
[null,null,"jguo@ece.uah.edu"]
[null,null,"gpahauck@gmail.com"]
[null,null,"anthony.holden@uah.edu"]
[null,null,"jholley@calhoun.edu"]
[null,null,"john.horack@uah.edu"]
[null,null,"tom.koshut@uah.edu"]
[null,null,"mll0002@aces.edu"]
[null,null,"dannah.mccauley@uah.edu"]
[null,null,"susan.phelan@aamu.edu"]
[null,null,"robert.recker@uah.edu"]
[null,null,"John.Reutter@drakestate.edu"]
[null,null,"jreutter@hotmail.com"]
[null,null,"spaink@uah.edu"]
[null,null,"dstone@atn.org"]
[null,null,"thompsg@uah.edu"]
[null,null,"joe.vallely@uah.edu"]
[null,null,"billbridge@aol.com"]
[null,null,"ernst.cebert@aamu.edu"]
[null,null,"hollowridgefarm@hughes.net"]
[null,null,"hathawaykw@msn.com"]
[null,null,"gpahauck@gmail.com"]
[null,null,"reecefarminc@yahoo.com"]
[null,null,"keith.bucher@seigroupinc.com"]
[null,null,"xigayden@yahoo.com"]
[null,null,"rex.geveden@tbe.com"]
[null,null,"mark.gradkowski@tbe.com"]
[null,null,"mark.kelly@seigroupinc.com"]
[null,null,"ls@cfdrc.com"]
[null,null,"steven.lambert@seigroupinc.com"]
[null,null,"ibrahim.pastuszak@pwr.utc.com"]
[null,null,"suri.perinkulam@pwr.utc.com"]
[null,null,"aks@cfdrc.com"]
[null,null,"ss2@cfdrc.com"]
[null,null,"rdt@cfdrc.com"]
[null,null,"eloy.torrez@seigroupinc.com"]
[null,null,"albright@ctc.com"]
[null,null,"michael.f.baran@saic.com"]
[null,null,"jeff@e2-cg.com"]
[null,null,"gregorycox1@me.com"]
[null,null,"robincox@me.com"]
[null,null,"pcrawford@jatecsolutionsllc.com"]
[null,null,"kay@HSVgreen.com"]
[null,null,"dfarmer@tmtgroupinc.com"]
[null,null,"ENGINEERING@pacer-hq.com"]
[null,null,"jfreeman@StrataG.org"]
[null,null,"otis.harty@agilisi.com"]
[null,null,"khayes@jatecsolutionsllc.com"]
[null,null,"rhill@taxcreditservices.com"]
[null,null,"dhurst@strataG.org"]
[null,null,"Cecil.Jones@calibresys.com"]
[null,null,"sosusan@bellsouth.net"]
[null,null,"bmara@ameresco.com"]
[null,null,"Shaquinta@theroxburycompany.com"]
[null,null,"matt@muellermechanical.com"]
[null,null,"jnewkirk@govesi.com"]
[null,null,"rebecca.newman@interglobalco.com"]
[null,null,"parsons_sally@bah.com"]
[null,null,"tpuckett@eleinc.com"]
[null,null,"bquick@eleinc.com"]
[null,null,"mrubino@staysailgroup.com"]
[null,null,"mark_d_russell@bellsouth.net"]
[null,null,"mshelton@ciconcepts.biz"]
[null,null,"ppsimon100@gmail.com"]
[null,null,"ruchi@nexusenergycenter.org"]
[null,null,"jsoutuyo@arescorporation.com"]
[null,null,"sparks_joe@bah.com"]
[null,null,"gordon.stark@sourcecorptax.com"]
[null,null,"kelleeT1973@aol.com"]
[null,null,"colewalker@me.com"]
[null,null,"pwendling@govesi.com"]
[null,null,"scotty@e2-cg.com"]
[null,null,"jamie.hill@inergi.com"]
[null,null,"peter.beucher@wlv.com"]
[null,null,"pjbeucher@comcast.net"]
[null,null,"austin.boyd@inergi.com"]
[null,null,"keith.bucher@seigroupinc.com"]
[null,null,"christie.coplen@mbtech-group-na.com"]
[null,null,"keith.dickerson@us.schneider-electric.com"]
[null,null,"otbox@bellsouth.net"]
[null,null,"daryl.glass@buildings.schneider-electric.com"]
[null,null,"daryl.glass@buildings.schneider-electric.com"]
[null,null,"jholley@calhoun.edu"]
[null,null,"allenhoover@sbcglobal.net"]
[null,null,"jeneen.horton@tema.toyota.com"]
[null,null,"don.jarman@eximian.com"]
[null,null,"jonesma@ctc.com"]
[null,null,"mark.kelly@seigroupinc.com"]
[null,null,"pfkern@gmail.com"]
[null,null,"king902284@bellsouth.net"]
[null,null,"steven.lambert@seigroupinc.com"]
[null,null,"andrealee@automatedcontrolsinc.com"]
[null,null,"lynn.leeper@aztechnology.com"]
[null,null,"ashok@mtronics.com"]
[null,null,"ed.massey@tbe.com"]
[null,null,"jack.mccauley@schneider-electric.com"]
[null,null,"gmiller@greencitegroup.com"]
[null,null,"a.reddy@asburysoftware.com"]
[null,null,"jim.roy@quantitech.com"]
[null,null,"mazillo@hotmail.com"]
[null,null,"kelleeT1973@aol.com"]
[null,null,"eloy.torrez@seigroupinc.com"]
[null,null,"vvega@gatr.com"]
[null,null,"danieladamek@gmail.com"]
[null,null,"michael.f.baran@saic.com"]
[null,null,"harold.brewer@irtc-hq.com"]
[null,null,"bulgatz@ama-inc.com"]
[null,null,"calloway@ama-inc.com"]
[null,null,"rex.geveden@tbe.com"]
[null,null,"mark.gradkowski@tbe.com"]
[null,null,"keith.johnson@willbrook.com"]
[null,null,"ls@cfdrc.com"]
[null,null,"keith.noren@willbrook.com"]
[null,null,"aks@cfdrc.com"]
[null,null,"ss2@cfdrc.com"]
[null,null,"k.smith@ama-inc.com"]
[null,null,"jay.stinson@intergraph.com"]
[null,null,"rdt@cfdrc.com"]
[null,null,"stuart@enernex.com"]
[null,null,"Ashish.Moondra@avocent.com"]
[null,null,"jnewkirk@govesi.com"]
[null,null,"jay.stinson@intergraph.com"]
[null,null,"pwendling@govesi.com"]
[null,null,"jallen@southern-construction.com"]
[null,null,"michael.f.baran@saic.com"]
[null,null,"sbeck@tcco.com"]
[null,null,"todd.billings@saineng.com"]
[null,null,"randy.boyd@earthlink.net"]
[null,null,"mbullard@tcco.com"]
[null,null,"jcargile@4siteinc.biz"]
[null,null,"cotney@bellsouth.net"]
[null,null,"danesh@uimagineit.com"]
[null,null,"navid@uimagineit.com"]
[null,null,"mark@markharrishomes.com"]
[null,null,"harry.kleiser@arcadis-us.com"]
[null,null,"glovvorn@habitatalc.org"]
[null,null,"jwninc@comcast.net"]
[null,null,"alton@powersroofing.com"]
[null,null,"steve.sain@saineng.com"]
[null,null,"lseverin@4siteinc.biz"]
[null,null,"bob@roofmister.com"]
[null,null,"kelleeT1973@aol.com"]
[null,null,"aime.Anderson@pentagon.af.mil"]
[null,null,"jaimeanderson@hotmail.com"]
[null,null,"contact@hsvcity.com"]
[null,null,"jbbowen@tva.gov"]
[null,null,"mbrazier@hsvchamber.org"]
[null,null,"vbrown@birminghambusinessalliance.com"]
[null,null,"naita@naita.org"]
[null,null,"donna_burrell@msn.com"]
[null,null,"dist3e@co.madison.al.us"]
[null,null,"anthonyldaniels@gmail.com"]
[null,null,"rdavis@hsvchamber.org"]
[null,null,"larry.denman@hsvutil.org"]
[null,null,"hdiamond@hsvchamber.org"]
[null,null,"mevans@sci-quest.org"]
[null,null,"rgilliland@greenjobsalliance.org"]
[null,null,"ggilmartin@croet.com"]
[null,null,"tgodfrey@naida.com"]
[null,null,"lahaislip@tva.com"]
[null,null,"wphicks@tva.gov"]
[null,null,"doc@swdahsv.org"]
[null,null,"steveh@shoalschamber.com"]
[null,null,"houghde@y12.doe.gov"]
[null,null,"howellmi@ornl.gov"]
[null,null,"jonesma@ctc.com"]
[null,null,"kress@nsstc.uah.edu"]
[null,null,"howell.lee@valleyinnovation.org"]
[null,null,"lani.macrae@ee.doe.gov"]
[null,null,"giles@shoalsec.com"]
[null,null,"sheilamcferran@stillservingveterans.org"]
[null,null,"markeeva.a.morgan@nasa.org"]
[null,null,"gpruitt@vcsi.org"]
[null,null,"joanne.randolph@wbcna.org"]
[null,null,"aaray@tva.gov"]
[null,null,"dick@dickreeves.com"]
[null,null,"reevesme@ornl.gov"]
[null,null,"j450n1970@hotmail.com"]
[null,null,"senator@shelby.senate.gov"]
[null,null,"ruchi@nexusenergycenter.org"]
[null,null,"rox@y12.doe.gov"]
[null,null,"stephen.spehn@eucom.mil"]
[null,null,"jay.stowe@hsvutil.org"]
[null,null,"ben@seealliance.org"]
[null,null,"denise.taylor@hsvcity.com"]
[null,null,"mathew@nexusenergycenter.org"]
[null,null,"vogtdp@ornl.gov"]
[null,null,"colewalker@me.com"]
[null,null,"cindy@biztech.org"]
[null,null,"alisonlansing75@gmail.com"]
[null,null,"jennifer@pinkleycommunications.com"]
[null,null,"jboschma@boschmaresearch.com"]
[null,null,"shurst@boschmaresearch.com"]
[null,null,"jboschma@boschmaresearch.com"]
[null,null,"christie.coplen@mbtech-group-na.com"]
[null,null,"cedreck.g.davis@nasa.gov"]
[null,null,"jim.dowdy@msfc.nasa.gov"]
[null,null,"dennis.c.foster@nasa.gov"]
[null,null,"jeneen.horton@tema.toyota.com"]
[null,null,"shurst@boschmaresearch.com"]
[null,null,"ashok@mtronics.com"]
[null,null,"ibrahim.pastuszak@pwr.utc.com"]
[null,null,"suri.perinkulam@pwr.utc.com"]
[null,null,"kelleeT1973@aol.com"]
[null,null,"jwarren@floridasyngas.com"]
[null,null,"myokley@gwjones.com"]
[null,null,"johnb.conger@gmail.com"]
[null,null,"cotney@bellsouth.net"]
[null,null,"ibrahim.pastuszak@pwr.utc.com"]
[null,null,"suri.perinkulam@pwr.utc.com"]
[null,null,"stephen.rush@outpostsolar.com"]
[null,null,"southernsolarsys@bellsouth.net"]
[null,null,"kelleeT1973@aol.com"]
[null,null,"southernsolarsys@bellsouth.net"]
[null,null,"dale@watringtc.com"]
[null,null,"amy.dawkins@gosomerset.net"]
[null,null,"edidier@redsageonline.com"]
[null,null,"ralph@magnavistagroup.com"]
[null,null,"info@philpodesign.com"]
[null,null,"business@inergi.com"]
[null,null,"jwright@pesa.com"]

{"sheet":"Army Corps","index":15,"n_rows":22,"n_cols":7,"rows_kept":22,"cut":false,"hidden":false,"merged":[]}
["Company","Location","Name","Position Title","Email","Office","Mobile"]
["AECOM","Alexandria, VA","Jack Norris","VP, Federal Business Development","jack.norris@aecom.com",7037060504,7033389132]
["AMEC","Minneapolis, MN","Jeff Riegle","Project Manager","jeff.riegle@amec.com",6122523667,2102690839]
["Arcadis","Baltimore, MD","Harry Kleiser, PE","Executive Vice President","harry.kleiser@arcadis-us.com",4102309960,4102588438]
["Army Engineer Association","Alexandria, VA","Jack O'Neil","Executive Director","xd@armyengineer.com",7034286049]
["Bloomenergy","Leesburg, VA","Bill Bockoven","Director, Government Sales","bill.bockoven@bloomenergy.com",5712580061,7036186175]
["Booz Allen Hamilton Inc","McLean, VA","Laura Newberger","Associate","newberger_laura@bah.com",7033777396,2245673734]
["Booz Allen Hamilton Inc","Huntsville, AL","Daniel Adamek","Lead Associate","adamek_daniel@bah.com",2569222791,2566837995]
["C.H. Guernsey & Co","Fort Wainwright, AK","Ashish Agrawal, PhD, CEM","Senior Privatization Consutant,Energy Management Consultant","ashish.agrawal@chguernsey.com",9073614540,9073479990]
["CH2MHILL","San Antonio, TX","Bill Pehlivanian, PMP","Senior Program Manager","william.pehlivanian@ch2m.com",2103773081,2108725677]
["EMC Engineers Inc","Alpharetta, GA","Carl Lundstrom, PE, CCP","Vice President","clundstrom@emcengineers.com",6782541221,7703293625]
["Eximian LLC","Huntsville, AL","Don Jarman","Chairman","don.jarman@eximian.com",2564264900]
["Facility Dynamics Engineering","Columbia, MD","J. Jay Santos, PE","Principal","jays@facilitydynamics.com",4102900900]
["Geo-Marine Incorporated","Plano, TX","Chris Koehler","Vice President, Business Development","ckoehler@geo-marine.com",9724235480]
["GraybaR","Colorado Springs, CO","David Mintus","Strategic Account Manager","david.mintus@graybar.com",7195931349,7193593926]
["Lockheed Martin","Huntsville, AL","Bill Stevenson","Aviation & Army Program Corporate Strategy & Business Development","william.w.stevenson@lmco.com",2562176704,2565082417]
["MCFA","Haddonfield, NJ","Jeff Weissman Colonel, USA (Ret)","Energy Program Director","jweissman@mcfaplanning.com",2564440525,4434177851]
["MEC Development","New Town, ND","R. Rees Llewellyn","Assistant to the President","Tcaptan@aol.com",7032036591]
["SSOE Group","Toledo, OH","Michael E Duffey","Director, Federal Programs","mduffey@ssoe.com","(419) 225-3830 x1333"," "]
["Stanley Consultants Inc","Muscatine, IA","Robert Edwards","Project Principal, Federal Market","edwardsrobert@stanleygroup.com",5632646762,5635065642]
["Sunopitcs","Sacramento, CA","Eric Huffman","Business Development Manager, Eastern Region","ehuffman@sunoptics.com",3014328371,3014712096]
["Tangible","McLean, VA","Scott Wingfield","VP Energy","swingfield@tangible.net",7036269464]